Workbook

Sheet plot
G1: suction side | I1: pressure side | L1: suction side | N1: pressure side | Q1: setting | BG1: -
B2: x | C2: y | D2: dy/dx | E2: Cp | G2: x | H2: y | I2: x | J2: y | L2: x | M2: y | N2: x | O2: y | Q2: alpha | R2: 11 | S2: deg
B3: =(dat!A2-0.25)*COS(RADIANS($R$2))+dat!B2*SIN(RADIANS($R$2))+0.25 -> 0.9864608069 | C3: =-(dat!A2-0.25)*SIN(RADIANS($R$2))+dat!B2*COS(RADIANS($R$2)) -> -0.1418698963 | D3: =dat!C2-RADIANS($R$2) -> 1.113248107 | E3: =interpolation1D($R$2,aXFOIL,XFOIL!D6:AU6) -> 0.1220343783 | G3: 0.8913291397 | H3: -0.09693401981 | I3: 0.9864608069 | J3: -0.1418698963 | N3: 1.013415141 | O3: -0.08712904097 | Q3: scale | R3: 0.5 | S3: -
B4: =(dat!A3-0.25)*COS(RADIANS($R$2))+dat!B3*SIN(RADIANS($R$2))+0.25 -> 0.9770307435 | C4: =-(dat!A3-0.25)*SIN(RADIANS($R$2))+dat!B3*COS(RADIANS($R$2)) -> -0.1372265439 | D4: =dat!C3-RADIANS($R$2) -> 1.116799042 | E4: =interpolation1D($R$2,aXFOIL,XFOIL!D7:AU7) -> 0.1164475307 | G4: 0.8981978294 | H4: -0.08168575863 | I4: 1.013415141 | J4: -0.08712904097 | N4: 1.002565439 | O4: -0.08490077424
B5: =(dat!A4-0.25)*COS(RADIANS($R$2))+dat!B4*SIN(RADIANS($R$2))+0.25 -> 0.9592744101 | C5: =-(dat!A4-0.25)*SIN(RADIANS($R$2))+dat!B4*COS(RADIANS($R$2)) -> -0.1285953973 | D5: =dat!C4-RADIANS($R$2) -> 1.122544565 | E5: =interpolation1D($R$2,aXFOIL,XFOIL!D8:AU8) -> 0.09927657247 | N5: 0.9807871804 | O5: -0.08386106849
B6: =(dat!A5-0.25)*COS(RADIANS($R$2))+dat!B5*SIN(RADIANS($R$2))+0.25 -> 0.9380749066 | C6: =-(dat!A5-0.25)*SIN(RADIANS($R$2))+dat!B5*COS(RADIANS($R$2)) -> -0.1184874295 | D6: =dat!C5-RADIANS($R$2) -> 1.130316774 | E6: =interpolation1D($R$2,aXFOIL,XFOIL!D9:AU9) -> 0.06779330969 | G6: 0.8672854152 | H6: -0.08623050723 | I6: 0.9770307435 | J6: -0.1372265439 | N6: 0.952527535 | O6: -0.08782630192
B7: =(dat!A6-0.25)*COS(RADIANS($R$2))+dat!B6*SIN(RADIANS($R$2))+0.25 -> 0.9150693614 | C7: =-(dat!A6-0.25)*SIN(RADIANS($R$2))+dat!B6*COS(RADIANS($R$2)) -> -0.1077555904 | D7: =dat!C6-RADIANS($R$2) -> 1.138790457 | E7: =interpolation1D($R$2,aXFOIL,XFOIL!D10:AU10) -> 0.02230825648 | G7: 0.8864210303 | H7: -0.04272647123 | I7: 1.002565439 | J7: -0.08490077424 | N7: 0.9197395194 | O7: -0.09762621721
B8: =(dat!A7-0.25)*COS(RADIANS($R$2))+dat!B7*SIN(RADIANS($R$2))+0.25 -> 0.8913291397 | C8: =-(dat!A7-0.25)*SIN(RADIANS($R$2))+dat!B7*COS(RADIANS($R$2)) -> -0.09693401981 | D8: =dat!C7-RADIANS($R$2) -> 1.147562221 | E8: =interpolation1D($R$2,aXFOIL,XFOIL!D11:AU11) -> -0.03344777226 | L8: 0.8981978294 | M8: -0.08168575863
B9: =(dat!A8-0.25)*COS(RADIANS($R$2))+dat!B8*SIN(RADIANS($R$2))+0.25 -> 0.8672854152 | C9: =-(dat!A8-0.25)*SIN(RADIANS($R$2))+dat!B8*COS(RADIANS($R$2)) -> -0.08623050723 | D9: =dat!C8-RADIANS($R$2) -> 1.156408103 | E9: =interpolation1D($R$2,aXFOIL,XFOIL!D12:AU12) -> -0.0950530991 | G9: 0.8430812244 | H9: -0.07571156735 | I9: 0.9592744101 | J9: -0.1285953973 | L9: 0.8864210303 | M9: -0.04272647123 | Q9: Polar
B10: =(dat!A9-0.25)*COS(RADIANS($R$2))+dat!B9*SIN(RADIANS($R$2))+0.25 -> 0.8430812244 | C10: =-(dat!A9-0.25)*SIN(RADIANS($R$2))+dat!B9*COS(RADIANS($R$2)) -> -0.07571156735 | D10: =dat!C9-RADIANS($R$2) -> 1.16525402 | E10: =interpolation1D($R$2,aXFOIL,XFOIL!D13:AU13) -> -0.1589207202 | G10: 0.8744296983 | H10: -0.002696349657 | I10: 0.9807871804 | J10: -0.08386106849 | L10: 0.8744296983 | M10: -0.002696349657 | Q10: alpha
B11: =(dat!A10-0.25)*COS(RADIANS($R$2))+dat!B10*SIN(RADIANS($R$2))+0.25 -> 0.8187640433 | C11: =-(dat!A10-0.25)*SIN(RADIANS($R$2))+dat!B10*COS(RADIANS($R$2)) -> -0.06539814381 | D11: =dat!C10-RADIANS($R$2) -> 1.174093257 | E11: =interpolation1D($R$2,aXFOIL,XFOIL!D14:AU14) -> -0.2227712721 | L11: 0.8618011761 | M11: 0.03733726933 | Q11: CL | R11: =interpolation1D($R$2,aXFOIL,XFOIL!D2:AU2) -> 1.610345125
B12: =(dat!A11-0.25)*COS(RADIANS($R$2))+dat!B11*SIN(RADIANS($R$2))+0.25 -> 0.7943517023 | C12: =-(dat!A11-0.25)*SIN(RADIANS($R$2))+dat!B11*COS(RADIANS($R$2)) -> -0.05529808298 | D12: =dat!C11-RADIANS($R$2) -> 1.182943569 | E12: =interpolation1D($R$2,aXFOIL,XFOIL!D15:AU15) -> -0.2854748368 | G12: 0.8187640433 | H12: -0.06539814381 | I12: 0.9380749066 | J12: -0.1184874295 | L12: 0.8483352132 | M12: 0.07683726871 | Q12: CD | R12: =interpolation1D($R$2,aXFOIL,XFOIL!D3:AU3) -> 0.01356778014
B13: =(dat!A12-0.25)*COS(RADIANS($R$2))+dat!B12*SIN(RADIANS($R$2))+0.25 -> 0.769853148 | C13: =-(dat!A12-0.25)*SIN(RADIANS($R$2))+dat!B12*COS(RADIANS($R$2)) -> -0.0454156707 | D13: =dat!C12-RADIANS($R$2) -> 1.191827959 | E13: =interpolation1D($R$2,aXFOIL,XFOIL!D16:AU16) -> -0.3466971517 | G13: 0.8618011761 | H13: 0.03733726933 | I13: 0.952527535 | J13: -0.08782630192 | L13: 0.833985574 | M13: 0.1156332681 | Q13: Cm | R13: =interpolation1D($R$2,aXFOIL,XFOIL!D4:AU4) -> -0.09049003571
B14: =(dat!A13-0.25)*COS(RADIANS($R$2))+dat!B13*SIN(RADIANS($R$2))+0.25 -> 0.7452744803 | C14: =-(dat!A13-0.25)*SIN(RADIANS($R$2))+dat!B13*COS(RADIANS($R$2)) -> -0.03575463946 | D14: =dat!C13-RADIANS($R$2) -> 1.200773065 | E14: =interpolation1D($R$2,aXFOIL,XFOIL!D17:AU17) -> -0.4065319002 | L14: 0.818782993 | M14: 0.1537540543
B15: =(dat!A14-0.25)*COS(RADIANS($R$2))+dat!B14*SIN(RADIANS($R$2))+0.25 -> 0.7206210357 | C15: =-(dat!A14-0.25)*SIN(RADIANS($R$2))+dat!B14*COS(RADIANS($R$2)) -> -0.02631898082 | D15: =dat!C14-RADIANS($R$2) -> 1.209808089 | E15: =interpolation1D($R$2,aXFOIL,XFOIL!D18:AU18) -> -0.4652831554 | G15: 0.7943517023 | H15: -0.05529808298 | I15: 0.9150693614 | J15: -0.1077555904 | L15: 0.8027897967 | M15: 0.1913284368 | Q15: αCL=0 | R15: =interpolation1D(0,XFOIL!D2:AU2,aXFOIL) -> -4.239305149
B16: =(dat!A15-0.25)*COS(RADIANS($R$2))+dat!B15*SIN(RADIANS($R$2))+0.25 -> 0.6958977224 | C16: =-(dat!A15-0.25)*SIN(RADIANS($R$2))+dat!B15*COS(RADIANS($R$2)) -> -0.01711331627 | D16: =dat!C15-RADIANS($R$2) -> 1.21896438 | E16: =interpolation1D($R$2,aXFOIL,XFOIL!D19:AU19) -> -0.5233212709 | G16: 0.8483352132 | H16: 0.07683726871 | I16: 0.9197395194 | J16: -0.09762621721 | L16: 0.7860707165 | M16: 0.2285187649 | Q16: αCL=0.5 | R16: =interpolation1D(0.5,XFOIL!D2:AU2,aXFOIL) -> -0.1071974791
B17: =(dat!A16-0.25)*COS(RADIANS($R$2))+dat!B16*SIN(RADIANS($R$2))+0.25 -> 0.6711096097 | C17: =-(dat!A16-0.25)*SIN(RADIANS($R$2))+dat!B16*COS(RADIANS($R$2)) -> -0.008143011637 | D17: =dat!C16-RADIANS($R$2) -> 1.228276227 | E17: =interpolation1D($R$2,aXFOIL,XFOIL!D20:AU20) -> -0.5810443163 | L17: 0.7686849241 | M17: 0.265503078 | Q17: αs-2 | R17: =interpolation1D(1,XFOIL!D2:AU2,aXFOIL) -> 4.818772965
B18: =(dat!A17-0.25)*COS(RADIANS($R$2))+dat!B17*SIN(RADIANS($R$2))+0.25 -> 0.6462616935 | C18: =-(dat!A17-0.25)*SIN(RADIANS($R$2))+dat!B17*COS(RADIANS($R$2)) -> 0.0005856646688 | D18: =dat!C17-RADIANS($R$2) -> 1.237777207 | E18: =interpolation1D($R$2,aXFOIL,XFOIL!D21:AU21) -> -0.6388202906 | G18: 0.769853148 | H18: -0.0454156707 | I18: 0.01099346049 | J18: 0.03215039093 | L18: 0.7506761553 | M18: 0.3024473235 | Q18: αs | R18: =INDEX(aXFOIL,1,MATCH(MAX(XFOIL!D2:AU2),XFOIL!D2:AU2,0)) -> 18
B19: =(dat!A18-0.25)*COS(RADIANS($R$2))+dat!B18*SIN(RADIANS($R$2))+0.25 -> 0.621358953 | C19: =-(dat!A18-0.25)*SIN(RADIANS($R$2))+dat!B18*COS(RADIANS($R$2)) -> 0.009065836196 | D19: =dat!C18-RADIANS($R$2) -> 1.247503943 | E19: =interpolation1D($R$2,aXFOIL,XFOIL!D22:AU22) -> -0.6970513463 | G19: 0.833985574 | H19: 0.1156332681 | I19: -0.1634387286 | J19: -0.1490432579 | L19: 0.7320821081 | M19: 0.3395359979 | Q19: α+2 | R19: =R18+4 -> 22
B20: =(dat!A19-0.25)*COS(RADIANS($R$2))+dat!B19*SIN(RADIANS($R$2))+0.25 -> 0.5964067468 | C20: =-(dat!A19-0.25)*SIN(RADIANS($R$2))+dat!B19*COS(RADIANS($R$2)) -> 0.01728943222 | D20: =dat!C19-RADIANS($R$2) -> 1.257493603 | E20: =interpolation1D($R$2,aXFOIL,XFOIL!D23:AU23) -> -0.7560911179 | L20: 0.7129212432 | M20: 0.3769320559
B21: =(dat!A20-0.25)*COS(RADIANS($R$2))+dat!B20*SIN(RADIANS($R$2))+0.25 -> 0.5714106133 | C21: =-(dat!A20-0.25)*SIN(RADIANS($R$2))+dat!B20*COS(RADIANS($R$2)) -> 0.02524773578 | D21: =dat!C20-RADIANS($R$2) -> 1.267783936 | E21: =interpolation1D($R$2,aXFOIL,XFOIL!D24:AU24) -> -0.8163693547 | G21: 0.7452744803 | H21: -0.03575463946 | I21: 0.01456338083 | J21: 0.02909671336 | L21: 0.6932115774 | M21: 0.4148363085 | Q21: nCol | R21: =MATCH(R2,R15:R19,0) -> 
B22: =(dat!A21-0.25)*COS(RADIANS($R$2))+dat!B21*SIN(RADIANS($R$2))+0.25 -> 0.5463759003 | C22: =-(dat!A21-0.25)*SIN(RADIANS($R$2))+dat!B21*COS(RADIANS($R$2)) -> 0.03293104832 | D22: =dat!C21-RADIANS($R$2) -> 1.278419768 | E22: =interpolation1D($R$2,aXFOIL,XFOIL!D25:AU25) -> -0.8783274293 | G22: 0.818782993 | H22: 0.1537540543 | I22: -0.2280076226 | J22: -0.2899353759 | L22: 0.6729555036 | M22: 0.4534573522
B23: =(dat!A22-0.25)*COS(RADIANS($R$2))+dat!B22*SIN(RADIANS($R$2))+0.25 -> 0.5213115356 | C23: =-(dat!A22-0.25)*SIN(RADIANS($R$2))+dat!B22*COS(RADIANS($R$2)) -> 0.04032765098 | D23: =dat!C22-RADIANS($R$2) -> 1.289452502 | E23: =interpolation1D($R$2,aXFOIL,XFOIL!D26:AU26) -> -0.9425200224 | L23: 0.6521554115 | M23: 0.4930592252
B24: =(dat!A23-0.25)*COS(RADIANS($R$2))+dat!B23*SIN(RADIANS($R$2))+0.25 -> 0.4962196769 | C24: =-(dat!A23-0.25)*SIN(RADIANS($R$2))+dat!B23*COS(RADIANS($R$2)) -> 0.04742663161 | D24: =dat!C23-RADIANS($R$2) -> 1.300904933 | E24: =interpolation1D($R$2,aXFOIL,XFOIL!D27:AU27) -> -1.009490132 | G24: 0.7206210357 | H24: -0.02631898082 | I24: 0.01902593445 | J24: 0.02602172173 | L24: 0.6307982205 | M24: 0.5338998554
B25: =(dat!A24-0.25)*COS(RADIANS($R$2))+dat!B24*SIN(RADIANS($R$2))+0.25 -> 0.4711313524 | C25: =-(dat!A24-0.25)*SIN(RADIANS($R$2))+dat!B24*COS(RADIANS($R$2)) -> 0.05420942869 | D25: =dat!C24-RADIANS($R$2) -> 1.312899438 | E25: =interpolation1D($R$2,aXFOIL,XFOIL!D28:AU28) -> -1.08084774 | G25: 0.8027897967 | H25: 0.1913284368 | I25: -0.2303856184 | J25: -0.375604518 | L25: 0.6089651415 | M25: 0.5767606759
B26: =(dat!A25-0.25)*COS(RADIANS($R$2))+dat!B25*SIN(RADIANS($R$2))+0.25 -> 0.4460442099 | C26: =-(dat!A25-0.25)*SIN(RADIANS($R$2))+dat!B25*COS(RADIANS($R$2)) -> 0.06066132057 | D26: =dat!C25-RADIANS($R$2) -> 1.325219269 | E26: =interpolation1D($R$2,aXFOIL,XFOIL!D29:AU29) -> -1.155882001 | L26: 0.5865509778 | M26: 0.6212624695
B27: =(dat!A26-0.25)*COS(RADIANS($R$2))+dat!B26*SIN(RADIANS($R$2))+0.25 -> 0.4210842008 | C27: =-(dat!A26-0.25)*SIN(RADIANS($R$2))+dat!B26*COS(RADIANS($R$2)) -> 0.06675262934 | D27: =dat!C26-RADIANS($R$2) -> 1.339379412 | E27: =interpolation1D($R$2,aXFOIL,XFOIL!D30:AU30) -> -1.246507406 | G27: 0.6958977224 | H27: -0.01711331627 | I27: 0.02458454917 | J27: 0.02285408971 | L27: 0.5640317362 | M27: 0.6733918801
B28: =(dat!A27-0.25)*COS(RADIANS($R$2))+dat!B27*SIN(RADIANS($R$2))+0.25 -> 0.3965019487 | C28: =-(dat!A27-0.25)*SIN(RADIANS($R$2))+dat!B27*COS(RADIANS($R$2)) -> 0.07233409133 | D28: =dat!C27-RADIANS($R$2) -> 1.357544394 | E28: =interpolation1D($R$2,aXFOIL,XFOIL!D31:AU31) -> -1.341434717 | G28: 0.7860707165 | H28: 0.2285187649 | I28: -0.2043973337 | J28: -0.4197278317 | L28: 0.5384520898 | M28: 0.7278582576
B29: =(dat!A28-0.25)*COS(RADIANS($R$2))+dat!B28*SIN(RADIANS($R$2))+0.25 -> 0.3721075197 | C29: =-(dat!A28-0.25)*SIN(RADIANS($R$2))+dat!B28*COS(RADIANS($R$2)) -> 0.07735725755 | D29: =dat!C28-RADIANS($R$2) -> 1.378434986 | E29: =interpolation1D($R$2,aXFOIL,XFOIL!D32:AU32) -> -1.427506328 | L29: 0.5085608601 | M29: 0.7779456279
B30: =(dat!A29-0.25)*COS(RADIANS($R$2))+dat!B29*SIN(RADIANS($R$2))+0.25 -> 0.3477560295 | C30: =-(dat!A29-0.25)*SIN(RADIANS($R$2))+dat!B29*COS(RADIANS($R$2)) -> 0.08182777695 | D30: =dat!C29-RADIANS($R$2) -> 1.400265734 | E30: =interpolation1D($R$2,aXFOIL,XFOIL!D33:AU33) -> -1.508828402 | G30: 0.6711096097 | H30: -0.008143011637 | I30: 0.03155980352 | J30: 0.01951724113 | L30: 0.475784095 | M30: 0.825299095
B31: =(dat!A30-0.25)*COS(RADIANS($R$2))+dat!B30*SIN(RADIANS($R$2))+0.25 -> 0.3234400703 | C31: =-(dat!A30-0.25)*SIN(RADIANS($R$2))+dat!B30*COS(RADIANS($R$2)) -> 0.0857374117 | D31: =dat!C30-RADIANS($R$2) -> 1.422861915 | E31: =interpolation1D($R$2,aXFOIL,XFOIL!D34:AU34) -> -1.589087248 | G31: 0.7686849241 | H31: 0.265503078 | I31: -0.1666591074 | J31: -0.4351711635 | L31: 0.4405521627 | M31: 0.8716027489
B32: =(dat!A31-0.25)*COS(RADIANS($R$2))+dat!B31*SIN(RADIANS($R$2))+0.25 -> 0.2991707846 | C32: =-(dat!A31-0.25)*SIN(RADIANS($R$2))+dat!B31*COS(RADIANS($R$2)) -> 0.08906749269 | D32: =dat!C31-RADIANS($R$2) -> 1.446400821 | E32: =interpolation1D($R$2,aXFOIL,XFOIL!D35:AU35) -> -1.668588042 | L32: 0.4026857589 | M32: 0.9169147997
B33: =(dat!A32-0.25)*COS(RADIANS($R$2))+dat!B32*SIN(RADIANS($R$2))+0.25 -> 0.2749707399 | C33: =-(dat!A32-0.25)*SIN(RADIANS($R$2))+dat!B32*COS(RADIANS($R$2)) -> 0.09179733379 | D33: =dat!C32-RADIANS($R$2) -> 1.470982684 | E33: =interpolation1D($R$2,aXFOIL,XFOIL!D36:AU36) -> -1.748453021 | G33: 0.6462616935 | H33: 0.0005856646688 | I33: 0.04042804253 | J33: 0.0159257149 | L33: 0.3620856535 | M33: 0.9616726027
B34: =(dat!A33-0.25)*COS(RADIANS($R$2))+dat!B33*SIN(RADIANS($R$2))+0.25 -> 0.2508727562 | C34: =-(dat!A33-0.25)*SIN(RADIANS($R$2))+dat!B33*COS(RADIANS($R$2)) -> 0.09390344096 | D34: =dat!C33-RADIANS($R$2) -> 1.496756835 | E34: =interpolation1D($R$2,aXFOIL,XFOIL!D37:AU37) -> -1.829507709 | G34: 0.7506761553 | H34: 0.3024473235 | I34: -0.1248912631 | J34: -0.4313678576 | L34: 0.3185388048 | M34: 1.00615117
B35: =(dat!A34-0.25)*COS(RADIANS($R$2))+dat!B34*SIN(RADIANS($R$2))+0.25 -> 0.2269190584 | C35: =-(dat!A34-0.25)*SIN(RADIANS($R$2))+dat!B34*COS(RADIANS($R$2)) -> 0.09536039024 | D35: =dat!C34-RADIANS($R$2) -> 1.523906207 | E35: =interpolation1D($R$2,aXFOIL,XFOIL!D38:AU38) -> -1.912920713 | L35: 0.2717511662 | M35: 1.050769463
B36: =(dat!A35-0.25)*COS(RADIANS($R$2))+dat!B35*SIN(RADIANS($R$2))+0.25 -> 0.203167416 | C36: =-(dat!A35-0.25)*SIN(RADIANS($R$2))+dat!B35*COS(RADIANS($R$2)) -> 0.09614044913 | D36: =dat!C35-RADIANS($R$2) -> 1.552668315 | E36: =interpolation1D($R$2,aXFOIL,XFOIL!D39:AU39) -> -2.000149727 | G36: 0.621358953 | H36: 0.009065836196 | I36: 0.05183343715 | J36: 0.01200003726 | L36: 0.221295792 | M36: 1.096050992
B37: =(dat!A36-0.25)*COS(RADIANS($R$2))+dat!B36*SIN(RADIANS($R$2))+0.25 -> 0.1796994551 | C37: =-(dat!A36-0.25)*SIN(RADIANS($R$2))+dat!B36*COS(RADIANS($R$2)) -> 0.09621440597 | D37: =dat!C36-RADIANS($R$2) -> 1.583347408 | E37: =interpolation1D($R$2,aXFOIL,XFOIL!D40:AU40) -> -2.093306303 | G37: 0.7320821081 | H37: 0.3395359979 | I37: -0.08259117325 | J37: -0.4152498694 | L37: 0.1665631717 | M37: 1.142785119
B38: =(dat!A37-0.25)*COS(RADIANS($R$2))+dat!B37*SIN(RADIANS($R$2))+0.25 -> 0.1566394744 | C38: =-(dat!A37-0.25)*SIN(RADIANS($R$2))+dat!B37*COS(RADIANS($R$2)) -> 0.0955535153 | D38: =dat!C37-RADIANS($R$2) -> 1.61634105 | E38: =interpolation1D($R$2,aXFOIL,XFOIL!D41:AU41) -> -2.195418835 | L38: 0.1066618857 | M38: 1.192124628
B39: =(dat!A38-0.25)*COS(RADIANS($R$2))+dat!B38*SIN(RADIANS($R$2))+0.25 -> 0.1341889874 | C39: =-(dat!A38-0.25)*SIN(RADIANS($R$2))+dat!B38*COS(RADIANS($R$2)) -> 0.09413582319 | D39: =dat!C38-RADIANS($R$2) -> 1.652119377 | E39: =interpolation1D($R$2,aXFOIL,XFOIL!D42:AU42) -> -2.310545444 | G39: 0.5964067468 | H39: 0.01728943222 | I39: 0.06642117974 | J39: 0.007722066375 | L39: 0.04034220745 | M39: 1.245590488
B40: =(dat!A39-0.25)*COS(RADIANS($R$2))+dat!B39*SIN(RADIANS($R$2))+0.25 -> 0.1126826373 | C40: =-(dat!A39-0.25)*SIN(RADIANS($R$2))+dat!B39*COS(RADIANS($R$2)) -> 0.09196392434 | D40: =dat!C39-RADIANS($R$2) -> 1.69115804 | E40: =interpolation1D($R$2,aXFOIL,XFOIL!D43:AU43) -> -2.444191933 | G40: 0.7129212432 | H40: 0.3769320559 | I40: -0.0412993866 | J40: -0.3922375293 | L40: -0.0340560283 | M40: 1.305218356
B41: =(dat!A40-0.25)*COS(RADIANS($R$2))+dat!B40*SIN(RADIANS($R$2))+0.25 -> 0.09264696164 | C41: =-(dat!A40-0.25)*SIN(RADIANS($R$2))+dat!B40*COS(RADIANS($R$2)) -> 0.08909999299 | D41: =dat!C40-RADIANS($R$2) -> 1.733830731 | E41: =interpolation1D($R$2,aXFOIL,XFOIL!D44:AU44) -> -2.60257268 | L41: -0.118568878 | M41: 1.373130369
B42: =(dat!A41-0.25)*COS(RADIANS($R$2))+dat!B41*SIN(RADIANS($R$2))+0.25 -> 0.07476007745 | C42: =-(dat!A41-0.25)*SIN(RADIANS($R$2))+dat!B41*COS(RADIANS($R$2)) -> 0.08570784814 | D42: =dat!C41-RADIANS($R$2) -> 1.780333821 | E42: =interpolation1D($R$2,aXFOIL,XFOIL!D45:AU45) -> -2.790680408 | G42: 0.5714106133 | H42: 0.02524773578 | I42: 0.08447383884 | J42: 0.003186016619 | L42: -0.2154811958 | M42: 1.450528089
B43: =(dat!A42-0.25)*COS(RADIANS($R$2))+dat!B42*SIN(RADIANS($R$2))+0.25 -> 0.05958876715 | C43: =-(dat!A42-0.25)*SIN(RADIANS($R$2))+dat!B42*COS(RADIANS($R$2)) -> 0.08204517703 | D43: =dat!C42-RADIANS($R$2) -> 1.830740459 | E43: =interpolation1D($R$2,aXFOIL,XFOIL!D46:AU46) -> -3.010033369 | G43: 0.6932115774 | H43: 0.4148363085 | I43: -0.001849644589 | J43: -0.3674710098 | L43: -0.3272404964 | M43: 1.536499831
B44: =(dat!A43-0.25)*COS(RADIANS($R$2))+dat!B43*SIN(RADIANS($R$2))+0.25 -> 0.04726373892 | C44: =-(dat!A43-0.25)*SIN(RADIANS($R$2))+dat!B43*COS(RADIANS($R$2)) -> 0.07836671967 | D44: =dat!C43-RADIANS($R$2) -> 1.88508434 | E44: =interpolation1D($R$2,aXFOIL,XFOIL!D47:AU47) -> -3.258374929 | L44: -0.4563823594 | M44: 1.627751244
B45: =(dat!A44-0.25)*COS(RADIANS($R$2))+dat!B44*SIN(RADIANS($R$2))+0.25 -> 0.03747012728 | C45: =-(dat!A44-0.25)*SIN(RADIANS($R$2))+dat!B44*COS(RADIANS($R$2)) -> 0.07482770724 | D45: =dat!C44-RADIANS($R$2) -> 1.943593141 | E45: =interpolation1D($R$2,aXFOIL,XFOIL!D48:AU48) -> -3.531883955 | G45: 0.5463759003 | H45: 0.03293104832 | I45: 0.105592376 | J45: -0.001416858005 | L45: -0.6057240163 | M45: 1.719471244
B46: =(dat!A45-0.25)*COS(RADIANS($R$2))+dat!B45*SIN(RADIANS($R$2))+0.25 -> 0.02970347997 | C46: =-(dat!A45-0.25)*SIN(RADIANS($R$2))+dat!B45*COS(RADIANS($R$2)) -> 0.07147434266 | D46: =dat!C45-RADIANS($R$2) -> 2.007025316 | E46: =interpolation1D($R$2,aXFOIL,XFOIL!D49:AU49) -> -3.828143835 | G46: 0.6729555036 | H46: 0.4534573522 | I46: 0.03542213583 | J46: -0.3445633774 | L46: -0.7790390224 | M46: 1.806296198
B47: =(dat!A46-0.25)*COS(RADIANS($R$2))+dat!B46*SIN(RADIANS($R$2))+0.25 -> 0.02349801594 | C47: =-(dat!A46-0.25)*SIN(RADIANS($R$2))+dat!B46*COS(RADIANS($R$2)) -> 0.06829182928 | D47: =dat!C46-RADIANS($R$2) -> 2.077051597 | E47: =interpolation1D($R$2,aXFOIL,XFOIL!D50:AU50) -> -4.145576954 | L47: -0.9816088051 | M47: 1.881083143
B48: =(dat!A47-0.25)*COS(RADIANS($R$2))+dat!B47*SIN(RADIANS($R$2))+0.25 -> 0.01849161994 | C48: =-(dat!A47-0.25)*SIN(RADIANS($R$2))+dat!B47*COS(RADIANS($R$2)) -> 0.0652368664 | D48: =dat!C47-RADIANS($R$2) -> 2.156093363 | E48: =interpolation1D($R$2,aXFOIL,XFOIL!D51:AU51) -> -4.477831364 | G48: 0.5213115356 | H48: 0.04032765098 | I48: 0.1289213952 | J48: -0.0059119319 | L48: -1.218390632 | M48: 1.931480614
B49: =(dat!A48-0.25)*COS(RADIANS($R$2))+dat!B48*SIN(RADIANS($R$2))+0.25 -> 0.01443355214 | C49: =-(dat!A48-0.25)*SIN(RADIANS($R$2))+dat!B48*COS(RADIANS($R$2)) -> 0.06226263727 | D49: =dat!C48-RADIANS($R$2) -> 2.246909406 | E49: =interpolation1D($R$2,aXFOIL,XFOIL!D52:AU52) -> -4.807353973 | G49: 0.6521554115 | H49: 0.4930592252 | I49: 0.07038818422 | J49: -0.3255712815 | L49: -1.489705583 | M49: 1.937156906
B50: =(dat!A49-0.25)*COS(RADIANS($R$2))+dat!B49*SIN(RADIANS($R$2))+0.25 -> 0.01116877652 | C50: =-(dat!A49-0.25)*SIN(RADIANS($R$2))+dat!B49*COS(RADIANS($R$2)) -> 0.05933723801 | D50: =dat!C49-RADIANS($R$2) -> 2.353531149 | E50: =interpolation1D($R$2,aXFOIL,XFOIL!D53:AU53) -> -5.113367558 | L50: -1.791858338 | M50: 1.871994175
B51: =(dat!A50-0.25)*COS(RADIANS($R$2))+dat!B50*SIN(RADIANS($R$2))+0.25 -> 0.008585937191 | C51: =-(dat!A50-0.25)*SIN(RADIANS($R$2))+dat!B50*COS(RADIANS($R$2)) -> 0.05641344874 | D51: =dat!C50-RADIANS($R$2) -> 2.479473387 | E51: =interpolation1D($R$2,aXFOIL,XFOIL!D54:AU54) -> -5.314497471 | G51: 0.4962196769 | H51: 0.04742663161 | I51: 0.1536684448 | J51: -0.01022422045 | L51: -2.087162492 | M51: 1.690062544
B52: =(dat!A51-0.25)*COS(RADIANS($R$2))+dat!B51*SIN(RADIANS($R$2))+0.25 -> 0.00663391526 | C52: =-(dat!A51-0.25)*SIN(RADIANS($R$2))+dat!B51*COS(RADIANS($R$2)) -> 0.05346779207 | D52: =dat!C51-RADIANS($R$2) -> 2.631313965 | E52: =interpolation1D($R$2,aXFOIL,XFOIL!D55:AU55) -> -5.314544201 | G52: 0.6307982205 | H52: 0.5338998554 | I52: 0.1033446638 | J52: -0.3104882144 | L52: -2.312124106 | M52: 1.351333831
B53: =(dat!A52-0.25)*COS(RADIANS($R$2))+dat!B52*SIN(RADIANS($R$2))+0.25 -> 0.005320529777 | C53: =-(dat!A52-0.25)*SIN(RADIANS($R$2))+dat!B52*COS(RADIANS($R$2)) -> 0.05056302916 | D53: =dat!C52-RADIANS($R$2) -> 2.783154544 | E53: =interpolation1D($R$2,aXFOIL,XFOIL!D56:AU56) -> -5.001102448 | L53: -2.336310401 | M53: 0.9277864945
B54: =(dat!A53-0.25)*COS(RADIANS($R$2))+dat!B53*SIN(RADIANS($R$2))+0.25 -> 0.004593204138 | C54: =-(dat!A53-0.25)*SIN(RADIANS($R$2))+dat!B53*COS(RADIANS($R$2)) -> 0.04770224884 | D54: =dat!C53-RADIANS($R$2) -> 3.06734257 | E54: =interpolation1D($R$2,aXFOIL,XFOIL!D57:AU57) -> -4.380561352 | G54: 0.4711313524 | H54: 0.05420942869 | I54: 0.1793168436 | J54: -0.01435995067 | L54: -2.179652654 | M54: 0.2101813837
B55: =(dat!A54-0.25)*COS(RADIANS($R$2))+dat!B54*SIN(RADIANS($R$2))+0.25 -> 0.00442633888 | C55: =-(dat!A54-0.25)*SIN(RADIANS($R$2))+dat!B54*COS(RADIANS($R$2)) -> 0.04472702499 | D55: =dat!C54-RADIANS($R$2) -> 3.212986792 | E55: =interpolation1D($R$2,aXFOIL,XFOIL!D58:AU58) -> -3.403136492 | G55: 0.6089651415 | H55: 0.5767606759 | I55: 0.1347207581 | J55: -0.2988351507 | L55: -1.692807197 | M55: -0.07665179882
B56: =(dat!A55-0.25)*COS(RADIANS($R$2))+dat!B55*SIN(RADIANS($R$2))+0.25 -> 0.004930175985 | C56: =-(dat!A55-0.25)*SIN(RADIANS($R$2))+dat!B55*COS(RADIANS($R$2)) -> 0.0415750782 | D56: =dat!C55-RADIANS($R$2) -> 3.422225487 | E56: =interpolation1D($R$2,aXFOIL,XFOIL!D59:AU59) -> -2.13615799 | L56: -1.021365952 | M56: -0.2542441185
B57: =(dat!A56-0.25)*COS(RADIANS($R$2))+dat!B56*SIN(RADIANS($R$2))+0.25 -> 0.006193347324 | C57: =-(dat!A56-0.25)*SIN(RADIANS($R$2))+dat!B56*COS(RADIANS($R$2)) -> 0.03837587538 | D57: =dat!C56-RADIANS($R$2) -> 3.625032742 | E57: =interpolation1D($R$2,aXFOIL,XFOIL!D60:AU60) -> -0.9267256856 | G57: 0.4460442099 | H57: 0.06066132057 | I57: 0.2055684831 | J57: -0.01836121411 | L57: -0.404068631 | M57: -0.1770080452
B58: =(dat!A57-0.25)*COS(RADIANS($R$2))+dat!B57*SIN(RADIANS($R$2))+0.25 -> 0.00821458929 | C58: =-(dat!A57-0.25)*SIN(RADIANS($R$2))+dat!B57*COS(RADIANS($R$2)) -> 0.03523611805 | D58: =dat!C57-RADIANS($R$2) -> 3.801754601 | E58: =interpolation1D($R$2,aXFOIL,XFOIL!D61:AU61) -> -0.04071653634 | G58: 0.5865509778 | H58: 0.6212624695 | I58: 0.1649548963 | J58: -0.2898374627 | L58: -0.00786626277 | M58: 0.02275151633
B59: =(dat!A58-0.25)*COS(RADIANS($R$2))+dat!B58*SIN(RADIANS($R$2))+0.25 -> 0.01099346049 | C59: =-(dat!A58-0.25)*SIN(RADIANS($R$2))+dat!B58*COS(RADIANS($R$2)) -> 0.03215039093 | D59: =dat!C58-RADIANS($R$2) -> 3.946001374 | E59: =interpolation1D($R$2,aXFOIL,XFOIL!D62:AU62) -> 0.5030217767 | N59: -0.1634387286 | O59: -0.1490432579
B60: =(dat!A59-0.25)*COS(RADIANS($R$2))+dat!B59*SIN(RADIANS($R$2))+0.25 -> 0.01456338083 | C60: =-(dat!A59-0.25)*SIN(RADIANS($R$2))+dat!B59*COS(RADIANS($R$2)) -> 0.02909671336 | D60: =dat!C59-RADIANS($R$2) -> 4.062306734 | E60: =interpolation1D($R$2,aXFOIL,XFOIL!D63:AU63) -> 0.801553905 | G60: 0.4210842008 | H60: 0.06675262934 | I60: 0.2322452468 | J60: -0.02227855315 | N60: -0.2280076226 | O60: -0.2899353759
B61: =(dat!A60-0.25)*COS(RADIANS($R$2))+dat!B60*SIN(RADIANS($R$2))+0.25 -> 0.01902593445 | C61: =-(dat!A60-0.25)*SIN(RADIANS($R$2))+dat!B60*COS(RADIANS($R$2)) -> 0.02602172173 | D61: =dat!C60-RADIANS($R$2) -> 4.156668263 | E61: =interpolation1D($R$2,aXFOIL,XFOIL!D64:AU64) -> 0.945536375 | G61: 0.5640317362 | H61: 0.6733918801 | I61: 0.1943677133 | J61: -0.2828863668 | N61: -0.2303856184 | O61: -0.375604518
B62: =(dat!A61-0.25)*COS(RADIANS($R$2))+dat!B61*SIN(RADIANS($R$2))+0.25 -> 0.02458454917 | C62: =-(dat!A61-0.25)*SIN(RADIANS($R$2))+dat!B61*COS(RADIANS($R$2)) -> 0.02285408971 | D62: =dat!C61-RADIANS($R$2) -> 4.234936295 | E62: =interpolation1D($R$2,aXFOIL,XFOIL!D65:AU65) -> 0.996617198 | N62: -0.2043973337 | O62: -0.4197278317
B63: =(dat!A62-0.25)*COS(RADIANS($R$2))+dat!B62*SIN(RADIANS($R$2))+0.25 -> 0.03155980352 | C63: =-(dat!A62-0.25)*SIN(RADIANS($R$2))+dat!B62*COS(RADIANS($R$2)) -> 0.01951724113 | D63: =dat!C62-RADIANS($R$2) -> 4.301284881 | E63: =interpolation1D($R$2,aXFOIL,XFOIL!D66:AU66) -> 0.9920328259 | G63: 0.3965019487 | H63: 0.07233409133 | I63: 0.2592189906 | J63: -0.02615908236 | N63: -0.1666591074 | O63: -0.4351711635
B64: =(dat!A63-0.25)*COS(RADIANS($R$2))+dat!B63*SIN(RADIANS($R$2))+0.25 -> 0.04042804253 | C64: =-(dat!A63-0.25)*SIN(RADIANS($R$2))+dat!B63*COS(RADIANS($R$2)) -> 0.0159257149 | D64: =dat!C63-RADIANS($R$2) -> 4.358361725 | E64: =interpolation1D($R$2,aXFOIL,XFOIL!D67:AU67) -> 0.9537337422 | G64: 0.5384520898 | H64: 0.7278582576 | I64: 0.2231802598 | J64: -0.2774465003 | N64: -0.1248912631 | O64: -0.4313678576
B65: =(dat!A64-0.25)*COS(RADIANS($R$2))+dat!B64*SIN(RADIANS($R$2))+0.25 -> 0.05183343715 | C65: =-(dat!A64-0.25)*SIN(RADIANS($R$2))+dat!B64*COS(RADIANS($R$2)) -> 0.01200003726 | D65: =dat!C64-RADIANS($R$2) -> 4.407566981 | E65: =interpolation1D($R$2,aXFOIL,XFOIL!D68:AU68) -> 0.8957956433 | N65: -0.08259117325 | O65: -0.4152498694
B66: =(dat!A65-0.25)*COS(RADIANS($R$2))+dat!B65*SIN(RADIANS($R$2))+0.25 -> 0.06642117974 | C66: =-(dat!A65-0.25)*SIN(RADIANS($R$2))+dat!B65*COS(RADIANS($R$2)) -> 0.007722066375 | D66: =dat!C65-RADIANS($R$2) -> 4.449303013 | E66: =interpolation1D($R$2,aXFOIL,XFOIL!D69:AU69) -> 0.8284235597 | G66: 0.3721075197 | H66: 0.07735725755 | I66: 0.2863297976 | J66: -0.03003518309 | N66: -0.0412993866 | O66: -0.3922375293
B67: =(dat!A66-0.25)*COS(RADIANS($R$2))+dat!B66*SIN(RADIANS($R$2))+0.25 -> 0.08447383884 | C67: =-(dat!A66-0.25)*SIN(RADIANS($R$2))+dat!B66*COS(RADIANS($R$2)) -> 0.003186016619 | D67: =dat!C66-RADIANS($R$2) -> 4.48357454 | E67: =interpolation1D($R$2,aXFOIL,XFOIL!D70:AU70) -> 0.7611527443 | G67: 0.5085608601 | H67: 0.7779456279 | I67: 0.2514725356 | J67: -0.2731190503 | N67: -0.001849644589 | O67: -0.3674710098
B68: =(dat!A67-0.25)*COS(RADIANS($R$2))+dat!B67*SIN(RADIANS($R$2))+0.25 -> 0.105592376 | C68: =-(dat!A67-0.25)*SIN(RADIANS($R$2))+dat!B67*COS(RADIANS($R$2)) -> -0.001416858005 | D68: =dat!C67-RADIANS($R$2) -> 4.510679281 | E68: =interpolation1D($R$2,aXFOIL,XFOIL!D71:AU71) -> 0.7004952431 | N68: 0.03542213583 | O68: -0.3445633774
B69: =(dat!A68-0.25)*COS(RADIANS($R$2))+dat!B68*SIN(RADIANS($R$2))+0.25 -> 0.1289213952 | C69: =-(dat!A68-0.25)*SIN(RADIANS($R$2))+dat!B68*COS(RADIANS($R$2)) -> -0.0059119319 | D69: =dat!C68-RADIANS($R$2) -> 4.531284113 | E69: =interpolation1D($R$2,aXFOIL,XFOIL!D72:AU72) -> 0.6499484181 | G69: 0.3477560295 | H69: 0.08182777695 | I69: 0.313385616 | J69: -0.03392636865 | N69: 0.07038818422 | O69: -0.3255712815
B70: =(dat!A69-0.25)*COS(RADIANS($R$2))+dat!B69*SIN(RADIANS($R$2))+0.25 -> 0.1536684448 | C70: =-(dat!A69-0.25)*SIN(RADIANS($R$2))+dat!B69*COS(RADIANS($R$2)) -> -0.01022422045 | D70: =dat!C69-RADIANS($R$2) -> 4.546333837 | E70: =interpolation1D($R$2,aXFOIL,XFOIL!D73:AU73) -> 0.6089037657 | G70: 0.475784095 | H70: 0.825299095 | I70: 0.2792360665 | J70: -0.2695289518 | N70: 0.1033446638 | O70: -0.3104882144
B71: =(dat!A70-0.25)*COS(RADIANS($R$2))+dat!B70*SIN(RADIANS($R$2))+0.25 -> 0.1793168436 | C71: =-(dat!A70-0.25)*SIN(RADIANS($R$2))+dat!B70*COS(RADIANS($R$2)) -> -0.01435995067 | D71: =dat!C70-RADIANS($R$2) -> 4.556888417 | E71: =interpolation1D($R$2,aXFOIL,XFOIL!D74:AU74) -> 0.5758991241 | N71: 0.1347207581 | O71: -0.2988351507
B72: =(dat!A71-0.25)*COS(RADIANS($R$2))+dat!B71*SIN(RADIANS($R$2))+0.25 -> 0.2055684831 | C72: =-(dat!A71-0.25)*SIN(RADIANS($R$2))+dat!B71*COS(RADIANS($R$2)) -> -0.01836121411 | D72: =dat!C71-RADIANS($R$2) -> 4.563887588 | E72: =interpolation1D($R$2,aXFOIL,XFOIL!D75:AU75) -> 0.5489947796 | G72: 0.3234400703 | H72: 0.0857374117 | I72: 0.3403176608 | J72: -0.03786052663 | N72: 0.1649548963 | O72: -0.2898374627
B73: =(dat!A72-0.25)*COS(RADIANS($R$2))+dat!B72*SIN(RADIANS($R$2))+0.25 -> 0.2322452468 | C73: =-(dat!A72-0.25)*SIN(RADIANS($R$2))+dat!B72*COS(RADIANS($R$2)) -> -0.02227855315 | D73: =dat!C72-RADIANS($R$2) -> 4.568056593 | E73: =interpolation1D($R$2,aXFOIL,XFOIL!D76:AU76) -> 0.5266920924 | G73: 0.4405521627 | H73: 0.8716027489 | I73: 0.3065395326 | J73: -0.2663561543 | N73: 0.1943677133 | O73: -0.2828863668
B74: =(dat!A73-0.25)*COS(RADIANS($R$2))+dat!B73*SIN(RADIANS($R$2))+0.25 -> 0.2592189906 | C74: =-(dat!A73-0.25)*SIN(RADIANS($R$2))+dat!B73*COS(RADIANS($R$2)) -> -0.02615908236 | D74: =dat!C73-RADIANS($R$2) -> 4.56994392 | E74: =interpolation1D($R$2,aXFOIL,XFOIL!D77:AU77) -> 0.507717073 | N74: 0.2231802598 | O74: -0.2774465003
B75: =(dat!A74-0.25)*COS(RADIANS($R$2))+dat!B74*SIN(RADIANS($R$2))+0.25 -> 0.2863297976 | C75: =-(dat!A74-0.25)*SIN(RADIANS($R$2))+dat!B74*COS(RADIANS($R$2)) -> -0.03003518309 | D75: =dat!C74-RADIANS($R$2) -> 4.569963854 | E75: =interpolation1D($R$2,aXFOIL,XFOIL!D78:AU78) -> 0.4911406934 | G75: 0.2991707846 | H75: 0.08906749269 | I75: 0.3671217539 | J75: -0.04187015691 | N75: 0.2514725356 | O75: -0.2731190503
B76: =(dat!A75-0.25)*COS(RADIANS($R$2))+dat!B75*SIN(RADIANS($R$2))+0.25 -> 0.313385616 | C76: =-(dat!A75-0.25)*SIN(RADIANS($R$2))+dat!B75*COS(RADIANS($R$2)) -> -0.03392636865 | D76: =dat!C75-RADIANS($R$2) -> 4.568445873 | E76: =interpolation1D($R$2,aXFOIL,XFOIL!D79:AU79) -> 0.4761292636 | G76: 0.4026857589 | H76: 0.9169147997 | I76: 0.3335456781 | J76: -0.2631532311 | N76: 0.2792360665 | O76: -0.2695289518
B77: =(dat!A76-0.25)*COS(RADIANS($R$2))+dat!B76*SIN(RADIANS($R$2))+0.25 -> 0.3403176608 | C77: =-(dat!A76-0.25)*SIN(RADIANS($R$2))+dat!B76*COS(RADIANS($R$2)) -> -0.03786052663 | D77: =dat!C76-RADIANS($R$2) -> 4.565623584 | E77: =interpolation1D($R$2,aXFOIL,XFOIL!D80:AU80) -> 0.4619576335 | N77: 0.3065395326 | O77: -0.2663561543
B78: =(dat!A77-0.25)*COS(RADIANS($R$2))+dat!B77*SIN(RADIANS($R$2))+0.25 -> 0.3671217539 | C78: =-(dat!A77-0.25)*SIN(RADIANS($R$2))+dat!B77*COS(RADIANS($R$2)) -> -0.04187015691 | D78: =dat!C77-RADIANS($R$2) -> 4.56180402 | E78: =interpolation1D($R$2,aXFOIL,XFOIL!D81:AU81) -> 0.4476317763 | G78: 0.2749707399 | H78: 0.09179733379 | I78: 0.3939205807 | J78: -0.04599387851 | N78: 0.3335456781 | O78: -0.2631532311
B79: =(dat!A78-0.25)*COS(RADIANS($R$2))+dat!B78*SIN(RADIANS($R$2))+0.25 -> 0.3939205807 | C79: =-(dat!A78-0.25)*SIN(RADIANS($R$2))+dat!B78*COS(RADIANS($R$2)) -> -0.04599387851 | D79: =dat!C78-RADIANS($R$2) -> 4.558802736 | E79: =interpolation1D($R$2,aXFOIL,XFOIL!D82:AU82) -> 0.4304872453 | G79: 0.3620856535 | H79: 0.9616726027 | I79: 0.3609919357 | J79: -0.2587038252 | N79: 0.3609919357 | O79: -0.2587038252
B80: =(dat!A79-0.25)*COS(RADIANS($R$2))+dat!B79*SIN(RADIANS($R$2))+0.25 -> 0.4208022924 | C80: =-(dat!A79-0.25)*SIN(RADIANS($R$2))+dat!B79*COS(RADIANS($R$2)) -> -0.05018016477 | D80: =dat!C79-RADIANS($R$2) -> 4.558779502 | E80: =interpolation1D($R$2,aXFOIL,XFOIL!D83:AU83) -> 0.4123808742 | N80: 0.389253898 | O80: -0.2539427599
B81: =(dat!A80-0.25)*COS(RADIANS($R$2))+dat!B80*SIN(RADIANS($R$2))+0.25 -> 0.4478490912 | C81: =-(dat!A80-0.25)*SIN(RADIANS($R$2))+dat!B80*COS(RADIANS($R$2)) -> -0.05434363192 | D81: =dat!C80-RADIANS($R$2) -> 4.560037049 | E81: =interpolation1D($R$2,aXFOIL,XFOIL!D84:AU84) -> 0.3994849622 | G81: 0.2508727562 | H81: 0.09390344096 | I81: 0.4208022924 | J81: -0.05018016477 | N81: 0.4175355253 | O81: -0.2517724709
B82: =(dat!A81-0.25)*COS(RADIANS($R$2))+dat!B81*SIN(RADIANS($R$2))+0.25 -> 0.4750155461 | C82: =-(dat!A81-0.25)*SIN(RADIANS($R$2))+dat!B81*COS(RADIANS($R$2)) -> -0.05850417681 | D82: =dat!C81-RADIANS($R$2) -> 4.560558948 | E82: =interpolation1D($R$2,aXFOIL,XFOIL!D85:AU85) -> 0.3877040446 | G82: 0.3185388048 | H82: 1.00615117 | I82: 0.389253898 | J82: -0.2539427599 | N82: 0.4456959386 | O82: -0.2501261149
B83: =(dat!A82-0.25)*COS(RADIANS($R$2))+dat!B82*SIN(RADIANS($R$2))+0.25 -> 0.5022115584 | C83: =-(dat!A82-0.25)*SIN(RADIANS($R$2))+dat!B82*COS(RADIANS($R$2)) -> -0.06266150236 | D83: =dat!C82-RADIANS($R$2) -> 4.560566579 | E83: =interpolation1D($R$2,aXFOIL,XFOIL!D86:AU86) -> 0.3771538138 | N83: 0.4736912208 | O83: -0.249069228
B84: =(dat!A83-0.25)*COS(RADIANS($R$2))+dat!B83*SIN(RADIANS($R$2))+0.25 -> 0.5293948127 | C84: =-(dat!A83-0.25)*SIN(RADIANS($R$2))+dat!B83*COS(RADIANS($R$2)) -> -0.06682419214 | D84: =dat!C83-RADIANS($R$2) -> 4.560081912 | E84: =interpolation1D($R$2,aXFOIL,XFOIL!D87:AU87) -> 0.3673103452 | G84: 0.2269190584 | H84: 0.09536039024 | I84: 0.4478490912 | J84: -0.05434363192 | N84: 0.5015308528 | O84: -0.2483533142
B85: =(dat!A84-0.25)*COS(RADIANS($R$2))+dat!B84*SIN(RADIANS($R$2))+0.25 -> 0.556533107 | C85: =-(dat!A84-0.25)*SIN(RADIANS($R$2))+dat!B84*COS(RADIANS($R$2)) -> -0.07099963752 | D85: =dat!C84-RADIANS($R$2) -> 4.559182527 | E85: =interpolation1D($R$2,aXFOIL,XFOIL!D88:AU88) -> 0.3579835892 | G85: 0.2717511662 | H85: 1.050769463 | I85: 0.4175355253 | J85: -0.2517724709 | N85: 0.5292175618 | O85: -0.2478948707
B86: =(dat!A85-0.25)*COS(RADIANS($R$2))+dat!B85*SIN(RADIANS($R$2))+0.25 -> 0.5836245361 | C86: =-(dat!A85-0.25)*SIN(RADIANS($R$2))+dat!B85*COS(RADIANS($R$2)) -> -0.07519816466 | D86: =dat!C85-RADIANS($R$2) -> 4.557923319 | E86: =interpolation1D($R$2,aXFOIL,XFOIL!D89:AU89) -> 0.3489887714 | N86: 0.5567782007 | O86: -0.2476149995
B87: =(dat!A86-0.25)*COS(RADIANS($R$2))+dat!B86*SIN(RADIANS($R$2))+0.25 -> 0.6106718191 | C87: =-(dat!A86-0.25)*SIN(RADIANS($R$2))+dat!B86*COS(RADIANS($R$2)) -> -0.07942936869 | D87: =dat!C86-RADIANS($R$2) -> 4.556359221 | E87: =interpolation1D($R$2,aXFOIL,XFOIL!D90:AU90) -> 0.3401638567 | G87: 0.203167416 | H87: 0.09614044913 | I87: 0.4750155461 | J87: -0.05850417681 | N87: 0.5842415244 | O87: -0.2474451473
B88: =(dat!A87-0.25)*COS(RADIANS($R$2))+dat!B87*SIN(RADIANS($R$2))+0.25 -> 0.6376796682 | C88: =-(dat!A87-0.25)*SIN(RADIANS($R$2))+dat!B87*COS(RADIANS($R$2)) -> -0.08370150033 | D88: =dat!C87-RADIANS($R$2) -> 4.554543972 | E88: =interpolation1D($R$2,aXFOIL,XFOIL!D91:AU91) -> 0.3313886225 | G88: 0.221295792 | H88: 1.096050992 | I88: 0.4456959386 | J88: -0.2501261149 | N88: 0.6116341179 | O88: -0.247335953
B89: =(dat!A88-0.25)*COS(RADIANS($R$2))+dat!B88*SIN(RADIANS($R$2))+0.25 -> 0.6646526511 | C89: =-(dat!A88-0.25)*SIN(RADIANS($R$2))+dat!B88*COS(RADIANS($R$2)) -> -0.08802145789 | D89: =dat!C88-RADIANS($R$2) -> 4.552523903 | E89: =interpolation1D($R$2,aXFOIL,XFOIL!D92:AU92) -> 0.322552681 | N89: 0.638979876 | O89: -0.2472413267
B90: =(dat!A89-0.25)*COS(RADIANS($R$2))+dat!B89*SIN(RADIANS($R$2))+0.25 -> 0.6915955645 | C90: =-(dat!A89-0.25)*SIN(RADIANS($R$2))+dat!B89*COS(RADIANS($R$2)) -> -0.0923949617 | D90: =dat!C89-RADIANS($R$2) -> 4.5503402 | E90: =interpolation1D($R$2,aXFOIL,XFOIL!D93:AU93) -> 0.3135611117 | G90: 0.1796994551 | H90: 0.09621440597 | I90: 0.5022115584 | J90: -0.06266150236 | N90: 0.6663005139 | O90: -0.2471215047
B91: =(dat!A90-0.25)*COS(RADIANS($R$2))+dat!B90*SIN(RADIANS($R$2))+0.25 -> 0.7185131012 | C91: =-(dat!A90-0.25)*SIN(RADIANS($R$2))+dat!B90*COS(RADIANS($R$2)) -> -0.09682669323 | D91: =dat!C90-RADIANS($R$2) -> 4.548038162 | E91: =interpolation1D($R$2,aXFOIL,XFOIL!D94:AU94) -> 0.3043012619 | G91: 0.1665631717 | H91: 1.142785119 | I91: 0.4736912208 | J91: -0.249069228 | N91: 0.6936194425 | O91: -0.2469270605
B92: =(dat!A91-0.25)*COS(RADIANS($R$2))+dat!B91*SIN(RADIANS($R$2))+0.25 -> 0.7454099269 | C92: =-(dat!A91-0.25)*SIN(RADIANS($R$2))+dat!B91*COS(RADIANS($R$2)) -> -0.1013199024 | D92: =dat!C91-RADIANS($R$2) -> 4.545657942 | E92: =interpolation1D($R$2,aXFOIL,XFOIL!D95:AU95) -> 0.2947050333 | N92: 0.7209553605 | O92: -0.2466290155
B93: =(dat!A92-0.25)*COS(RADIANS($R$2))+dat!B92*SIN(RADIANS($R$2))+0.25 -> 0.7722901536 | C93: =-(dat!A92-0.25)*SIN(RADIANS($R$2))+dat!B92*COS(RADIANS($R$2)) -> -0.1058770185 | D93: =dat!C92-RADIANS($R$2) -> 4.543236264 | E93: =interpolation1D($R$2,aXFOIL,XFOIL!D96:AU96) -> 0.2846564949 | G93: 0.1566394744 | H93: 0.0955535153 | I93: 0.5293948127 | J93: -0.06682419214 | N93: 0.7483295891 | O93: -0.2461739229
B94: =(dat!A93-0.25)*COS(RADIANS($R$2))+dat!B93*SIN(RADIANS($R$2))+0.25 -> 0.7991572389 | C94: =-(dat!A93-0.25)*SIN(RADIANS($R$2))+dat!B93*COS(RADIANS($R$2)) -> -0.1104991211 | D94: =dat!C93-RADIANS($R$2) -> 4.540814078 | E94: =interpolation1D($R$2,aXFOIL,XFOIL!D97:AU97) -> 0.2740592659 | G94: 0.1066618857 | H94: 1.192124628 | I94: 0.5015308528 | J94: -0.2483533142 | N94: 0.7757615752 | O94: -0.2455167615
B95: =(dat!A94-0.25)*COS(RADIANS($R$2))+dat!B94*SIN(RADIANS($R$2))+0.25 -> 0.8260121616 | C95: =-(dat!A94-0.25)*SIN(RADIANS($R$2))+dat!B94*COS(RADIANS($R$2)) -> -0.1151858911 | D95: =dat!C94-RADIANS($R$2) -> 4.538427336 | E95: =interpolation1D($R$2,aXFOIL,XFOIL!D98:AU98) -> 0.2627878487 | N95: 0.8032697722 | O95: -0.2445966599
B96: =(dat!A95-0.25)*COS(RADIANS($R$2))+dat!B95*SIN(RADIANS($R$2))+0.25 -> 0.8528465315 | C96: =-(dat!A95-0.25)*SIN(RADIANS($R$2))+dat!B95*COS(RADIANS($R$2)) -> -0.1199343733 | D96: =dat!C95-RADIANS($R$2) -> 4.536113291 | E96: =interpolation1D($R$2,aXFOIL,XFOIL!D99:AU99) -> 0.250682056 | G96: 0.1341889874 | H96: 0.09413582319 | I96: 0.556533107 | J96: -0.07099963752 | N96: 0.8308662023 | O96: -0.2433330703
B97: =(dat!A96-0.25)*COS(RADIANS($R$2))+dat!B96*SIN(RADIANS($R$2))+0.25 -> 0.8796193845 | C97: =-(dat!A96-0.25)*SIN(RADIANS($R$2))+dat!B96*COS(RADIANS($R$2)) -> -0.1247346694 | D97: =dat!C96-RADIANS($R$2) -> 4.533913844 | E97: =interpolation1D($R$2,aXFOIL,XFOIL!D100:AU100) -> 0.2375342846 | G97: 0.04034220745 | H97: 1.245590488 | I97: 0.5292175618 | J97: -0.2478948707 | N97: 0.858534756 | O97: -0.2416152603
B98: =(dat!A97-0.25)*COS(RADIANS($R$2))+dat!B97*SIN(RADIANS($R$2))+0.25 -> 0.9061779494 | C98: =-(dat!A97-0.25)*SIN(RADIANS($R$2))+dat!B97*COS(RADIANS($R$2)) -> -0.1295551483 | D98: =dat!C97-RADIANS($R$2) -> 4.53188415 | E98: =interpolation1D($R$2,aXFOIL,XFOIL!D101:AU101) -> 0.2230422497 | N98: 0.8861569829 | O98: -0.2392644104
B99: =(dat!A98-0.25)*COS(RADIANS($R$2))+dat!B98*SIN(RADIANS($R$2))+0.25 -> 0.932018177 | C99: =-(dat!A98-0.25)*SIN(RADIANS($R$2))+dat!B98*COS(RADIANS($R$2)) -> -0.1342972214 | D99: =dat!C98-RADIANS($R$2) -> 4.530099964 | E99: =interpolation1D($R$2,aXFOIL,XFOIL!D102:AU102) -> 0.2071146816 | G99: 0.1126826373 | H99: 0.09196392434 | I99: 0.5836245361 | J99: -0.07519816466 | N99: 0.9132451845 | O99: -0.2361387531
B100: =(dat!A99-0.25)*COS(RADIANS($R$2))+dat!B99*SIN(RADIANS($R$2))+0.25 -> 0.9558282125 | C100: =-(dat!A99-0.25)*SIN(RADIANS($R$2))+dat!B99*COS(RADIANS($R$2)) -> -0.1387080293 | D100: =dat!C99-RADIANS($R$2) -> 4.528637159 | E100: =interpolation1D($R$2,aXFOIL,XFOIL!D103:AU103) -> 0.188650161 | G100: -0.0340560283 | H100: 1.305218356 | I100: 0.5567782007 | J100: -0.2476149995 | N100: 0.93859318 | O100: -0.2314451549
B101: =(dat!A100-0.25)*COS(RADIANS($R$2))+dat!B100*SIN(RADIANS($R$2))+0.25 -> 0.9755975883 | C101: =-(dat!A100-0.25)*SIN(RADIANS($R$2))+dat!B100*COS(RADIANS($R$2)) -> -0.1423972861 | D101: =dat!C100-RADIANS($R$2) -> 4.527651359 | E101: =interpolation1D($R$2,aXFOIL,XFOIL!D104:AU104) -> 0.1752669066 | N101: 0.9595003197 | O101: -0.2285396107
B102: =(dat!A101-0.25)*COS(RADIANS($R$2))+dat!B101*SIN(RADIANS($R$2))+0.25 -> 0.9859799683 | C102: =-(dat!A101-0.25)*SIN(RADIANS($R$2))+dat!B101*COS(RADIANS($R$2)) -> -0.1443435968 | D102: =dat!C101-RADIANS($R$2) -> 4.527076904 | E102: =interpolation1D($R$2,aXFOIL,XFOIL!D105:AU105) -> 0.1220343783 | G102: 0.09264696164 | H102: 0.08909999299 | I102: 0.6106718191 | J102: -0.07942936869 | N102: 0.9747373513 | O102: -0.2043160983
G103: -0.118568878 | H103: 1.373130369 | I103: 0.5842415244 | J103: -0.2474451473
G105: 0.07476007745 | H105: 0.08570784814 | I105: 0.6376796682 | J105: -0.08370150033
G106: -0.2154811958 | H106: 1.450528089 | I106: 0.6116341179 | J106: -0.247335953
G108: 0.05958876715 | H108: 0.08204517703 | I108: 0.6646526511 | J108: -0.08802145789
G109: -0.3272404964 | H109: 1.536499831 | I109: 0.638979876 | J109: -0.2472413267
G111: 0.04726373892 | H111: 0.07836671967 | I111: 0.6915955645 | J111: -0.0923949617
G112: -0.4563823594 | H112: 1.627751244 | I112: 0.6663005139 | J112: -0.2471215047
G114: 0.03747012728 | H114: 0.07482770724 | I114: 0.7185131012 | J114: -0.09682669323
G115: -0.6057240163 | H115: 1.719471244 | I115: 0.6936194425 | J115: -0.2469270605
G117: 0.02970347997 | H117: 0.07147434266 | I117: 0.7454099269 | J117: -0.1013199024
G118: -0.7790390224 | H118: 1.806296198 | I118: 0.7209553605 | J118: -0.2466290155
G120: 0.02349801594 | H120: 0.06829182928 | I120: 0.7722901536 | J120: -0.1058770185
G121: -0.9816088051 | H121: 1.881083143 | I121: 0.7483295891 | J121: -0.2461739229
G123: 0.01849161994 | H123: 0.0652368664 | I123: 0.7991572389 | J123: -0.1104991211
G124: -1.218390632 | H124: 1.931480614 | I124: 0.7757615752 | J124: -0.2455167615
G126: 0.01443355214 | H126: 0.06226263727 | I126: 0.8260121616 | J126: -0.1151858911
G127: -1.489705583 | H127: 1.937156906 | I127: 0.8032697722 | J127: -0.2445966599
G129: 0.01116877652 | H129: 0.05933723801 | I129: 0.8528465315 | J129: -0.1199343733
G130: -1.791858338 | H130: 1.871994175 | I130: 0.8308662023 | J130: -0.2433330703
G132: 0.008585937191 | H132: 0.05641344874 | I132: 0.8796193845 | J132: -0.1247346694
G133: -2.087162492 | H133: 1.690062544 | I133: 0.858534756 | J133: -0.2416152603
G135: 0.00663391526 | H135: 0.05346779207 | I135: 0.9061779494 | J135: -0.1295551483
G136: -2.312124106 | H136: 1.351333831 | I136: 0.8861569829 | J136: -0.2392644104
G138: 0.005320529777 | H138: 0.05056302916 | I138: 0.932018177 | J138: -0.1342972214
G139: -2.336310401 | H139: 0.9277864945 | I139: 0.9132451845 | J139: -0.2361387531
G141: 0.004593204138 | H141: 0.04770224884 | I141: 0.9558282125 | J141: -0.1387080293
G142: -2.179652654 | H142: 0.2101813837 | I142: 0.93859318 | J142: -0.2314451549
G144: 0.00442633888 | H144: 0.04472702499 | I144: 0.9755975883 | J144: -0.1423972861
G145: -1.692807197 | H145: -0.07665179882 | I145: 0.9595003197 | J145: -0.2285396107
G147: 0.004930175985 | H147: 0.0415750782 | I147: 0.9859799683 | J147: -0.1443435968
G148: -1.021365952 | H148: -0.2542441185 | I148: 0.9747373513 | J148: -0.2043160983
G150: 0.006193347324 | H150: 0.03837587538
G151: -0.404068631 | H151: -0.1770080452
G153: 0.00821458929 | H153: 0.03523611805
G154: -0.00786626277 | H154: 0.02275151633

Sheet dat
A1: NACA4412
A2: 1 | B2: 0.00126 | C2: =ATAN(SLOPE(B2:B3,A2:A3))+IF(A3-A2<0,PI()/2,3*PI()/2) -> 1.305234325
A3: 0.9898572 | B3: 0.0040187 | C3: =ATAN(SLOPE(B2:B4,A2:A4))+IF(A4-A2<0,PI()/2,3*PI()/2) -> 1.30878526
A4: 0.9707802 | B4: 0.0091032 | C4: =ATAN(SLOPE(B3:B5,A3:A5))+IF(A5-A3<0,PI()/2,3*PI()/2) -> 1.314530782
A5: 0.9480415 | B5: 0.0149804 | C5: =ATAN(SLOPE(B4:B6,A4:A6))+IF(A6-A4<0,PI()/2,3*PI()/2) -> 1.322302991
A6: 0.9234109 | B6: 0.0211254 | C6: 1.330776675
A7: 0.898042 | B7: 0.0272183 | C7: 1.339548439
A8: 0.8723977 | B8: 0.0331374 | C8: 1.34839432
A9: 0.8466311 | B9: 0.0388447 | C9: 1.357240237
A10: 0.8207928 | B10: 0.0443287 | C10: 1.366079474
A11: 0.7949018 | B11: 0.0495851 | C11: 1.374929787
A12: 0.7689677 | B12: 0.0546114 | C12: 1.383814177
A13: 0.7429972 | B13: 0.0594051 | C13: 1.392759283
A14: 0.7169963 | B14: 0.0639633 | C14: 1.401794306
A15: 0.6909707 | B15: 0.0682824 | C15: 1.410950598
A16: 0.6649264 | B16: 0.0723581 | C16: 1.420262444
A17: 0.6388695 | B17: 0.0761852 | C17: 1.429763424
A18: 0.6128062 | B18: 0.0797579 | C18: 1.439490161
A19: 0.5867433 | B19: 0.0830693 | C19: 1.44947982
A20: 0.5606879 | B20: 0.0861119 | C20: 1.459770154
A21: 0.5346471 | B21: 0.0888772 | C21: 1.470405986
A22: 0.5086319 | B22: 0.0913554 | C22: 1.48143872
A23: 0.4826465 | B23: 0.0935362 | C23: 1.49289115
A24: 0.4567249 | B24: 0.0954073 | C24: 1.504885656
A25: 0.4308676 | B25: 0.0969538 | C25: 1.517205486
A26: 0.4052039 | B26: 0.0981706 | C26: 1.531365629
A27: 0.3800083 | B27: 0.098959 | C27: 1.549530611
A28: 0.3551036 | B28: 0.0992352 | C28: 1.570421204
A29: 0.3303465 | B29: 0.0989771 | C29: 1.592251951
A30: 0.3057313 | B30: 0.0981752 | C30: 1.614848132
A31: 0.2812725 | B31: 0.0968133 | C31: 1.638387039
A32: 0.2569962 | B32: 0.0948754 | C32: 1.662968901
A33: 0.2329391 | B33: 0.0923447 | C33: 1.688743053
A34: 0.2091475 | B34: 0.0892043 | C34: 1.715892425
A35: 0.1856834 | B35: 0.085438 | C35: 1.744654533
A36: 0.1626325 | B36: 0.0810327 | C36: 1.775333625
A37: 0.1401223 | B37: 0.0759839 | C37: 1.808327267
A38: 0.1183548 | B38: 0.0703085 | C38: 1.844105595
A39: 0.097658 | B39: 0.0640729 | C39: 1.883144258
A40: 0.0785369 | B40: 0.0574386 | C40: 1.925816949
A41: 0.0616259 | B41: 0.0506958 | C41: 1.972320039
A42: 0.0474322 | B42: 0.0442056 | C42: 2.022726677
A43: 0.0360355 | B43: 0.038243 | C43: 2.077070558
A44: 0.0270971 | B44: 0.0329003 | C44: 2.135579359
A45: 0.020113 | B45: 0.0281266 | C45: 2.199011534
A46: 0.0146288 | B46: 0.0238185 | C46: 2.269037814
A47: 0.0102973 | B47: 0.0198644 | C47: 2.34807958
A48: 0.0068813 | B48: 0.0161705 | C48: 2.438895623
A49: 0.0042347 | B49: 0.0126759 | C49: 2.545517367
A50: 0.0022572 | B50: 0.009313 | C50: 2.671459605
A51: 0.0009031 | B51: 0.006049 | C51: =AVERAGE(C50,C52) -> 2.823300183
A52: 0.0001681 | B52: 0.002947 | C52: =ATAN(SLOPE(B51:B53,A51:A53))+IF(A53-A51<0,PI()/2,3*PI()/2) -> 2.975140762
A53: 0 | B53: 0 | C53: 3.259328787
A54: 0.0004039 | B54: -0.0029524 | C54: 3.40497301
A55: 0.0014999 | B55: -0.0059503 | C55: 3.614211704
A56: 0.0033503 | B56: -0.0088497 | C56: 3.81701896
A57: 0.0059335 | B57: -0.0115461 | C57: 3.993740819
A58: 0.0092501 | B58: -0.0140449 | C58: 4.137987591
A59: 0.0133371 | B59: -0.0163613 | C59: 4.254292952
A60: 0.0183044 | B60: -0.0185283 | C60: 4.34865448
A61: 0.0243653 | B61: -0.0205771 | C61: 4.426922512
A62: 0.0318491 | B62: -0.0225217 | C62: 4.493271099
A63: 0.0412397 | B63: -0.0243551 | C63: 4.550347943
A64: 0.0531846 | B64: -0.0260324 | C64: 4.599553199
A65: 0.0683206 | B65: -0.0274483 | C65: 4.64128923
A66: 0.0869071 | B66: -0.0284564 | C66: 4.675560758
A67: 0.1085159 | B67: -0.0289451 | C67: 4.702665499
A68: 0.132274 | B68: -0.0289062 | C68: 4.72327033
A69: 0.1573892 | B69: -0.0284173 | C69: 4.738320055
A70: 0.1833555 | B70: -0.0275831 | C70: 4.748874634
A71: 0.2098883 | B71: -0.0265018 | C71: 4.755873805
A72: 0.2368224 | B72: -0.025257 | C72: 4.760042811
A73: 0.264041 | B73: -0.0239194 | C73: 4.761930138
A74: 0.2913933 | B74: -0.0225513 | C74: 4.761950072
A75: 0.3186945 | B75: -0.0212085 | C75: 4.760432091
A76: 0.3458824 | B76: -0.0199315 | C76: 4.757609802
A77: 0.3729591 | B77: -0.018753 | C77: 4.753790238
A78: 0.4000524 | B78: -0.0176875 | C78: 4.750788954
A79: 0.427239 | B79: -0.0166676 | C79: 4.75076572
A80: 0.4545833 | B80: -0.0155938 | C80: 4.752023266
A81: 0.4820445 | B81: -0.0144943 | C81: 4.752545165
A82: 0.5095341 | B82: -0.013386 | C82: 4.752552797
A83: 0.5370122 | B83: -0.0122854 | C83: 4.75206813
A84: 0.5644486 | B84: -0.0112059 | C84: =ATAN(SLOPE(B83:B85,A83:A85))+IF(A85-A83<0,PI()/2,3*PI()/2) -> 4.751168745
A85: 0.5918434 | B85: -0.010158 | C85: 4.749909537
A86: 0.6192011 | B86: -0.0091506 | C86: 4.748345439
A87: 0.6465279 | B87: -0.0081909 | C87: 4.74653019
A88: 0.6738296 | B88: -0.0072848 | C88: 4.744510121
A89: 0.701112 | B89: -0.006437 | C89: 4.742326417
A90: 0.7283806 | B90: -0.0056512 | C90: 4.74002438
A91: 0.7556406 | B91: -0.0049297 | C91: 4.73764416
A92: 0.7828965 | B92: -0.0042741 | C92: 4.735222482
A93: 0.8101519 | B93: -0.0036848 | C93: 4.732800296
A94: 0.8374077 | B94: -0.0031613 | C94: 4.730413553
A95: 0.8646551 | B95: -0.0027023 | C95: 4.728099509
A96: 0.891852 | B96: -0.0023059 | C96: 4.725900062
A97: 0.9188424 | B97: -0.0019702 | C97: 4.723870368
A98: 0.9451127 | B98: -0.0016946 | C98: 4.722086182
A99: 0.9693269 | B99: -0.0014812 | C99: 4.720623377
A100: 0.989437 | B100: -0.0013305 | C100: 4.719637577
A101: 1 | B101: -0.00126 | C101: =ATAN(SLOPE(B100:B101,A100:A101))+IF(A101-A100<0,PI()/2,3*PI()/2) -> 4.719063122

Sheet XFOIL
C1: alpha | D1: -15 | E1: -14 | F1: -13 | G1: -12 | H1: -11 | I1: -10 | J1: -9 | K1: -8 | L1: -7 | M1: -6 | N1: -5 | O1: -4.239134267 | P1: -4 | Q1: -3 | R1: -2 | S1: -1 | T1: -0.09433934981 | U1: 0 | V1: 1 | W1: 2 | X1: 3 | Y1: 4 | Z1: 4.841267334 | AA1: 5 | AB1: 6 | AC1: 7 | AD1: 8 | AE1: 9 | AF1: 10 | AG1: 11 | AH1: 12 | AI1: 13 | AJ1: 14 | AK1: 15 | AL1: 16 | AM1: 17 | AN1: 18 | AO1: 19 | AP1: 20 | AQ1: 21 | AR1: 22 | AS1: 23 | AT1: 24 | AU1: 25
C2: cl | D2: -1.166602969 | E2: -1.073224306 | F2: -0.9733691216 | G2: -0.8697683811 | H2: -0.7625825405 | I2: -0.65289253 | J2: -0.541631341 | K2: -0.4289727807 | L2: -0.3156034648 | M2: -0.2017461061 | N2: -0.08742696792 | O2: 1.963954492e-05 | P2: 0.02724120952 | Q2: 0.1423822194 | R2: 0.2574331164 | S2: 0.3730720282 | T2: 0.5018280149 | U2: 0.5132216215 | V2: 0.5784952641 | W2: 0.6910450459 | X2: 0.8024476767 | Y2: 0.9123848677 | Z2: 1.002407074 | AA2: 1.016531467 | AB2: 1.125791073 | AC2: 1.230735779 | AD2: 1.332773685 | AE2: 1.431103468 | AF2: 1.524467587 | AG2: 1.610345125 | AH2: 1.678101778 | AI2: 1.739367723 | AJ2: 1.794975042 | AK2: 1.840648651 | AL2: 1.876902938 | AM2: 1.900319576 | AN2: 1.914041638 | AO2: 1.911802053 | AP2: 1.89786768 | AQ2: 1.863943934 | AR2: 1.823723197 | AS2: 1.767402172 | AT2: 1.715647459 | AU2: 1.665116429
C3: cd | D3: 0.01702493429 | E3: 0.01472065505 | F3: 0.01285697985 | G3: 0.01135755144 | H3: 0.01011037454 | I3: 0.009067724459 | J3: 0.008223162033 | K3: 0.007524242159 | L3: 0.006980795413 | M3: 0.006570527796 | N3: 0.00627111271 | O3: 0.006082179025 | P3: 0.006059931591 | Q3: 0.005903606303 | R3: 0.005830236245 | S3: 0.005759829655 | T3: 0.005759829655 | U3: 0.005759829655 | V3: 0.007637436036 | W3: 0.00781684462 | X3: 0.007953417487 | Y3: 0.008051019162 | Z3: 0.008100423962 | AA3: 0.008066321723 | AB3: 0.008682197891 | AC3: 0.009430577978 | AD3: 0.01027747709 | AE3: 0.01123464014 | AF3: 0.01232226938 | AG3: 0.01356778014 | AH3: 0.0150491409 | AI3: 0.01700541936 | AJ3: 0.01956699602 | AK3: 0.02307774872 | AL3: 0.02777194232 | AM3: 0.03420540318 | AN3: 0.04251680523 | AO3: 0.05347776785 | AP3: 0.0665416345 | AQ3: 0.0829770565 | AR3: 0.1008322462 | AS3: 0.1219922379 | AT3: 0.1432264745 | AU3: 0.1653392762
C4: cm | D4: -0.1049716547 | E4: -0.1036564335 | F4: -0.1027953252 | G4: -0.1021174416 | H4: -0.1017957553 | I4: -0.1017163098 | J4: -0.1017599404 | K4: -0.1019457206 | L4: -0.1021859571 | M4: -0.1024671495 | N4: -0.1028082892 | O4: -0.1031454131 | P4: -0.1032055616 | Q4: -0.1036922634 | R4: -0.1041806489 | S4: -0.1047961786 | T4: -0.1110479087 | U4: -0.1111980528 | V4: -0.1017806083 | W4: -0.1020140797 | X4: -0.1021816954 | Y4: -0.1022095308 | Z4: -0.1017219052 | AA4: -0.1009250581 | AB4: -0.1008131728 | AC4: -0.09995413572 | AD4: -0.09867785126 | AE4: -0.09685333073 | AF4: -0.09427132457 | AG4: -0.09049003571 | AH4: -0.08350264281 | AI4: -0.07639455795 | AJ4: -0.06956579536 | AK4: -0.06280802935 | AL4: -0.05667301267 | AM4: -0.05146377161 | AN4: -0.04787653312 | AO4: -0.04600376263 | AP4: -0.04580130801 | AQ4: -0.04775149003 | AR4: -0.05147229135 | AS4: -0.05828987062 | AT4: -0.06743913889 | AU4: -0.07963433862
A5: x | B5: y | C5: z | D5: Cp | E5: Cp | F5: Cp | G5: Cp | H5: Cp | I5: Cp | J5: Cp | K5: Cp | L5: Cp | M5: Cp | N5: Cp | O5: Cp | P5: Cp | Q5: Cp | R5: Cp | S5: Cp | T5: Cp | U5: Cp | V5: Cp | W5: Cp | X5: Cp | Y5: Cp | Z5: Cp | AA5: Cp | AB5: Cp | AC5: Cp | AD5: Cp | AE5: Cp | AF5: Cp | AG5: Cp | AH5: Cp | AI5: Cp | AJ5: Cp | AK5: Cp | AL5: Cp | AM5: Cp | AN5: Cp | AO5: Cp | AP5: Cp | AQ5: Cp | AR5: Cp | AS5: Cp | AT5: Cp | AU5: Cp
A6: 1 | D6: 0.1782885343 | E6: 0.1917744875 | F6: 0.20143722 | G6: 0.2082351893 | H6: 0.213374719 | I6: 0.2171937525 | J6: 0.2198173106 | K6: 0.2216575742 | L6: 0.2226848602 | M6: 0.2230498791 | N6: 0.2229466289 | O6: 0.2228215784 | P6: 0.2225328237 | Q6: 0.2220846564 | R6: 0.2213481963 | S6: 0.2209916413 | T6: 0.409496516 | U6: 0.4096308947 | V6: 0.2007949501 | W6: 0.1981646866 | X6: 0.1950673908 | Y6: 0.1912878603 | Z6: 0.1878322065 | AA6: 0.1884008646 | AB6: 0.1819288731 | AC6: 0.1752192378 | AD6: 0.1667837948 | AE6: 0.1560081095 | AF6: 0.1417857111 | AG6: 0.1220343783 | AH6: 0.07952911407 | AI6: 0.04309779406 | AJ6: 0.009230912663 | AK6: -0.02644352987 | AL6: -0.0621737875 | AM6: -0.09914030135 | AN6: -0.1349436045 | AO6: -0.1708884388 | AP6: -0.2040601373 | AQ6: -0.237893343 | AR6: -0.269382596 | AS6: -0.3045979738 | AT6: -0.3411574066 | AU6: -0.3834248185
A7: 0.9898571968 | D7: 0.1459159404 | E7: 0.1557157338 | F7: 0.159255296 | G7: 0.1607189178 | H7: 0.1622970402 | I7: 0.163551569 | J7: 0.1645448804 | K7: 0.1652769148 | L7: 0.1659952104 | M7: 0.1667179763 | N7: 0.1674042493 | O7: 0.1678691357 | P7: 0.168072626 | Q7: 0.168712914 | R7: 0.1694269627 | S7: 0.170201689 | T7: 0.1887447089 | U7: 0.1886780411 | V7: 0.1663351506 | W7: 0.1655407846 | X7: 0.1645032465 | Y7: 0.162998125 | Z7: 0.1616343707 | AA7: 0.1626726687 | AB7: 0.1587614566 | AC7: 0.1549461335 | AD7: 0.1496413499 | AE7: 0.1422662437 | AF7: 0.1318099946 | AG7: 0.1164475307 | AH7: 0.08057879657 | AI7: 0.04112457111 | AJ7: 0.006589104887 | AK7: -0.0294420477 | AL7: -0.06541308016 | AM7: -0.1025577933 | AN7: -0.138463676 | AO7: -0.174419865 | AP7: -0.2074711919 | AQ7: -0.2411013395 | AR7: -0.2723540962 | AS7: -0.3073263764 | AT7: -0.3436775506 | AU7: -0.3857729733
A8: 0.9707801938 | D8: 0.07502483577 | E8: 0.1063518301 | F8: 0.1102942601 | G8: 0.1070811152 | H8: 0.1041208133 | I8: 0.1015632227 | J8: 0.09919154644 | K8: 0.09692055732 | L8: 0.09502361715 | M8: 0.09354581684 | N8: 0.09243800491 | O8: 0.09170201421 | P8: 0.0917024985 | Q8: 0.0912007466 | R8: 0.09123510122 | S8: 0.09135678411 | T8: 0.09131034464 | U8: 0.09105077386 | V8: 0.1023130193 | W8: 0.1033261195 | X8: 0.1046352983 | Y8: 0.1060463786 | Z8: 0.1076143309 | AA8: 0.1093457118 | AB8: 0.1093887314 | AC8: 0.1103151515 | AD8: 0.1104605272 | AE8: 0.1093127206 | AF8: 0.1060385033 | AG8: 0.09927657247 | AH8: 0.08662951738 | AI8: 0.0387339592 | AJ8: 0.001939916983 | AK8: -0.0349570252 | AL8: -0.071460329 | AM8: -0.1089937538 | AN8: -0.1451267302 | AO8: -0.1811416596 | AP8: -0.2139872462 | AQ8: -0.2472418994 | AR8: -0.2780434787 | AS8: -0.3125475645 | AT8: -0.3484948874 | AU8: -0.3902556002
A9: 0.9480414987 | D9: 0.06327911466 | E9: 0.05499916524 | F9: 0.07222365588 | G9: 0.0716278255 | H9: 0.06405033171 | I9: 0.05749529228 | J9: 0.05155405775 | K9: 0.04604844749 | L9: 0.04107073322 | M9: 0.03664623201 | N9: 0.03273548186 | O9: 0.02996581234 | P9: 0.02934681065 | Q9: 0.0263421759 | R9: 0.0240473561 | S9: 0.02196174115 | T9: 0.01333776116 | U9: 0.01287004538 | V9: 0.03532319888 | W9: 0.03610596433 | X9: 0.03771645576 | Y9: 0.04005945101 | Z9: 0.04297020659 | AA9: 0.04501914233 | AB9: 0.04750296101 | AC9: 0.0518152155 | AD9: 0.05645604804 | AE9: 0.06107957661 | AF9: 0.06512566656 | AG9: 0.06779330969 | AH9: 0.06942899525 | AI9: 0.04227517173 | AJ9: -0.002786474535 | AK9: -0.04134109989 | AL9: -0.07863524556 | AM9: -0.1167279705 | AN9: -0.1531796306 | AO9: -0.1893236041 | AP9: -0.2219568491 | AQ9: -0.2547720671 | AR9: -0.2850208879 | AS9: -0.3189435303 | AT9: -0.3543848097 | AU9: -0.3957242072
A10: 0.9234108925 | D10: 0.04824151471 | E10: 0.0422071889 | F10: 0.02982448041 | G10: 0.0449269563 | H10: 0.03423140571 | I10: 0.02370462008 | J10: 0.01417561155 | K10: 0.005607768428 | L10: -0.002272211714 | M10: -0.009507285431 | N10: -0.01616046764 | O10: -0.02096280269 | P10: -0.02223410085 | Q10: -0.0278540533 | R10: -0.0327174589 | S10: -0.03729084879 | T10: -0.04908626899 | U10: -0.04975865781 | V10: -0.02721377462 | W10: -0.02799173445 | X10: -0.02762044966 | Y10: -0.02609095909 | Z10: -0.02345402911 | AA10: -0.02145928703 | AB10: -0.01859963126 | AC10: -0.01310388837 | AD10: -0.006182097364 | AE10: 0.002113216557 | AF10: 0.01164255012 | AG10: 0.02230825648 | AH10: 0.03701036423 | AI10: 0.03854558244 | AJ10: -0.005130890757 | AK10: -0.04791371152 | AL10: -0.08638383448 | AM10: -0.1252257675 | AN10: -0.1620845497 | AO10: -0.1984407157 | AP10: -0.2308889478 | AQ10: -0.263240993 | AR10: -0.2928710878 | AS10: -0.3261316121 | AT10: -0.3609903455 | AU10: -0.4018419683
A11: 0.8980420232 | D11: 0.03503611684 | E11: 0.02812000364 | F11: 0.01742254011 | G11: 0.002457706723 | H11: 0.01113474928 | I11: -0.001897219336 | J11: -0.0153075885 | K11: -0.02695399337 | L11: -0.03761885315 | M11: -0.04749352112 | N11: -0.05671993271 | O11: -0.06344081461 | P11: -0.06533258408 | Q11: -0.07345218956 | R11: -0.08080700785 | S11: -0.08782013506 | T11: -0.1019987687 | U11: -0.1028734371 | V11: -0.08289080858 | W11: -0.08580355346 | X11: -0.08742730319 | Y11: -0.08768565953 | Z11: -0.08632542193 | AA11: -0.08462612331 | AB11: -0.0828808248 | AC11: -0.0780319795 | AD11: -0.07099469006 | AE11: -0.06150435284 | AF11: -0.04921983182 | AG11: -0.03344777226 | AH11: -0.009025578387 | AI11: 0.009620926343 | AJ11: 0.003237272613 | AK11: -0.05373586714 | AL11: -0.09427289665 | AM11: -0.1340981424 | AN11: -0.1714690179 | AO11: -0.2081236988 | AP11: -0.2404401749 | AQ11: -0.2723378241 | AR11: -0.3013105392 | AS11: -0.3338523209 | AT11: -0.3680699766 | AU11: -0.4083813429
A12: 0.8723977208 | D12: 0.02488753386 | E12: 0.01593855955 | F12: 0.004366438836 | G12: -0.01009117346 | H12: -0.01994988322 | I12: -0.02232036367 | J12: -0.03862204775 | K12: -0.0536464639 | L12: -0.06716755033 | M12: -0.07959902287 | N12: -0.09127667546 | O12: -0.09982269257 | P12: -0.1023042351 | Q12: -0.1128093079 | R12: -0.1225516349 | S12: -0.1319165379 | T12: -0.1481937766 | U12: -0.1492684036 | V12: -0.1324800104 | W12: -0.1376969218 | X12: -0.1415808648 | Y12: -0.1440211236 | Z12: -0.1444163769 | AA12: -0.143089965 | AB12: -0.1432342529 | AC12: -0.1400854737 | AD12: -0.1343499571 | AE12: -0.1255295277 | AF12: -0.1128919944 | AG12: -0.0950530991 | AH12: -0.06509166211 | AI12: -0.0340212211 | AJ12: -0.01794620603 | AK12: -0.05606843159 | AL12: -0.1019757017 | AM12: -0.1431570351 | AN12: -0.1811873317 | AO12: -0.2182251215 | AP12: -0.2504801154 | AQ12: -0.2819540203 | AR12: -0.3102452159 | AS12: -0.3420214355 | AT12: -0.3755449653 | AU12: -0.4152668417
A13: 0.8466311097 | D13: 0.01755463891 | E13: 0.006383489817 | F13: -0.006989966612 | G13: -0.02190897241 | H13: -0.04077047482 | I13: -0.04764493182 | J13: -0.05711450428 | K13: -0.07549884915 | L13: -0.09226097912 | M13: -0.1072915047 | N13: -0.1213647053 | O13: -0.1316795349 | P13: -0.1347314566 | Q13: -0.1475469917 | R13: -0.1596045941 | S13: -0.1712586433 | T13: -0.1895760745 | U13: -0.1908500791 | V13: -0.1772492528 | W13: -0.18479985 | X13: -0.1910151541 | Y13: -0.1957691461 | Z13: -0.1980954409 | AA13: -0.1971722245 | AB13: -0.1995409876 | AC13: -0.1985887289 | AD13: -0.1948998123 | AE13: -0.1878494322 | AF13: -0.1764697731 | AG13: -0.1589207202 | AH13: -0.1272060722 | AI13: -0.08900540322 | AJ13: -0.05599210784 | AK13: -0.04930613935 | AL13: -0.1088823751 | AM13: -0.1522825211 | AN13: -0.1911840439 | AO13: -0.2286975831 | AP13: -0.2609739006 | AQ13: -0.2920739949 | AR13: -0.3196694851 | AS13: -0.3506375253 | AT13: -0.3834131956 | AU13: -0.4224943519
A14: 0.8207927942 | D14: 0.01259498298 | E14: -0.0007696839748 | F14: -0.01613977365 | G14: -0.03261999786 | H14: -0.05093641952 | I14: -0.07247024029 | J14: -0.07352428883 | K14: -0.09306681901 | L14: -0.1136736199 | M14: -0.1315463036 | N14: -0.1480332613 | O14: -0.16009444 | P14: -0.1637079269 | Q14: -0.1787947565 | R14: -0.1931281835 | S14: -0.2070382088 | T14: -0.2274079323 | U14: -0.2288822979 | V14: -0.2183145136 | W14: -0.2281936407 | X14: -0.2367512882 | Y14: -0.2438552529 | Z14: -0.248166278 | AA14: -0.2476538271 | AB14: -0.252376616 | AC14: -0.2538231611 | AD14: -0.252515763 | AE14: -0.2477823794 | AF14: -0.2385534793 | AG14: -0.2227712721 | AH14: -0.1920170188 | AI14: -0.1514079571 | AJ14: -0.1077841595 | AK14: -0.07531126589 | AL14: -0.1126229241 | AM14: -0.1613175273 | AN14: -0.2014112473 | AO14: -0.2395275682 | AP14: -0.2719157934 | AQ14: -0.3027124405 | AR14: -0.3296090066 | AS14: -0.3597296774 | AT14: -0.3917012811 | AU14: -0.4300861955
A15: 0.7949017882 | D15: 0.009689091705 | E15: -0.005801393185 | F15: -0.02319532633 | G15: -0.04152429476 | H15: -0.06104935333 | I15: -0.08182224631 | J15: -0.1066234931 | K15: -0.1082261726 | L15: -0.1316251159 | M15: -0.1529131234 | N15: -0.1719390154 | O15: -0.1857587248 | P15: -0.1899352968 | Q15: -0.2072847188 | R15: -0.2238821387 | S15: -0.2400401682 | T15: -0.2625009418 | U15: -0.264177978 | V15: -0.2564919591 | W15: -0.2686971724 | X15: -0.2796005905 | Y15: -0.2890678048 | Z15: -0.2953837812 | AA15: -0.2952786982 | AB15: -0.3024068475 | AC15: -0.3063284755 | AD15: -0.3075379431 | AE15: -0.3053604364 | AF15: -0.2987088263 | AG15: -0.2854748368 | AH15: -0.2572763562 | AI15: -0.2176648378 | AJ15: -0.1694180071 | AK15: -0.1190373451 | AL15: -0.1046669707 | AM15: -0.1698924303 | AN15: -0.211800456 | AO15: -0.2507147789 | AP15: -0.2833052576 | AQ15: -0.3138912022 | AR15: -0.3400996029 | AS15: -0.3693390787 | AT15: -0.4004477262 | AU15: -0.4380757213
A16: 0.7689676881 | D16: 0.008589280769 | E16: -0.008963354863 | F16: -0.02836240828 | G16: -0.04862640426 | H16: -0.06986817718 | I16: -0.09178814292 | J16: -0.1149706393 | K16: -0.1337896138 | L16: -0.1463796347 | M16: -0.1716388762 | N16: -0.1935303062 | O16: -0.2091672122 | P16: -0.2139203101 | Q16: -0.2335520536 | R16: -0.2524245679 | S16: -0.2708430588 | T16: -0.2954562008 | U16: -0.2973394096 | V16: -0.2924069166 | W16: -0.3069485426 | X16: -0.3202101588 | Y16: -0.33205688 | Z16: -0.340392679 | AA16: -0.3406911194 | AB16: -0.3502539992 | AC16: -0.356682986 | AD16: -0.3604617417 | AE16: -0.3609330356 | AF16: -0.357034117 | AG16: -0.3466971517 | AH16: -0.3218201101 | AI16: -0.2852158844 | AJ16: -0.2369478196 | AK16: -0.1767922342 | AL16: -0.1317271441 | AM16: -0.1766920537 | AN16: -0.2222408056 | AO16: -0.2622539699 | AP16: -0.2951397598 | AQ16: -0.3256300688 | AR16: -0.3511796892 | AS16: -0.3795129955 | AT16: -0.4096978605 | AU16: -0.4465026855
A17: 0.7429972291 | D17: 0.009132209234 | E17: -0.01043127477 | F17: -0.03181153908 | G17: -0.05403329059 | H17: -0.07714810967 | I17: -0.1007884815 | J17: -0.1248942912 | K17: -0.152085036 | L17: -0.1595854163 | M17: -0.1876153648 | N17: -0.2130417824 | O17: -0.2306364775 | P17: -0.2359987348 | Q17: -0.2579666972 | R17: -0.2791471779 | S17: -0.2998565137 | T17: -0.3266971111 | U17: -0.3287911713 | V17: -0.326521039 | W17: -0.3434250057 | X17: -0.3590716124 | Y17: -0.3733263314 | Z17: -0.3837044835 | AA17: -0.3844048977 | AB17: -0.3964343667 | AC17: -0.4053966999 | AD17: -0.4117732346 | AE17: -0.4149307907 | AF17: -0.4138468504 | AG17: -0.4065319002 | AH17: -0.3852504492 | AI17: -0.3526072204 | AJ17: -0.3072121143 | AK17: -0.244202435 | AL17: -0.1786925495 | AM17: -0.1741861254 | AN17: -0.2325022668 | AO17: -0.2741063237 | AP17: -0.3074142039 | AQ17: -0.3379430771 | AR17: -0.3628869355 | AS17: -0.3903028965 | AT17: -0.4195028543 | AU17: -0.4554125965
A18: 0.7169963121 | D18: 0.01119523309 | E18: -0.01034063939 | F18: -0.03368299082 | G18: -0.05786928907 | H18: -0.08292309195 | I18: -0.1084578484 | J18: -0.1342536807 | K18: -0.1610803157 | L18: -0.1908956915 | M18: -0.2010449469 | N18: -0.2304912508 | O18: -0.2503578961 | P18: -0.2563993335 | Q18: -0.2808112502 | R18: -0.3043575287 | S18: -0.3274050951 | T18: -0.3565661907 | U18: -0.3588767648 | V18: -0.3592054546 | W18: -0.3785130978 | X18: -0.3965868354 | Y18: -0.4132914245 | Z18: -0.4257474244 | AA18: -0.4268513322 | AB18: -0.4413906932 | AC18: -0.4529212117 | AD18: -0.4619256258 | AE18: -0.4677946866 | AF18: -0.469548285 | AG18: -0.4652831554 | AH18: -0.447628051 | AI18: -0.4192603528 | AJ18: -0.3782083094 | AK18: -0.3171451986 | AL18: -0.2413310409 | AM18: -0.1849667132 | AN18: -0.2419057339 | AO18: -0.2861876786 | AP18: -0.3201245666 | AQ18: -0.3508358002 | AR18: -0.3752552867 | AS18: -0.4017634392 | AT18: -0.4299196601 | AU18: -0.4648569226
A19: 0.6909707189 | D19: 0.01470758673 | E19: -0.008773787878 | F19: -0.0340667367 | G19: -0.06022304296 | H19: -0.08725171536 | I19: -0.1147653162 | J19: -0.1424767226 | K19: -0.1706706285 | L19: -0.2001676857 | M19: -0.2137688398 | N19: -0.2455830425 | O19: -0.2683207095 | P19: -0.2751984 | Q19: -0.3022673726 | R19: -0.328274101 | S19: -0.3537258208 | T19: -0.3853166103 | U19: -0.3878504932 | V19: -0.3907452822 | W19: -0.4125132263 | X19: -0.4330718219 | Y19: -0.4522827864 | Z19: -0.4668667018 | AA19: -0.4683788121 | AB19: -0.4854868948 | AC19: -0.499635905 | AD19: -0.5113117099 | AE19: -0.5199258924 | AF19: -0.5245368481 | AG19: -0.5233212709 | AH19: -0.5092293024 | AI19: -0.4851341546 | AJ19: -0.448972702 | AK19: -0.392552048 | AL19: -0.3146664798 | AM19: -0.2306627631 | AN19: -0.2473407686 | AO19: -0.2983528078 | AP19: -0.3332620859 | AQ19: -0.3643041253 | AR19: -0.3883121014 | AS19: -0.4139512181 | AT19: -0.4410113394 | AU19: -0.474894017
A20: 0.6649264097 | D20: 0.019617768 | E20: -0.005792449694 | F20: -0.03303259611 | G20: -0.06116838753 | H20: -0.09020058066 | I20: -0.1197453588 | J20: -0.1494887024 | K20: -0.1795531958 | L20: -0.2099286467 | M20: -0.2451054156 | N20: -0.2585469484 | O20: -0.2842314839 | P20: -0.2922696769 | Q20: -0.3224447072 | R20: -0.3510755599 | S20: -0.3790213764 | T20: -0.4131771922 | U20: -0.4159423113 | V20: -0.4213902056 | W20: -0.4456900358 | X20: -0.4688067734 | Y20: -0.49059847 | Z20: -0.5073720217 | AA20: -0.5093001127 | AB20: -0.5290524364 | AC20: -0.5458877087 | AD20: -0.5602959394 | AE20: -0.5717053413 | AF20: -0.5792066455 | AG20: -0.5810443163 | AH20: -0.5704340339 | AI20: -0.5504844785 | AJ20: -0.5192701817 | AK20: -0.4686480761 | AL20: -0.394095391 | AM20: -0.2962335348 | AN20: -0.2417979091 | AO20: -0.3102884591 | AP20: -0.3467837572 | AQ20: -0.3783347905 | AR20: -0.4020743072 | AS20: -0.4269228876 | AT20: -0.4528471231 | AU20: -0.4855900407
A21: 0.638869524 | D21: 0.02592716739 | E21: -0.001403889153 | F21: -0.0305953715 | G21: -0.06072580814 | H21: -0.09179093689 | I21: -0.123411566 | J21: -0.1552612185 | K21: -0.1873897165 | L21: -0.2195890546 | M21: -0.2530499697 | N21: -0.2717874348 | O21: -0.2977091372 | P21: -0.3071241975 | Q21: -0.3412686884 | R21: -0.3728408515 | S21: -0.403409034 | T21: -0.4402945638 | U21: -0.443299979 | V21: -0.4513198137 | W21: -0.4782385528 | X21: -0.5040027499 | Y21: -0.5284675956 | Z21: -0.5475058556 | AA21: -0.5498609543 | AB21: -0.5723510385 | AC21: -0.5919600725 | AD21: -0.609182179 | AE21: -0.6234583259 | AF21: -0.6339046359 | AG21: -0.6388202906 | AH21: -0.631629467 | AI21: -0.61567837 | AJ21: -0.5892618299 | AK21: -0.5447002649 | AL21: -0.4762958586 | AM21: -0.3756946921 | AN21: -0.2817603052 | AO21: -0.320967108 | AP21: -0.3605815768 | AQ21: -0.3929099143 | AR21: -0.4165447354 | AS21: -0.4407323003 | AT21: -0.4655022621 | AU21: -0.4970200956
A22: 0.612806201 | D22: 0.03362185508 | E22: 0.004369693343 | F22: -0.0267850142 | G22: -0.05893218145 | H22: -0.09206432849 | I22: -0.1258065999 | J22: -0.1598265022 | K22: -0.1941366792 | L22: -0.228458643 | M22: -0.2631410658 | N22: -0.3026403487 | O22: -0.3103834391 | P22: -0.320299387 | Q22: -0.3584338725 | R22: -0.393622607 | S22: -0.4270164967 | T22: -0.4668619931 | U22: -0.470118165 | V22: -0.4807396829 | W22: -0.5103804469 | X22: -0.53889817 | Y22: -0.5661448836 | Z22: -0.5875384808 | AA22: -0.5903346539 | AB22: -0.6156746745 | AC22: -0.6381644011 | AD22: -0.6583025455 | AE22: -0.6755387783 | AF22: -0.6890081167 | AG22: -0.6970513463 | AH22: -0.6932489276 | AI22: -0.6811725497 | AJ22: -0.6593487263 | AK22: -0.6206849217 | AL22: -0.5594664216 | AM22: -0.4632963538 | AN22: -0.3481709063 | AO22: -0.3244847059 | AP22: -0.3744492531 | AQ22: -0.408016175 | AR22: -0.4317088723 | AS22: -0.4554260373 | AT22: -0.4790571928 | AU22: -0.5092694759
A23: 0.5867432952 | D23: 0.0427534692 | E23: 0.01157316845 | F23: -0.02156334743 | G23: -0.05575594306 | H23: -0.09099504352 | I23: -0.1269094795 | J23: -0.1631636322 | K23: -0.1997484267 | L23: -0.2363595366 | M23: -0.2731046975 | N23: -0.3111501634 | O23: -0.3395685852 | P23: -0.3360471427 | Q23: -0.3732858002 | R23: -0.4132280648 | S23: -0.449824214 | T23: -0.492973268 | U23: -0.4964919686 | V23: -0.5097794533 | W23: -0.5422627926 | X23: -0.5736582279 | Y23: -0.6038139462 | Z23: -0.6276708245 | AA23: -0.6309254169 | AB23: -0.6592482924 | AC23: -0.6847478747 | AD23: -0.7079276443 | AE23: -0.7282424569 | AF23: -0.7448401451 | AG23: -0.7560911179 | AH23: -0.7556854486 | AI23: -0.7474057674 | AJ23: -0.7299919128 | AK23: -0.6969230175 | AL23: -0.6429668069 | AM23: -0.5548001528 | AN23: -0.4338964522 | AO23: -0.3302274346 | AP23: -0.3878961802 | AQ23: -0.4236196876 | AR23: -0.4475346208 | AS23: -0.4710370302 | AT23: -0.4935951233 | AU23: -0.5224343538
A24: 0.5606878996 | D24: 0.05334120989 | E24: 0.02021834254 | F24: -0.01492625382 | G24: -0.05120098218 | H24: -0.08859493583 | I24: -0.1267398894 | J24: -0.1652983278 | K24: -0.2042472214 | L24: -0.2432717383 | M24: -0.2823747396 | N24: -0.3219187558 | O24: -0.3540489078 | P24: -0.3660703897 | Q24: -0.3874201477 | R24: -0.4312144816 | S24: -0.4717275798 | T24: -0.5188081264 | U24: -0.5226029754 | V24: -0.5386337042 | W24: -0.5740998387 | X24: -0.6085175872 | Y24: -0.6417300105 | Z24: -0.6681762338 | AA24: -0.6719099879 | AB24: -0.7033711076 | AC24: -0.7320330739 | AD24: -0.7584043741 | AE24: -0.7819417715 | AF24: -0.8018004894 | AG24: -0.8163693547 | AH24: -0.8194066286 | AI24: -0.8148935437 | AJ24: -0.8017557263 | AK24: -0.7739729881 | AL24: -0.726940155 | AM24: -0.6479350924 | AN24: -0.5314409733 | AO24: -0.390090704 | AP24: -0.3988996446 | AQ24: -0.4395939112 | AR24: -0.4639784992 | AS24: -0.4875771403 | AT24: -0.5091981888 | AU24: -0.5366226435
A25: 0.5346471071 | D25: 0.06544610858 | E25: 0.03035931103 | F25: -0.006827246863 | G25: -0.04522918537 | H25: -0.08483487368 | I25: -0.1252783537 | J25: -0.166220665 | K25: -0.2076290697 | L25: -0.2491843849 | M25: -0.2908401191 | N25: -0.3327384889 | O25: -0.3652963042 | P25: -0.3759315014 | Q25: -0.4132790864 | R25: -0.4472253919 | S25: -0.4922347963 | T25: -0.5445038676 | U25: -0.5485903621 | V25: -0.5674717426 | W25: -0.6060832739 | X25: -0.643691361 | Y25: -0.6801326871 | Z25: -0.7093150616 | AA25: -0.7135526538 | AB25: -0.7483337522 | AC25: -0.7803376913 | AD25: -0.8100788593 | AE25: -0.8370125294 | AF25: -0.8602962494 | AG25: -0.8783274293 | AH25: -0.884894371 | AI25: -0.8841693997 | AJ25: -0.8752354383 | AK25: -0.8524885178 | AL25: -0.8119343519 | AM25: -0.7419965863 | AN25: -0.6349958181 | AO25: -0.4798577726 | AP25: -0.3917913139 | AQ25: -0.4556599259 | AR25: -0.4810039401 | AS25: -0.5050301552 | AT25: -0.5259415507 | AU25: -0.5519541502
A26: 0.5086318851 | D26: 0.07910675555 | E26: 0.04202621803 | F26: 0.002754262183 | G26: -0.03783071786 | H26: -0.0797168985 | I26: -0.12253993 | J26: -0.1659595072 | K26: -0.2099356502 | L26: -0.2541471124 | M26: -0.2985203564 | N26: -0.3431053162 | O26: -0.3774086237 | P26: -0.3882029355 | Q26: -0.4367443919 | R26: -0.4627672434 | S26: -0.5108268261 | T26: -0.570284903 | U26: -0.5746811032 | V26: -0.5965391994 | W26: -0.6384856105 | X26: -0.6794794798 | Y26: -0.7193505764 | Z26: -0.7514404058 | AA26: -0.7562111616 | AB26: -0.7945241928 | AC26: -0.830080986 | AD26: -0.863402307 | AE26: -0.8939390779 | AF26: -0.9208461046 | AG26: -0.9425200224 | AH26: -0.9527441263 | AI26: -0.9558783174 | AJ26: -0.9511376619 | AK26: -0.933252871 | AL26: -0.8987653852 | AM26: -0.8373046517 | AN26: -0.74140203 | AO26: -0.5891855359 | AP26: -0.4370115101 | AQ26: -0.4710946679 | AR26: -0.4985508025 | AS26: -0.5233452916 | AT26: -0.5438807011 | AU26: -0.5685563684
A27: 0.4826464951 | D27: 0.09445616603 | E27: 0.05534447357 | F27: 0.01393434312 | G27: -0.02890074253 | H27: -0.07314933091 | I27: -0.1184481755 | J27: -0.1644555926 | K27: -0.2111260146 | L27: -0.2581369877 | M27: -0.3053988516 | N27: -0.3529205918 | O27: -0.3894013464 | P27: -0.4007969201 | Q27: -0.4498566091 | R27: -0.5034429431 | S27: -0.5287273526 | T27: -0.596216023 | U27: -0.6009425521 | V27: -0.6259878278 | W27: -0.67149055 | X27: -0.716098845 | Y27: -0.7596359849 | Z27: -0.7948350906 | AA27: -0.8001736999 | AB27: -0.8422692418 | AC27: -0.8816296458 | AD27: -0.9187828898 | AE27: -0.9531725645 | AF27: -0.983946085 | AG27: -1.009490132 | AH27: -1.023549438 | AI27: -1.030673146 | AJ27: -1.030186892 | AK27: -1.017083406 | AL27: -0.9883532524 | AM27: -0.934699893 | AN27: -0.8497394919 | AO27: -0.7090696692 | AP27: -0.5290337801 | AQ27: -0.4820235968 | AR27: -0.5164306164 | AS27: -0.5424537063 | AT27: -0.5630477667 | AU27: -0.5865675807
A28: 0.4567249119 | D28: 0.1110994443 | E28: 0.0698871389 | F28: 0.02625126392 | G28: -0.01893793605 | H28: -0.06566973776 | I28: -0.1135811061 | J28: -0.1623282433 | K28: -0.2118606865 | L28: -0.2618540823 | M28: -0.3122072816 | N28: -0.3629071414 | O28: -0.4018265605 | P28: -0.4139603376 | Q28: -0.4656967819 | R28: -0.5187306404 | S28: -0.5749143958 | T28: -0.6235762835 | U28: -0.6286603212 | V28: -0.6569554806 | W28: -0.7062882781 | X28: -0.7547917366 | Y28: -0.8022823334 | Z28: -0.8408344984 | AA28: -0.8467827439 | AB28: -0.8929615021 | AC28: -0.9364242554 | AD28: -0.9777073264 | AE28: -1.016243696 | AF28: -1.051168203 | AG28: -1.08084774 | AH28: -1.09895277 | AI28: -1.110229135 | AJ28: -1.114094615 | AK28: -1.105738282 | AL28: -1.082516789 | AM28: -1.036016107 | AN28: -0.9610878229 | AO28: -0.8345894814 | AP28: -0.6526811123 | AQ28: -0.4820901752 | AR28: -0.5341175199 | AS28: -0.5622695088 | AT28: -0.5834088326 | AU28: -0.6061010361
A29: 0.4308676124 | D29: 0.1299553514 | E29: 0.08659109473 | F29: 0.04065818712 | G29: -0.006975983735 | H29: -0.05630232766 | I29: -0.1069581062 | J29: -0.1585977376 | K29: -0.2111673355 | L29: -0.2643412352 | M29: -0.3180110157 | N29: -0.3721523583 | O29: -0.4137569368 | P29: -0.4267332852 | Q29: -0.4819383621 | R29: -0.5376945138 | S29: -0.5957499743 | T29: -0.6503395438 | U29: -0.6558055878 | V29: -0.6880997419 | W29: -0.7415636778 | X29: -0.7942774296 | Y29: -0.8460501432 | Z29: -0.8882402778 | AA29: -0.8948486447 | AB29: -0.9454687238 | AC29: -0.993398726 | AD29: -1.03918457 | AE29: -1.08224535 | AF29: -1.12169838 | AG29: -1.155882001 | AH29: -1.178358674 | AI29: -1.194081545 | AJ29: -1.202546716 | AK29: -1.199085593 | AL29: -1.181354761 | AM29: -1.141648054 | AN29: -1.075943828 | AO29: -0.9635289907 | AP29: -0.7941331863 | AQ29: -0.5667625666 | AR29: -0.549526453 | AS29: -0.5827279687 | AT29: -0.6049214602 | AU29: -0.6272851229
A30: 0.4052039087 | D30: 0.145826295 | E30: 0.1000204608 | F30: 0.05147099495 | G30: 0.001049650833 | H30: -0.05123481899 | I30: -0.1050152332 | J30: -0.1599389613 | K30: -0.2159449905 | L30: -0.2726986408 | M30: -0.330077827 | N30: -0.3880406618 | O30: -0.4326100349 | P30: -0.446518749 | Q30: -0.5056121349 | R30: -0.5650528669 | S30: -0.6256353855 | T30: -0.6888691187 | U30: -0.6947875023 | V30: -0.7297883034 | W30: -0.7879571319 | X30: -0.8454506993 | Y30: -0.9020671844 | Z30: -0.9483555555 | AA30: -0.9556987286 | AB30: -1.011307836 | AC30: -1.064224601 | AD30: -1.115007162 | AE30: -1.163054705 | AF30: -1.207457423 | AG30: -1.246507406 | AH30: -1.273596644 | AI30: -1.293919683 | AJ30: -1.307034135 | AK30: -1.308341503 | AL30: -1.295723319 | AM30: -1.261974692 | AN30: -1.203975439 | AO30: -1.103261232 | AP30: -0.9495033622 | AQ30: -0.7080727816 | AR30: -0.5431155562 | AS30: -0.6034060121 | AT30: -0.6273819804 | AU30: -0.6500794291
A31: 0.3800083101 | D31: 0.1649906933 | E31: 0.1167280674 | F31: 0.06552439183 | G31: 0.01225529984 | H31: -0.04307182878 | I31: -0.100085862 | J31: -0.1584277004 | K31: -0.2180307209 | L31: -0.2785523534 | M31: -0.3398602009 | N31: -0.4019016623 | O31: -0.4496652484 | P31: -0.4645878971 | Q31: -0.5279806852 | R31: -0.591730237 | S31: -0.6563883424 | T31: -0.7270931005 | U31: -0.7334982157 | V31: -0.7714054585 | W31: -0.8346554637 | X31: -0.8973226547 | Y31: -0.9591931105 | Z31: -1.009935021 | AA31: -1.01807642 | AB31: -1.079120159 | AC31: -1.137477994 | AD31: -1.193721294 | AE31: -1.247226834 | AF31: -1.297052145 | AG31: -1.341434717 | AH31: -1.373562574 | AI31: -1.398889303 | AJ31: -1.417025805 | AK31: -1.423405051 | AL31: -1.416093707 | AM31: -1.388270617 | AN31: -1.337559223 | AO31: -1.247401476 | AP31: -1.109587193 | AQ31: -0.880911231 | AR31: -0.6280588508 | AS31: -0.623160243 | AT31: -0.6505726576 | AU31: -0.6743022799
A32: 0.3551036119 | D32: 0.1931909472 | E32: 0.1427678019 | F32: 0.08919641376 | G32: 0.03334917873 | H32: -0.02476979047 | I32: -0.08478922397 | J32: -0.1463473439 | K32: -0.2093746811 | L32: -0.2735249996 | M32: -0.3386605978 | N32: -0.4047245085 | O32: -0.4556756318 | P32: -0.4716194272 | Q32: -0.5393928289 | R32: -0.6076712608 | S32: -0.6769225597 | T32: -0.7525943518 | U32: -0.7594784498 | V32: -0.8015903831 | W32: -0.8700041771 | X32: -0.9379634261 | Y32: -1.005243182 | Z32: -1.060599566 | AA32: -1.069574952 | AB32: -1.136284471 | AC32: -1.200357199 | AD32: -1.262377381 | AE32: -1.321698904 | AF32: -1.377347589 | AG32: -1.427506328 | AH32: -1.465159416 | AI32: -1.496013284 | AJ32: -1.519729495 | AK32: -1.531764388 | AL32: -1.53035152 | AM32: -1.509000778 | AN32: -1.465973973 | AO32: -1.386329532 | AP32: -1.264332891 | AQ32: -1.059810638 | AR32: -0.7879609466 | AS32: -0.6328722239 | AT32: -0.6746681333 | AU32: -0.7001755238
A33: 0.3303464949 | D33: 0.2282686979 | E33: 0.1759105027 | F33: 0.120181486 | G33: 0.06194614246 | H33: 0.001204217318 | I33: -0.06167485565 | J33: -0.1263282597 | K33: -0.1926844269 | L33: -0.2603945434 | M33: -0.3293162882 | N33: -0.3993893266 | O33: -0.4535377026 | P33: -0.4705102146 | Q33: -0.5427176952 | R33: -0.615626812 | S33: -0.6896708012 | T33: -0.7699916959 | U33: -0.7773652673 | V33: -0.8240525126 | W33: -0.8978031278 | X33: -0.9712560773 | Y33: -1.044174671 | Z33: -1.104360461 | AA33: -1.114211917 | AB33: -1.186873913 | AC33: -1.256975293 | AD33: -1.325113535 | AE33: -1.390617847 | AF33: -1.452481389 | AG33: -1.508828402 | AH33: -1.552428126 | AI33: -1.589241743 | AJ33: -1.618976951 | AK33: -1.637095332 | AL33: -1.641973615 | AM33: -1.627387285 | AN33: -1.5921278 | AO33: -1.522518635 | AP33: -1.41491878 | AQ33: -1.234841704 | AR33: -0.9826934338 | AS33: -0.6735736728 | AT33: -0.6992257237 | AU33: -0.7278953195
A34: 0.3057312965 | D34: 0.2689422071 | E34: 0.2148318291 | F34: 0.1571052372 | G34: 0.09661551565 | H34: 0.03335688263 | I34: -0.03230447695 | J34: -0.1000056639 | K34: -0.1696734726 | L34: -0.2409565747 | M34: -0.3137082458 | N34: -0.3878646791 | O34: -0.4452873468 | P34: -0.4633167088 | Q34: -0.5400962234 | R34: -0.6178097725 | S34: -0.6968707442 | T34: -0.7821751833 | U34: -0.7900630832 | V34: -0.8414553404 | W34: -0.9208317995 | X34: -1.000095963 | Y34: -1.078997731 | Z34: -1.144321561 | AA34: -1.155106664 | AB34: -1.234119892 | AC34: -1.310670018 | AD34: -1.38536787 | AE34: -1.457515359 | AF34: -1.526068687 | AG34: -1.589087248 | AH34: -1.639099836 | AI34: -1.682335377 | AJ34: -1.718541741 | AK34: -1.743160367 | AL34: -1.754687428 | AM34: -1.747094393 | AN34: -1.719608307 | AO34: -1.659493923 | AP34: -1.56471169 | AQ34: -1.405797243 | AR34: -1.18370223 | AS34: -0.8441973925 | AT34: -0.7186653018 | AU34: -0.7575074434
A35: 0.2812725008 | D35: 0.3154046834 | E35: 0.2597742081 | F35: 0.2002560943 | G35: 0.1376870424 | H35: 0.07205399126 | I35: 0.003718135646 | J35: -0.06695886701 | K35: -0.1399028599 | L35: -0.2147605121 | M35: -0.2913808823 | N35: -0.3696970344 | O35: -0.4304774702 | P35: -0.4495944679 | Q35: -0.5310996175 | R35: -0.6138114929 | S35: -0.6981309652 | T35: -0.7886312604 | U35: -0.7970604897 | V35: -0.8534343243 | W35: -0.9387670159 | X35: -1.024207354 | Y35: -1.109490514 | Z35: -1.180310607 | AA35: -1.192095637 | AB35: -1.277925611 | AC35: -1.361416221 | AD35: -1.443191767 | AE35: -1.522524118 | AF35: -1.598327398 | AG35: -1.668588042 | AH35: -1.725564837 | AI35: -1.775771022 | AJ35: -1.818989754 | AK35: -1.850616693 | AL35: -1.869246006 | AM35: -1.86898458 | AN35: -1.849423289 | AO35: -1.798510909 | AP35: -1.715411544 | AQ35: -1.574433565 | AR35: -1.380452394 | AS35: -1.067521095 | AT35: -0.7500572205 | AU35: -0.788654685
A36: 0.2569962144 | D36: 0.3675840795 | E36: 0.310716629 | F36: 0.249654606 | G36: 0.1852151603 | H36: 0.11737784 | I36: 0.04649579152 | J36: -0.02707226761 | K36: -0.1032519192 | L36: -0.1816883385 | M36: -0.2622267306 | N36: -0.3447970748 | O36: -0.4090377092 | P36: -0.4292799234 | Q36: -0.5156969428 | R36: -0.6036396027 | S36: -0.6935003996 | T36: -0.7895189524 | U36: -0.79852283 | V36: -0.8601650596 | W36: -0.951854825 | X36: -1.04391253 | Y36: -1.136057973 | Z36: -1.212806702 | AA36: -1.225671291 | AB36: -1.318879247 | AC36: -1.409902096 | AD36: -1.499378204 | AE36: -1.58654511 | AF36: -1.670269251 | AG36: -1.748453021 | AH36: -1.813048482 | AI36: -1.870876431 | AJ36: -1.921750546 | AK36: -1.960992694 | AL36: -1.9872756 | AM36: -1.994785309 | AN36: -1.983422637 | AO36: -1.941610336 | AP36: -1.869426489 | AQ36: -1.743856072 | AR36: -1.573356986 | AS36: -1.300121427 | AT36: -0.9442725182 | AU36: -0.8176470995
A37: 0.2329390943 | D37: 0.4255830944 | E37: 0.36782673 | F37: 0.3055403233 | G37: 0.2395097613 | H37: 0.1696947962 | I37: 0.09644092619 | J37: 0.02010432072 | K37: -0.05924271047 | L37: -0.1412447095 | M37: -0.2257432491 | N37: -0.3126655221 | O37: -0.3804782629 | P37: -0.4018873572 | Q37: -0.4934262931 | R37: -0.5868656635 | S37: -0.6825925708 | T37: -0.7844955325 | U37: -0.7941132188 | V37: -0.8613687158 | W37: -0.9598894119 | X37: -1.059087992 | Y37: -1.15866816 | Z37: -1.241860867 | AA37: -1.255899549 | AB37: -1.35715735 | AC37: -1.456421852 | AD37: -1.554346085 | AE37: -1.650128603 | AF37: -1.742580652 | AG37: -1.829507709 | AH37: -1.902509332 | AI37: -1.968744636 | AJ37: -2.028053284 | AK37: -2.075652122 | AL37: -2.110275507 | AM37: -2.126134396 | AN37: -2.123399734 | AO37: -2.090794086 | AP37: -2.029108763 | AQ37: -1.917174101 | AR37: -1.76613307 | AS37: -1.528058171 | AT37: -1.205337048 | AU37: -0.8503170013
A38: 0.209147498 | D38: 0.4893895686 | E38: 0.4312466979 | F38: 0.3681630492 | G38: 0.3008905053 | H38: 0.2294023931 | I38: 0.1540243775 | J38: 0.07509379089 | K38: -0.007314299233 | L38: -0.09284250438 | M38: -0.1813315451 | N38: -0.272705555 | O38: -0.3442131877 | P38: -0.3668359518 | Q38: -0.4637366533 | R38: -0.5629823804 | S38: -0.6649568081 | T38: -0.7731896639 | U38: -0.7834680676 | V38: -0.8567410707 | W38: -0.9626631737 | X38: -1.06963563 | Y38: -1.17734468 | Z38: -1.267608166 | AA38: -1.282935977 | AB38: -1.393062592 | AC38: -1.501434684 | AD38: -1.608721495 | AE38: -1.714075685 | AF38: -1.816244602 | AG38: -1.912920713 | AH38: -1.99529326 | AI38: -2.070899963 | AJ38: -2.1396029 | AK38: -2.196476698 | AL38: -2.240301847 | AM38: -2.265258789 | AN38: -2.271762133 | AO38: -2.248679161 | AP38: -2.197379112 | AQ38: -2.09791708 | AR38: -1.963427067 | AS38: -1.753344774 | AT38: -1.476173639 | AU38: -1.081445694
A39: 0.1856833994 | D39: 0.5590112805 | E39: 0.5010393262 | F39: 0.4377123713 | G39: 0.3697412014 | H39: 0.2970078886 | I39: 0.2198262513 | J39: 0.1385627687 | K39: 0.05327402428 | L39: -0.03569800034 | M39: -0.1281794012 | N39: -0.2240970284 | O39: -0.299429208 | P39: -0.3233167231 | Q39: -0.4258496761 | R39: -0.5312610269 | S39: -0.6399334073 | T39: -0.7550270557 | U39: -0.7660226226 | V39: -0.845800817 | W39: -0.9598171711 | X39: -1.075337291 | Y39: -1.192027688 | Z39: -1.290133476 | AA39: -1.306891561 | AB39: -1.426899672 | AC39: -1.545452356 | AD39: -1.663237095 | AE39: -1.779352546 | AF39: -1.892470479 | AG39: -2.000149727 | AH39: -2.093096495 | AI39: -2.179279566 | AJ39: -2.258578539 | AK39: -2.325884104 | AL39: -2.38000536 | AM39: -2.415034294 | AN39: -2.431611061 | AO39: -2.418602705 | AP39: -2.377868652 | AQ39: -2.290206671 | AR39: -2.170325041 | AS39: -1.982529163 | AT39: -1.743414044 | AU39: -1.394967079
A40: 0.1626324952 | D40: 0.6339337826 | E40: 0.5771258473 | F40: 0.5143820047 | G40: 0.4463133216 | H40: 0.3729199171 | I40: 0.2944919467 | J40: 0.2112773955 | K40: 0.1233542636 | L40: 0.03111136518 | M40: -0.0653237775 | N40: -0.1658549458 | O40: -0.245144546 | P40: -0.270352453 | Q40: -0.3788229823 | R40: -0.4908215702 | S40: -0.6067318916 | T40: -0.7293344736 | U40: -0.7411165833 | V40: -0.8279941082 | W40: -0.9509628415 | X40: -1.075995445 | Y40: -1.202734828 | Z40: -1.309653282 | AA40: -1.328019142 | AB40: -1.459187031 | AC40: -1.589278698 | AD40: -1.719001412 | AE40: -1.847389936 | AF40: -1.973025322 | AG40: -2.093306303 | AH40: -2.198360682 | AI40: -2.296657562 | AJ40: -2.388090372 | AK40: -2.467311382 | AL40: -2.53314209 | AM40: -2.57951808 | AN40: -2.607296944 | AO40: -2.605196476 | AP40: -2.57551527 | AQ40: -2.499390841 | AR40: -2.392910004 | AS40: -2.223409653 | AT40: -2.013569355 | AU40: -1.718602896
A41: 0.1401222944 | D41: 0.7134686112 | E41: 0.6588493586 | F41: 0.5977358818 | G41: 0.5307344198 | H41: 0.4575843811 | I41: 0.3785055578 | J41: 0.2939281464 | K41: 0.2038817853 | L41: 0.1086090878 | M41: 0.00837045908 | N41: -0.09680773318 | O41: -0.1801783144 | P41: -0.206762284 | Q41: -0.3215080798 | R41: -0.4405879974 | S41: -0.5643883348 | T41: -0.6953058839 | U41: -0.7079607844 | V41: -0.8026688695 | W41: -0.9356699586 | X41: -1.071437955 | Y41: -1.209588051 | Z41: -1.326561809 | AA41: -1.346763015 | AB41: -1.490735412 | AC41: -1.634118915 | AD41: -1.777643442 | AE41: -1.920265794 | AF41: -2.060456514 | AG41: -2.195418835 | AH41: -2.314576149 | AI41: -2.426990747 | AJ41: -2.532564402 | AK41: -2.625642538 | AL41: -2.705038548 | AM41: -2.764451742 | AN41: -2.804956675 | AO41: -2.814956427 | AP41: -2.797168493 | AQ41: -2.732698202 | AR41: -2.638985395 | AS41: -2.485063314 | AT41: -2.298104763 | AU41: -2.044265985
A42: 0.1183547974 | D42: 0.795245409 | E42: 0.7447962761 | F42: 0.6870437264 | G42: 0.6223362684 | H42: 0.5506592989 | I42: 0.4722736776 | J42: 0.3872498572 | K42: 0.2956297696 | L42: 0.1979336888 | M42: 0.09412962943 | N42: -0.01558677573 | O42: -0.1031177491 | P42: -0.131134361 | Q42: -0.2524992228 | R42: -0.3792140186 | S42: -0.5116759539 | T42: -0.6518883705 | U42: -0.665522337 | V42: -0.7689657807 | W42: -0.9133566618 | X42: -1.061414003 | Y42: -1.21271944 | Z42: -1.341349959 | AA42: -1.363680005 | AB42: -1.522589803 | AC42: -1.68154788 | AD42: -1.841310382 | AE42: -2.000737667 | AF42: -2.158162594 | AG42: -2.310545444 | AH42: -2.446435213 | AI42: -2.575613022 | AJ42: -2.69798255 | AK42: -2.807490826 | AL42: -2.902920485 | AM42: -2.977631092 | AN42: -3.032923937 | AO42: -3.05669117 | AP42: -3.052074909 | AQ42: -2.999769926 | AR42: -2.91868639 | AS42: -2.778505087 | AT42: -2.610135078 | AU42: -2.386410475
A43: 0.09765800089 | D43: 0.8752666116 | E43: 0.8313345909 | F43: 0.7792227864 | G43: 0.7192828655 | H43: 0.6511382461 | I43: 0.5748177171 | J43: 0.4907664359 | K43: 0.3990173936 | L43: 0.2995811999 | M43: 0.192926541 | N43: 0.0789141506 | O43: -0.01274253987 | P43: -0.0421956107 | Q43: -0.1704567671 | R43: -0.3053901494 | S43: -0.4473846555 | T43: -0.5980619192 | U43: -0.6128035784 | V43: -0.7260723114 | W43: -0.8835369349 | X43: -1.045839787 | Y43: -1.212521076 | Z43: -1.354863048 | AA43: -1.379699349 | AB43: -1.556304455 | AC43: -1.733805656 | AD43: -1.912988901 | AE43: -2.092592716 | AF43: -2.270776272 | AG43: -2.444191933 | AH43: -2.600286961 | AI43: -2.749726772 | AJ43: -2.892410755 | AK43: -3.021764517 | AL43: -3.136510372 | AM43: -3.229535103 | AN43: -3.302385569 | AO43: -3.342198133 | AP43: -3.352573156 | AQ43: -3.31336832 | AR43: -3.24522233 | AS43: -3.117532015 | AT43: -2.964833736 | AU43: -2.76368475
A44: 0.0785368979 | D44: 0.9450137019 | E44: 0.9115254283 | F44: 0.8687077165 | G44: 0.8165178299 | H44: 0.7547336817 | I44: 0.6834914684 | J44: 0.6027189493 | K44: 0.5123283267 | L44: 0.4129763544 | M44: 0.3043806255 | N44: 0.1869252771 | O44: 0.09144229442 | P44: 0.06055079773 | Q44: -0.07467942685 | R44: -0.2182642221 | S44: -0.3706559539 | T44: -0.5330670476 | U44: -0.549059391 | V44: -0.6733735204 | W44: -0.8458752632 | X44: -1.024757981 | Y44: -1.209511399 | Z44: -1.368089437 | AA44: -1.39589715 | AB44: -1.59362638 | AC44: -1.793390393 | AD44: -1.996010184 | AE44: -2.200068235 | AF44: -2.403502703 | AG44: -2.60257268 | AH44: -2.783323288 | AI44: -2.957522392 | AJ44: -3.125052929 | AK44: -3.278660297 | AL44: -3.416967869 | AM44: -3.532217026 | AN44: -3.626230478 | AO44: -3.685078382 | AP44: -3.712881804 | AQ44: -3.688158751 | AR44: -3.633677959 | AS44: -3.51762557 | AT44: -3.37853694 | AU44: -3.194775581
A45: 0.06162590161 | D45: 0.991132617 | E45: 0.9731742144 | F45: 0.944537282 | G45: 0.9049571157 | H45: 0.8539175987 | I45: 0.791210413 | J45: 0.7170377374 | K45: 0.6314262152 | L45: 0.5341834426 | M45: 0.4259207249 | N45: 0.306280762 | O45: 0.207726106 | P45: 0.1756699532 | Q45: 0.03395189345 | R45: -0.1184042767 | S45: -0.2817519307 | T45: -0.4570158422 | U45: -0.4743925631 | V45: -0.6109129786 | W45: -0.8004596233 | X45: -0.9984105229 | Y45: -1.204192996 | Z45: -1.381829262 | AA45: -1.413132071 | AB45: -1.635887504 | AC45: -1.862201929 | AD45: -2.092934132 | AE45: -2.326469183 | AF45: -2.560463905 | AG45: -2.790680408 | AH45: -3.001394987 | AI45: -3.205736876 | AJ45: -3.403558493 | AK45: -3.586729765 | AL45: -3.753725529 | AM45: -3.895931721 | AN45: -4.01548481 | AO45: -4.097016811 | AP45: -4.145254612 | AQ45: -4.136792183 | AR45: -4.09705925 | AS45: -3.992063284 | AT45: -3.865065098 | AU45: -3.694900036
A46: 0.04743219912 | D46: 0.9955074191 | E46: 0.9998995066 | F46: 0.9920008183 | G46: 0.9709945321 | H46: 0.9363042116 | I46: 0.8876786828 | J46: 0.8249006271 | K46: 0.7477285266 | L46: 0.6566830277 | M46: 0.5513650775 | N46: 0.4322660267 | O46: 0.3321415782 | P46: 0.2991495132 | Q46: 0.1521226317 | R46: -0.008240355179 | S46: -0.1825516373 | T46: -0.3712580502 | U46: -0.3901076913 | V46: -0.539652288 | W46: -0.7479085922 | X46: -0.9671695232 | Y46: -1.196784139 | Z46: -1.396240473 | AA46: -1.431556702 | AB46: -1.683267593 | AC46: -1.940533519 | AD46: -2.204252005 | AE46: -2.472561121 | AF46: -2.742772341 | AG46: -3.010033369 | AH46: -3.256443501 | AI46: -3.496774197 | AJ46: -3.730828285 | AK46: -3.949380636 | AL46: -4.150702953 | AM46: -4.325088501 | AN46: -4.475030899 | AO46: -4.583308697 | AP46: -4.655356407 | AQ46: -4.665210247 | AR46: -4.641573429 | AS46: -4.547286987 | AT46: -4.431286335 | AU46: -4.271875858
A47: 0.03603550047 | D47: 0.9389534593 | E47: 0.9737919569 | F47: 0.9945553541 | G47: 0.9997480512 | H47: 0.9885728359 | I47: 0.9603869319 | J47: 0.914945364 | K47: 0.8520984054 | L47: 0.7715868354 | M47: 0.6738656163 | N47: 0.5584875941 | O47: 0.4589778185 | P47: 0.4259182811 | Q47: 0.2759429812 | R47: 0.1089118794 | S47: -0.07537128776 | T47: -0.2773842812 | U47: -0.2977243662 | V47: -0.4605903327 | W47: -0.6885669827 | X47: -0.9308078885 | Y47: -1.186563015 | Z47: -1.410242915 | AA47: -1.450033069 | AB47: -1.734271646 | AC47: -2.026607037 | AD47: -2.327969074 | AE47: -2.636199474 | AF47: -2.948197365 | AG47: -3.258374929 | AH47: -3.546236277 | AI47: -3.828468561 | AJ47: -4.104806423 | AK47: -4.364700794 | AL47: -4.606160164 | AM47: -4.818138599 | AN47: -5.003530502 | AO47: -5.14283371 | AP47: -5.242295265 | AQ47: -5.272751331 | AR47: -5.266824722 | AS47: -5.183225632 | AT47: -5.077616215 | AU47: -4.926990986
A48: 0.02709710039 | D48: 0.8018129468 | E48: 0.8770022392 | F48: 0.9358590245 | G48: 0.9762381315 | H48: 0.9971704483 | I48: 0.997613728 | J48: 0.9770410061 | K48: 0.9349957705 | L48: 0.8715809584 | M48: 0.7864516377 | N48: 0.6799427271 | O48: 0.5843018293 | P48: 0.5517420769 | Q48: 0.4018990695 | R48: 0.2311302125 | S48: 0.03848053142 | T48: -0.1757493168 | U48: -0.1975191832 | V48: -0.373460263 | W48: -0.6214852333 | X48: -0.8877280951 | Y48: -1.171376109 | Z48: -1.421293855 | AA48: -1.465955496 | AB48: -1.785899997 | AC48: -2.117112875 | AD48: -2.460536242 | AE48: -2.813672304 | AF48: -3.172937632 | AG48: -3.531883955 | AH48: -3.866993189 | AI48: -4.197137356 | AJ48: -4.521955967 | AK48: -4.829344749 | AL48: -5.116981983 | AM48: -5.37223196 | AN48: -5.598429203 | AO48: -5.773355007 | AP48: -5.904179096 | AQ48: -5.957888126 | AR48: -5.971694469 | AS48: -5.899236679 | AT48: -5.804025173 | AU48: -5.661103725
A49: 0.02011300065 | D49: 0.561139226 | E49: 0.6881144643 | F49: 0.7967556715 | G49: 0.8837259412 | H49: 0.9473688602 | I49: 0.9863924384 | J49: 0.9999917746 | K49: 0.9875730276 | L49: 0.9487752914 | M49: 0.8836539388 | N49: 0.7918314934 | O49: 0.7040577531 | P49: 0.6735888124 | Q49: 0.5287216306 | R49: 0.3573056757 | S49: 0.1594609767 | T49: -0.06521771103 | U49: -0.08827947825 | V49: -0.2762455642 | W49: -0.5442745686 | X49: -0.8351207376 | Y49: -1.148020506 | Z49: -1.425987601 | AA49: -1.475888968 | AB49: -1.834590554 | AC49: -2.208491325 | AD49: -2.598506212 | AE49: -3.001770496 | AF49: -3.414131641 | AG49: -3.828143835 | AH49: -4.21680212 | AI49: -4.601441383 | AJ49: -4.98157835 | AK49: -5.343296528 | AL49: -5.683871746 | AM49: -5.988800049 | AN49: -6.261901855 | AO49: -6.47776556 | AP49: -6.644603252 | AQ49: -6.72485733 | AR49: -6.761062622 | AS49: -6.700803757 | AT49: -6.616690159 | AU49: -6.48123312
A50: 0.01462879963 | D50: 0.1839009821 | E50: 0.378259182 | F50: 0.5513803959 | G50: 0.6987508535 | H50: 0.8188363314 | I50: 0.9095515609 | J50: 0.9693408608 | K50: 0.9976348281 | L50: 0.993871212 | M50: 0.9577328563 | N50: 0.8891918063 | O50: 0.8150894046 | P50: 0.7879504561 | Q50: 0.653873086 | R50: 0.4877357185 | S50: 0.2882156074 | T50: 0.05633239076 | U50: 0.03221241012 | V50: -0.1661155075 | W50: -0.4528076351 | X50: -0.7687641382 | Y50: -1.112117887 | Z50: -1.419804215 | AA50: -1.475299835 | AB50: -1.875853777 | AC50: -2.296472788 | AD50: -2.738016605 | AE50: -3.197240591 | AF50: -3.669295549 | AG50: -4.145576954 | AH50: -4.595061779 | AI50: -5.041852951 | AJ50: -5.485310078 | AK50: -5.909406662 | AL50: -6.310927868 | AM50: -6.673183918 | AN50: -7.000523567 | AO50: -7.263794422 | AP50: -7.472390652 | AQ50: -7.583411217 | AR50: -7.645567417 | AS50: -7.599284649 | AT50: -7.52773571 | AU50: -7.400308132
A51: 0.01029730029 | D51: -0.3770380914 | E51: -0.09660670161 | F51: 0.1603267044 | G51: 0.3873925507 | H51: 0.5817337632 | I51: 0.7407497168 | J51: 0.8628932834 | K51: 0.946937561 | L51: 0.9918705821 | M51: 0.9974461794 | N51: 0.9632863998 | O51: 0.910482347 | P51: 0.889306426 | Q51: 0.7752493024 | R51: 0.6210149527 | S51: 0.426812768 | T51: 0.1922238767 | U51: 0.1674438864 | V51: -0.03975856677 | W51: -0.3419316709 | X51: -0.6809610128 | Y51: -1.055751204 | Z51: -1.394341588 | AA51: -1.455742955 | AB51: -1.901064515 | AC51: -2.372352362 | AD51: -2.870610476 | AE51: -3.3921206 | AF51: -3.931175947 | AG51: -4.477831364 | AH51: -4.996444225 | AI51: -5.514215946 | AJ51: -6.030299664 | AK51: -6.5262146 | AL51: -6.998147488 | AM51: -7.426853657 | AN51: -7.817250729 | AO51: -8.135807037 | AP51: -8.393257141 | AQ51: -8.540439606 | AR51: -8.633223534 | AS51: -8.603621483 | AT51: -8.547070503 | AU51: -8.429207802
A52: 0.006881299894 | D52: -1.188559651 | E52: -0.7962012887 | F52: -0.4307326674 | G52: -0.1006930694 | H52: 0.1913764477 | I52: 0.4416768551 | J52: 0.6470732093 | K52: 0.8065776825 | L52: 0.9189825654 | M52: 0.983258009 | N52: 0.999296844 | O52: 0.9788695574 | P52: 0.9666249752 | Q52: 0.8849108815 | R52: 0.7545329928 | S52: 0.5743030906 | T52: 0.3454332352 | U52: 0.3206772208 | V52: 0.1095271558 | W52: -0.2047668844 | X52: -0.5633507967 | Y52: -0.96582371 | Z52: -1.335246325 | AA52: -1.402758121 | AB52: -1.894810438 | AC52: -2.419791937 | AD52: -2.97948885 | AE52: -3.569120884 | AF52: -4.182231426 | AG52: -4.807353973 | AH52: -5.403619289 | AI52: -6.001621723 | AJ52: -6.600248337 | AK52: -7.178190231 | AL52: -7.730905533 | AM52: -8.236176491 | AN52: -8.699529648 | AO52: -9.082360268 | AP52: -9.396903038 | AQ52: -9.586746216 | AR52: -9.715967178 | AS52: -9.706823349 | AT52: -9.668847084 | AU52: -9.563278198
A53: 0.004234699998 | D53: -2.33913517 | E53: -1.80401206 | F53: -1.298289418 | G53: -0.8332784772 | H53: -0.4134693444 | I53: -0.04377289489 | J53: 0.2729264498 | K53: 0.5343716741 | L53: 0.7383480668 | M53: 0.8845666051 | N53: 0.9718121886 | O53: 0.9986726046 | P53: 0.9999778867 | Q53: 0.9684880972 | R53: 0.877040565 | S53: 0.7255448103 | T53: 0.5139470696 | U53: 0.4902739823 | V53: 0.2834715247 | W53: -0.03451813012 | X53: -0.4074061513 | Y53: -0.8335134387 | Z53: -1.230793238 | AA53: -1.303851962 | AB53: -1.840629458 | AC53: -2.421461582 | AD53: -3.046493053 | AE53: -3.70883584 | AF53: -4.402188301 | AG53: -5.113367558 | AH53: -5.795612812 | AI53: -6.483156204 | AJ53: -7.174528599 | AK53: -7.845196247 | AL53: -8.489720345 | AM53: -9.082355499 | AN53: -9.629370689 | AO53: -10.08634758 | AP53: -10.46716785 | AQ53: -10.7071209 | AR53: -10.87958145 | AS53: -10.89563847 | AT53: -10.88084126 | AU53: -10.7913723
A54: 0.002257199958 | D54: -3.91679287 | E54: -3.203068733 | F54: -2.521702051 | G54: -1.887660146 | H54: -1.305452228 | I54: -0.7815381885 | J54: -0.3213672042 | K54: 0.0731556192 | L54: 0.3996824026 | M54: 0.655980885 | N54: 0.8422281146 | O54: 0.9360842705 | P54: 0.9567968845 | Q54: 0.9996920824 | R54: 0.9702110887 | S54: 0.8677605391 | T54: 0.6930516958 | U54: 0.6722362638 | V54: 0.482645303 | W54: 0.1768809259 | X54: -0.1973400414 | Y54: -0.637917161 | Z54: -1.055523396 | AA54: -1.132763147 | AB54: -1.705089688 | AC54: -2.332479715 | AD54: -3.014052391 | AE54: -3.74524045 | AF54: -4.517076969 | AG54: -5.314497471 | AH54: -6.084308624 | AI54: -6.864186287 | AJ54: -7.652215958 | AK54: -8.420441628 | AL54: -9.162347794 | AM54: -9.848100662 | AN54: -10.48503304 | AO54: -11.02254105 | AP54: -11.47615147 | AQ54: -11.77233887 | AR54: -11.99421501 | AS54: -12.04102993 | AT54: -12.05519199 | AU54: -11.98754597
A55: 0.0009031000081 | D55: -5.977029324 | E55: -5.052886963 | F55: -4.162407398 | G55: -3.324552774 | H55: -2.545980453 | I55: -1.835079432 | J55: -1.197266936 | K55: -0.6359849572 | L55: -0.1554659605 | M55: 0.2437462509 | N55: 0.5591848493 | O55: 0.7433317304 | P55: 0.7909982204 | Q55: 0.9375169873 | R55: 0.9981766939 | S55: 0.9726469517 | T55: 0.8609042764 | U55: 0.8454547524 | V55: 0.693969965 | W55: 0.4246098399 | X55: 0.07308977842 | Y55: -0.357738018 | Z55: -0.7770941854 | AA55: -0.8558360338 | AB55: -1.446309447 | AC55: -2.102370262 | AD55: -2.825590372 | AE55: -3.60998559 | AF55: -4.445086956 | AG55: -5.314544201 | AH55: -6.159931183 | AI55: -7.021311283 | AJ55: -7.896341324 | AK55: -8.7538414 | AL55: -9.586277962 | AM55: -10.36112309 | AN55: -11.08529758 | AO55: -11.70230865 | AP55: -12.22908306 | AQ55: -12.58374977 | AR55: -12.85843372 | AS55: -12.94125557 | AT55: -12.99033737 | AU55: -12.95157146
A56: 0.0001680999994 | D56: -8.313047409 | E56: -7.177319527 | F56: -6.074978828 | G56: -5.029310226 | H56: -4.047456741 | I56: -3.139495611 | J56: -2.313611269 | K56: -1.573158145 | L56: -0.9222419262 | M56: -0.3645221889 | N56: 0.1003833264 | O56: 0.3903163075 | P56: 0.4692427218 | Q56: 0.7424779534 | R56: 0.9181889892 | S56: 0.9958980083 | T56: 0.9753169417 | U56: 0.9680845141 | V56: 0.877201736 | W56: 0.6752811074 | X56: 0.3794746399 | Y56: -0.008630086668 | Z56: -0.4030118883 | AA56: -0.478110522 | AB56: -1.049525499 | AC56: -1.701492667 | AD56: -2.43086791 | AE56: -3.232044697 | AF56: -4.095129967 | AG56: -5.001102448 | AH56: -5.888482094 | AI56: -6.798706055 | AJ56: -7.728542328 | AK56: -8.644781113 | AL56: -9.539148331 | AM56: -10.37652397 | AN56: -11.16381931 | AO56: -11.8405838 | AP56: -12.42446232 | AQ56: -12.82797432 | AR56: -13.14902878 | AS56: -13.26834488 | AT56: -13.35428905 | AU56: -13.34961605
A57: 0 | D57: -10.68616867 | E57: -9.365883827 | F57: -8.075957298 | G57: -6.842978001 | H57: -5.675871372 | I57: -4.58658123 | J57: -3.583450317 | K57: -2.670990705 | L57: -1.855459571 | M57: -1.13819766 | N57: -0.522734046 | O57: -0.1221590713 | P57: -0.008884188719 | Q57: 0.4005903304 | R57: 0.7042568922 | S57: 0.9026259184 | T57: 0.9932537079 | U57: 0.996440351 | V57: 0.9855886102 | W57: 0.8781865239 | X57: 0.6670508981 | Y57: 0.3543426096 | Z57: 0.01684692129 | AA57: -0.04918521643 | AB57: -0.5649529696 | AC57: -1.168823361 | AD57: -1.862595081 | AE57: -2.637104988 | AF57: -3.481942415 | AG57: -4.380561352 | AH57: -5.268467426 | AI57: -6.185801506 | AJ57: -7.129759789 | AK57: -8.066051483 | AL57: -8.98501873 | AM57: -9.850010872 | AN57: -10.66842747 | AO57: -11.37798691 | AP57: -11.99618721 | AQ57: -12.43335438 | AR57: -12.78905296 | AS57: -12.94125366 | AT57: -13.061903 | AU57: -13.09279156
A58: 0.0004038999905 | D58: -12.76433468 | E58: -11.32174873 | F58: -9.903913498 | G58: -8.541304588 | H58: -7.241891861 | I58: -6.018269539 | J58: -4.880093098 | K58: -3.832107544 | L58: -2.880600214 | M58: -2.029014111 | N58: -1.278533697 | O58: -0.7767514586 | P58: -0.6327916384 | Q58: -0.09167989343 | R58: 0.3417725563 | S58: 0.6671165824 | T58: 0.8816277385 | U58: 0.8968062401 | V58: 0.9808921218 | W58: 0.9910860658 | X58: 0.8938821554 | Y58: 0.6909754276 | Z58: 0.4411754608 | AA58: 0.3902863264 | AB58: -0.02141113579 | AC58: -0.5294567943 | AD58: -1.12945509 | AE58: -1.816491008 | AF58: -2.58089447 | AG58: -3.403136492 | AH58: -4.225832939 | AI58: -5.084291935 | AJ58: -5.973841667 | AK58: -6.861986637 | AL58: -7.739885807 | AM58: -8.572065353 | AN58: -9.364248276 | AO58: -10.05684948 | AP58: -10.66597366 | AQ58: -11.10551929 | AR58: -11.47031403 | AS58: -11.64351559 | AT58: -11.78901672 | AU58: -11.85146236
A59: 0.001499900012 | D59: -13.89136314 | E59: -12.44493198 | F59: -11.01494217 | G59: -9.631276131 | H59: -8.302524567 | I59: -7.041632175 | J59: -5.858801365 | K59: -4.758543491 | L59: -3.747565269 | M59: -2.830599308 | N59: -2.007457495 | O59: -1.444091797 | P59: -1.279189944 | Q59: -0.6486485004 | R59: -0.1186522096 | S59: 0.3119196594 | T59: 0.6349076629 | U59: 0.6611652374 | V59: 0.836791873 | W59: 0.9682375193 | X59: 0.9978339672 | Y59: 0.9269894361 | Z59: 0.7921811938 | AA59: 0.7616354227 | AB59: 0.4926742017 | AC59: 0.1321770251 | AD59: -0.3192250729 | AE59: -0.8544264436 | AF59: -1.464454293 | AG59: -2.13615799 | AH59: -2.817626476 | AI59: -3.536564589 | AJ59: -4.290076256 | AK59: -5.049757004 | AL59: -5.806080341 | AM59: -6.528226376 | AN59: -7.221086502 | AO59: -7.832423687 | AP59: -8.375404358 | AQ59: -8.77534008 | AR59: -9.113268852 | AS59: -9.287995338 | AT59: -9.441018105 | AU59: -9.524570465
A60: 0.003350300016 | D60: -13.589674 | E60: -12.27328777 | F60: -10.96467113 | G60: -9.690066338 | H60: -8.458522797 | I60: -7.282164097 | J60: -6.170381069 | K60: -5.127976894 | L60: -4.160277367 | M60: -3.270910263 | N60: -2.460041046 | O60: -1.897719502 | P60: -1.732418418 | Q60: -1.086303234 | R60: -0.5247597694 | S60: -0.04924380407 | T60: 0.3336876631 | U60: 0.3667266965 | V60: 0.6023622751 | W60: 0.8224110603 | X60: 0.9546541572 | Y60: 0.9999668002 | Z60: 0.9721598029 | AA60: 0.9612368941 | AB60: 0.8366064429 | AC60: 0.6298856139 | AD60: 0.3447226882 | AE60: -0.01513893902 | AF60: -0.4433555603 | AG60: -0.9267256856 | AH60: -1.428391218 | AI60: -1.967056751 | AJ60: -2.538290024 | AK60: -3.120053053 | AL60: -3.705494881 | AM60: -4.269922256 | AN60: -4.815594673 | AO60: -5.301638126 | AP60: -5.737659454 | AQ60: -6.064596653 | AR60: -6.345711708 | AS60: -6.501304626 | AT60: -6.641747952 | AU60: -6.729698181
A61: 0.005933499895 | D61: -12.25022888 | E61: -11.13553143 | F61: -10.02173615 | G61: -8.932097435 | H61: -7.873567581 | I61: -6.856336117 | J61: -5.888318062 | K61: -4.973073959 | L61: -4.115904808 | M61: -3.317674875 | N61: -2.583456993 | O61: -2.068279505 | P61: -1.91487968 | Q61: -1.312266827 | R61: -0.7791949511 | S61: -0.3123375773 | T61: 0.07904467732 | U61: 0.113954559 | V61: 0.3709827662 | W61: 0.633328259 | X61: 0.8245871663 | Y61: 0.9458408952 | Z61: 0.9939416647 | AA61: 0.997407198 | AB61: 0.9816040993 | AC61: 0.8985349536 | AD61: 0.7502538562 | AE61: 0.5405039191 | AF61: 0.2743978798 | AG61: -0.04071653634 | AH61: -0.3770056665 | AI61: -0.7453044653 | AJ61: -1.143372178 | AK61: -1.555120826 | AL61: -1.973739624 | AM61: -2.381089926 | AN61: -2.778970718 | AO61: -3.136977434 | AP61: -3.461392879 | AQ61: -3.709136486 | AR61: -3.925149441 | AS61: -4.051332474 | AT61: -4.167818069 | AU61: -4.247377396
A62: 0.009250099771 | D62: -10.63988972 | E62: -9.723984718 | F62: -8.804368019 | G62: -7.900505066 | H62: -7.018012047 | I62: -6.16537714 | J62: -5.349233627 | K62: -4.572638988 | L62: -3.840236902 | M62: -3.154452324 | N62: -2.516956806 | O62: -2.063693047 | P62: -1.927917838 | Q62: -1.389827251 | R62: -0.9054519534 | S62: -0.473747462 | T62: -0.1023085862 | U62: -0.06846007705 | V62: 0.1853296906 | W62: 0.4574316144 | X62: 0.6739677787 | Y62: 0.8348788619 | Z62: 0.9274858832 | AA62: 0.9397755265 | AB62: 0.9936099648 | AC62: 0.993193388 | AD62: 0.9410129786 | AE62: 0.8392659426 | AF62: 0.6910838485 | AG62: 0.5030217767 | AH62: 0.2924325764 | AI62: 0.05377307534 | AJ62: -0.2097692043 | AK62: -0.48686409 | AL62: -0.7733613849 | AM62: -1.056131959 | AN62: -1.334972382 | AO62: -1.588568211 | AP62: -1.82079196 | AQ62: -2.000684261 | AR62: -2.160004854 | AS62: -2.257298231 | AT62: -2.348738432 | AU62: -2.41508317
A63: 0.01333709992 | D63: -9.071745872 | E63: -8.32870388 | F63: -7.57914114 | G63: -6.839079857 | H63: -6.113175392 | I63: -5.408465385 | J63: -4.730480671 | K63: -4.081841469 | L63: -3.466398239 | M63: -2.886320353 | N63: -2.342456102 | O63: -1.95314157 | P63: -1.8360852 | Q63: -1.368272185 | R63: -0.9399170876 | S63: -0.5525579453 | T63: -0.2148975283 | U63: -0.1835827678 | V63: 0.05393624678 | W63: 0.3170008361 | X63: 0.5364791155 | Y63: 0.7132422328 | Z63: 0.8281981349 | AA63: 0.845179975 | AB63: 0.9385665655 | AC63: 0.9891092181 | AD63: 0.9986093044 | AE63: 0.9686865211 | AF63: 0.9018398523 | AG63: 0.801553905 | AH63: 0.6797967553 | AI63: 0.5350273252 | AJ63: 0.368938148 | AK63: 0.1891462058 | AL63: -6.268165453e-05 | AM63: -0.1894244701 | AN63: -0.3790489435 | AO63: -0.5537392497 | AP63: -0.7155869603 | AQ63: -0.8433318734 | AR63: -0.957732141 | AS63: -1.030260444 | AT63: -1.099456429 | AU63: -1.151985049
A64: 0.01830440015 | D64: -7.692365646 | E64: -7.090492249 | F64: -6.480507374 | G64: -5.875640869 | H64: -5.279779434 | I64: -4.698765755 | J64: -4.137211323 | K64: -3.597316265 | L64: -3.082268715 | M64: -2.593772173 | N64: -2.132659197 | O64: -1.800533175 | P64: -1.700247645 | Q64: -1.297072411 | R64: -0.9248254299 | S64: -0.5829628706 | T64: -0.2799031138 | U64: -0.2515846789 | V64: -0.03513155878 | W64: 0.2102658898 | X64: 0.4221551716 | Y64: 0.6001841426 | Z64: 0.7235472202 | AA64: 0.7427132726 | AB64: 0.8567823768 | AC64: 0.9363932014 | AD64: 0.9838901758 | AE64: 0.9999855757 | AF64: 0.9863209724 | AG64: 0.945536375 | AH64: 0.8845652342 | AI64: 0.8040274978 | AJ64: 0.7059859633 | AK64: 0.59568578 | AL64: 0.4757122397 | AM64: 0.3524786532 | AN64: 0.2270947546 | AO64: 0.1097894758 | AP64: -0.0003985137155 | AQ64: -0.0884841755 | AR64: -0.1687580347 | AS64: -0.2214037478 | AT64: -0.272331506 | AU64: -0.3124243915
A65: 0.02436530031 | D65: -6.5039258 | E65: -6.016572475 | F65: -5.520307541 | G65: -5.026111603 | H65: -4.537243366 | I65: -4.05856657 | J65: -3.593929768 | K65: -3.145166159 | L65: -2.714929819 | M65: -2.304594517 | N65: -1.914974928 | O65: -1.632691622 | P65: -1.547130942 | Q65: -1.201482415 | R65: -0.8796345592 | S65: -0.5809702873 | T65: -0.3121782541 | U65: -0.2869188488 | V65: -0.09284849465 | W65: 0.131394282 | X65: 0.3293483853 | Y65: 0.501432538 | Z65: 0.6254104376 | AA65: 0.6451237202 | AB65: 0.7672755718 | AC65: 0.8626304269 | AD65: 0.9321798682 | AE65: 0.9770380855 | AF65: 0.9979851842 | AG65: 0.996617198 | AH65: 0.9768221974 | AI65: 0.9410057068 | AJ65: 0.8904791474 | AK65: 0.8284929395 | AL65: 0.7576317787 | AM65: 0.6823672652 | AN65: 0.6034357548 | AO65: 0.5279025435 | AP65: 0.4556325078 | AQ65: 0.3964202702 | AR65: 0.3418319821 | AS65: 0.3048933744 | AT65: 0.2686736882 | AU65: 0.2392592728
A66: 0.03184910119 | D66: -5.4784832 | E66: -5.084671497 | F66: -4.681678772 | G66: -4.278653145 | H66: -3.878334999 | I66: -3.484776735 | J66: -3.10119009 | K66: -2.729096651 | L66: -2.370707512 | M66: -2.027157784 | N66: -1.699177146 | O66: -1.460253954 | P66: -1.387594938 | Q66: -1.092780828 | R66: -0.8160431385 | S66: -0.5569193959 | T66: -0.3208514452 | U66: -0.2985607684 | V66: -0.1267746687 | W66: 0.07499606162 | X66: 0.2565774322 | Y66: 0.4178227186 | Z66: 0.5371709466 | AA66: 0.5565319657 | AB66: 0.6798273325 | AC66: 0.7812752724 | AD66: 0.8629900217 | AE66: 0.9247890711 | AF66: 0.9674891829 | AG66: 0.9920328259 | AH66: 0.9999596477 | AI66: 0.9945393801 | AJ66: 0.9769797921 | AK66: 0.9494059086 | AL66: 0.9135175943 | AM66: 0.8722146749 | AN66: 0.8267938495 | AO66: 0.7817103863 | AP66: 0.7373430133 | AQ66: 0.7002760172 | AR66: 0.6652280688 | AS66: 0.6407186985 | AT66: 0.6163111925 | AU66: 0.5959034562
A67: 0.04123970121 | D67: -4.590987206 | E67: -4.274091721 | F67: -3.948108196 | G67: -3.620674372 | H67: -3.294097424 | I67: -2.971750259 | J67: -2.656307459 | K67: -2.349026442 | L67: -2.051744699 | M67: -1.765405536 | N67: -1.490625978 | O67: -1.28943336 | P67: -1.228064299 | Q67: -0.9780356884 | R67: -0.7416087389 | S67: -0.5184096694 | T67: -0.3127377629 | U67: -0.2932515144 | V67: -0.1428439617 | W67: 0.03646647185 | X67: 0.2001848966 | Y67: 0.3484006524 | Z67: 0.4604317248 | AA67: 0.4787894487 | AB67: 0.5977643132 | AC67: 0.7000665069 | AD67: 0.7863200307 | AE67: 0.8572928905 | AF67: 0.9129898548 | AG67: 0.9537337422 | AH67: 0.9798189402 | AI67: 0.9949018955 | AJ67: 0.9999913573 | AK67: 0.9961849451 | AL67: 0.9849230051 | AM67: 0.9681401849 | AN67: 0.9469197989 | AO67: 0.9240255952 | AP67: 0.9001914859 | AQ67: 0.8792478442 | AR67: 0.8589240313 | AS67: 0.8441588283 | AT67: 0.8291499019 | AU67: 0.816208899
A68: 0.05318459868 | D68: -3.820505381 | E68: -3.567081451 | F68: -3.304918766 | G68: -3.040397644 | H68: -2.775457859 | I68: -2.512898922 | J68: -2.254939318 | K68: -2.002610445 | L68: -1.757431984 | M68: -1.520183682 | N68: -1.291370153 | O68: -1.123017192 | P68: -1.071520567 | Q68: -0.8608911633 | R68: -0.6603698134 | S68: -0.4696279168 | T68: -0.2918474376 | U68: -0.2749715745 | V68: -0.1447362304 | W68: 0.01277101319 | X68: 0.1584428847 | Y68: 0.2922490537 | Z68: 0.3950073719 | AA68: 0.4120152593 | AB68: 0.5240150094 | AC68: 0.6225318313 | AD68: 0.7091254592 | AE68: 0.7833436728 | AF68: 0.8455129862 | AG68: 0.8957956433 | AH68: 0.9329680204 | AI68: 0.9611378908 | AJ68: 0.9812238216 | AK68: 0.9935621619 | AL68: 0.9992858171 | AM68: 0.9995006323 | AN68: 0.995366931 | AO68: 0.9883341789 | AP68: 0.9793521166 | AQ68: 0.9705557227 | AR68: 0.9612710476 | AS68: 0.9540731311 | AT68: 0.9464615583 | AU68: 0.9396075606
A69: 0.06832060218 | D69: -3.158810377 | E69: -2.957134485 | F69: -2.747241497 | G69: -2.534471989 | H69: -2.320453167 | I69: -2.107504368 | J69: -1.897459269 | K69: -1.691158533 | L69: -1.489853978 | M69: -1.2941854 | N69: -1.104557633 | O69: -0.9643880725 | P69: -0.9213991165 | Q69: -0.7449108362 | R69: -0.5758360624 | S69: -0.4138760567 | T69: -0.2611449063 | U69: -0.2466416955 | V69: -0.1349665076 | W69: 0.002077503828 | X69: 0.1301790625 | Y69: 0.2493524253 | Z69: 0.3421142101 | AA69: 0.3575554192 | AB69: 0.4604102075 | AC69: 0.553041935 | AD69: 0.6360710263 | AE69: 0.7098189592 | AF69: 0.7740544081 | AG69: 0.8284235597 | AH69: 0.8715760112 | AI69: 0.9074069262 | AJ69: 0.936563313 | AK69: 0.9590463042 | AL69: 0.9758077264 | AM69: 0.9873432517 | AN69: 0.9947471023 | AO69: 0.998598516 | AP69: 0.9999636412 | AQ69: 0.9996459484 | AR69: 0.9982929826 | AS69: 0.9967290759 | AT69: 0.9947046041 | AU69: 0.992595017
A70: 0.08690710366 | D70: -2.606842756 | E70: -2.446110487 | F70: -2.277771235 | G70: -2.106324434 | H70: -1.933136106 | I70: -1.760133743 | J70: -1.588836908 | K70: -1.419929743 | L70: -1.254445076 | M70: -1.092906833 | N70: -0.9356389642 | O70: -0.8188840151 | P70: -0.7829895616 | Q70: -0.6351138353 | R70: -0.4926374555 | S70: -0.3552869856 | T70: -0.2241969109 | U70: -0.211764589 | V70: -0.116472438 | W70: 0.002249662997 | X70: 0.1142231971 | Y70: 0.219470948 | Z70: 0.3022559881 | AA70: 0.3161002994 | AB70: 0.4093545973 | AC70: 0.4944608212 | AD70: 0.5724321604 | AE70: 0.6429231167 | AF70: 0.7058892846 | AG70: 0.7611527443 | AH70: 0.8063420653 | AI70: 0.8455494046 | AJ70: 0.8795034289 | AK70: 0.9077222347 | AL70: 0.9308962822 | AM70: 0.9491809011 | AN70: 0.9637601972 | AO70: 0.9745218158 | AP70: 0.9825845957 | AQ70: 0.9879106879 | AR70: 0.9919044971 | AS70: 0.9942694306 | AT70: 0.9962033629 | AU70: 0.9975519776
A71: 0.1085159034 | D71: -2.162785769 | E71: -2.033304214 | F71: -1.896837831 | G71: -1.757223368 | H71: -1.61561501 | I71: -1.473630786 | J71: -1.332542658 | K71: -1.19291091 | L71: -1.05559659 | M71: -0.9210318327 | N71: -0.7894778252 | O71: -0.6914284229 | P71: -0.6612204313 | Q71: -0.5363793373 | R71: -0.4154868126 | S71: -0.2982918024 | T71: -0.1850633472 | U71: -0.1743559986 | V71: -0.09287226945 | W71: 0.01029089 | X71: 0.1082796454 | Y71: 0.2011620253 | Z71: 0.2748467326 | AA71: 0.2871992886 | AB71: 0.3711604476 | AC71: 0.4487633407 | AD71: 0.5206382275 | AE71: 0.5867733359 | AF71: 0.6469172239 | AG71: 0.7004952431 | AH71: 0.7454702258 | AI71: 0.785556376 | AJ71: 0.8211534023 | AK71: 0.8518079519 | AL71: 0.8781895041 | AM71: 0.9001736045 | AN71: 0.9186938405 | AO71: 0.9333814383 | AP71: 0.9453554749 | AQ71: 0.9540231824 | AR71: 0.9613291025 | AS71: 0.9662041068 | AT71: 0.9707137942 | AU71: 0.9743691683
A72: 0.1322740018 | D72: -1.813512444 | E72: -1.707370043 | F72: -1.594832778 | G72: -1.479221106 | H72: -1.361518025 | I72: -1.243101358 | J72: -1.125051379 | K72: -1.007832289 | L72: -0.8921731114 | M72: -0.7784344554 | N72: -0.6668304205 | O72: -0.5833615661 | P72: -0.5575989485 | Q72: -0.450832814 | R72: -0.3469916582 | S72: -0.2458434403 | T72: -0.1468991488 | U72: -0.1375842988 | V72: -0.0674296394 | W72: 0.02302503027 | X72: 0.1093748733 | Y72: 0.1917743683 | Z72: 0.2575773001 | AA72: 0.2686213255 | AB72: 0.3443321288 | AC72: 0.4148766994 | AD72: 0.4809451401 | AE72: 0.5423194766 | AF72: 0.5987830758 | AG72: 0.6499484181 | AH72: 0.6932727695 | AI72: 0.7324564457 | AJ72: 0.7680882812 | AK72: 0.7994211912 | AL72: 0.826892972 | AM72: 0.8502551913 | AN72: 0.8706448078 | AO72: 0.8873155713 | AP72: 0.9013835788 | AQ72: 0.9119589329 | AR72: 0.9211195111 | AS72: 0.9274409413 | AT72: 0.9334738255 | AU72: 0.9385247827
A73: 0.1573891938 | D73: -1.539231062 | E73: -1.450531006 | F73: -1.355978012 | G73: -1.258485079 | H73: -1.158895135 | I73: -1.05839777 | J73: -0.9579244256 | K73: -0.8578642011 | L73: -0.7588440776 | M73: -0.6611694694 | N73: -0.5650185347 | O73: -0.4928887784 | P73: -0.4705919027 | Q73: -0.377962172 | R73: -0.2875325382 | S73: -0.1990862638 | T73: -0.111471273 | U73: -0.1032710075 | V73: -0.04244028777 | W73: 0.03786343709 | X73: 0.1146783829 | Y73: 0.188367188 | Z73: 0.2475260496 | AA73: 0.2574550509 | AB73: 0.3260495961 | AC73: 0.3903954029 | AD73: 0.4510765374 | AE73: 0.5079392791 | AF73: 0.5607338548 | AG73: 0.6089037657 | AH73: 0.6501227617 | AI73: 0.6878564358 | AJ73: 0.7224470973 | AK73: 0.7532180548 | AL73: 0.7806777358 | AM73: 0.8044883013 | AN73: 0.8254694343 | AO73: 0.842889607 | AP73: 0.857824564 | AQ73: 0.8691701889 | AR73: 0.8792650104 | AS73: 0.8863335252 | AT73: 0.8931877017 | AU73: 0.8990075588
A74: 0.1833554953 | D74: -1.321084023 | E74: -1.245623827 | F74: -1.164804578 | G74: -1.081209421 | H74: -0.9955630302 | I74: -0.9089050889 | J74: -0.8220492601 | K74: -0.7353241444 | L74: -0.6492769718 | M74: -0.5641694665 | N74: -0.4801518619 | O74: -0.4169557691 | P74: -0.3973953128 | Q74: -0.3159565628 | R74: -0.2361945659 | S74: -0.1579045802 | T74: -0.07934399694 | U74: -0.0720430389 | V74: -0.01947371848 | W74: 0.05319050327 | X74: 0.1221834868 | Y74: 0.1886356473 | Z74: 0.2422135025 | AA74: 0.2511981428 | AB74: 0.3137297928 | AC74: 0.3726839721 | AD74: 0.4286125302 | AE74: 0.4813369513 | AF74: 0.5305994153 | AG74: 0.5758991241 | AH74: 0.6147973537 | AI74: 0.6506411433 | AJ74: 0.6838653088 | AK74: 0.7136933804 | AL74: 0.7404821515 | AM74: 0.763813138 | AN74: 0.7846958637 | AO74: 0.802200079 | AP74: 0.8173932433 | AQ74: 0.8290874958 | AR74: 0.8395279646 | AS74: 0.8468790054 | AT74: 0.8540808558 | AU74: 0.860234499
A75: 0.2098882943 | D75: -1.144566059 | E75: -1.07936728 | F75: -1.00925827 | G75: -0.9365484118 | H75: -0.8618612289 | I75: -0.7861136794 | J75: -0.71002388 | K75: -0.6338713169 | L75: -0.5581390858 | M75: -0.4830538034 | N75: -0.4087431431 | O75: -0.3527152538 | P75: -0.3353545368 | Q75: -0.2629320323 | R75: -0.1917991191 | S75: -0.1217604652 | T75: -0.05053507537 | U75: -0.04397018626 | V75: 0.001306616934 | W75: 0.06807002425 | X75: 0.130607903 | Y75: 0.1909969449 | Z75: 0.2398589253 | AA75: 0.2480400056 | AB75: 0.3053922653 | AC75: 0.3596812189 | AD75: 0.4114224911 | AE75: 0.4604395032 | AF75: 0.5064730048 | AG75: 0.5489947796 | AH75: 0.5856226683 | AI75: 0.6195781827 | AJ75: 0.6512095332 | AK75: 0.6797480583 | AL75: 0.7055768967 | AM75: 0.7282686234 | AN75: 0.7486522794 | AO75: 0.765822053 | AP75: 0.7808062434 | AQ75: 0.7923237681 | AR75: 0.8027604222 | AS75: 0.8101090789 | AT75: 0.8173657656 | AU75: 0.8235797882
A76: 0.2368223965 | D76: -0.9993924499 | E76: -0.9423161149 | F76: -0.8807350993 | G76: -0.8167281747 | H76: -0.7508305907 | I76: -0.6838576794 | J76: -0.6164490581 | K76: -0.5488429666 | L76: -0.4814703465 | M76: -0.4145287871 | N76: -0.3481276929 | O76: -0.2979555428 | P76: -0.2823947668 | Q76: -0.2173636109 | R76: -0.1533288956 | S76: -0.09010253102 | T76: -0.0249005761 | U76: -0.01894715801 | V76: 0.03103450872 | W76: 0.08189661801 | X76: 0.1391293555 | Y76: 0.1943845898 | Z76: 0.2392259687 | AA76: 0.2467176467 | AB76: 0.2996180952 | AC76: 0.3498553932 | AD76: 0.3979180455 | AE76: 0.4436296821 | AF76: 0.4867290556 | AG76: 0.5266920924 | AH76: 0.5611507297 | AI76: 0.5932193995 | AJ76: 0.6232483387 | AK76: 0.6504557729 | AL76: 0.675170958 | AM76: 0.6969231963 | AN76: 0.7165922523 | AO76: 0.7332091928 | AP76: 0.7477906346 | AQ76: 0.7590351105 | AR76: 0.7692446709 | AS76: 0.7763995528 | AT76: 0.7835099101 | AU76: 0.7895914316
A77: 0.2640410066 | D77: -0.8784922361 | E77: -0.827981472 | F77: -0.773325026 | G77: -0.7164075375 | H77: -0.6576880217 | I77: -0.5978971124 | J77: -0.5376092196 | K77: -0.4770281315 | L77: -0.4165418148 | M77: -0.356323868 | N77: -0.2964683771 | O77: -0.251152575 | P77: -0.2370866686 | Q77: -0.178203553 | R77: -0.1200900525 | S77: -0.06256359071 | T77: -0.002368973335 | U77: 0.003070333274 | V77: 0.04613793641 | W77: 0.09388031065 | X77: 0.1471364349 | Y77: 0.1980047226 | Z77: 0.2393905967 | AA77: 0.2462862283 | AB77: 0.2953377068 | AC77: 0.3420431614 | AD77: 0.3868697882 | AE77: 0.4296422005 | AF77: 0.4700992703 | AG77: 0.507717073 | AH77: 0.5401506424 | AI77: 0.5704294443 | AJ77: 0.5988838673 | AK77: 0.6247276664 | AL77: 0.6482794285 | AM77: 0.6690634489 | AN77: 0.6879101992 | AO77: 0.7038453221 | AP77: 0.7178625464 | AQ77: 0.7286254168 | AR77: 0.7384671569 | AS77: 0.7453035116 | AT77: 0.7521373034 | AU77: 0.7579607368
A78: 0.2913933098 | D78: -0.7770244479 | E78: -0.7319182754 | F78: -0.6829744577 | G78: -0.6319163442 | H78: -0.5791389346 | I78: -0.5253030062 | J78: -0.470929265 | K78: -0.4161928892 | L78: -0.3614463806 | M78: -0.3068433404 | N78: -0.2524651289 | O78: -0.2112205029 | P78: -0.1984093785 | Q78: -0.1446933895 | R78: -0.09156862646 | S78: -0.03885665536 | T78: 0.01715408079 | U78: 0.0221573431 | V78: 0.05901754647 | W78: 0.1038520783 | X78: 0.1542159915 | Y78: 0.2013142705 | Z78: 0.2397143543 | AA78: 0.2460918427 | AB78: 0.2918030322 | AC78: 0.3354225159 | AD78: 0.3774010837 | AE78: 0.4175644219 | AF78: 0.4556519389 | AG78: 0.4911406934 | AH78: 0.5217043161 | AI78: 0.5503027439 | AJ78: 0.5772560239 | AK78: 0.6017765999 | AL78: 0.6241665483 | AM78: 0.6439360976 | AN78: 0.6619086862 | AO78: 0.6770964265 | AP78: 0.6904811263 | AQ78: 0.7007169724 | AR78: 0.7101048231 | AS78: 0.7165403366 | AT78: 0.7230106592 | AU78: 0.7284862995
A79: 0.3186945021 | D79: -0.6917403936 | E79: -0.6511811614 | F79: -0.6070306897 | G79: -0.5608837605 | H79: -0.5130850077 | I79: -0.4642394781 | J79: -0.4148250222 | K79: -0.3649938107 | L79: -0.3150698841 | M79: -0.265190661 | N79: -0.2154270113 | O79: -0.1776168346 | P79: -0.1658653617 | Q79: -0.1165166944 | R79: -0.06761647761 | S79: -0.01898927055 | T79: 0.03350587934 | U79: 0.03813830018 | V79: 0.07054432482 | W79: 0.1221698299 | X79: 0.1598932892 | Y79: 0.2037497312 | Z79: 0.2395668775 | AA79: 0.2454933077 | AB79: 0.2883075774 | AC79: 0.3292360008 | AD79: 0.3687167168 | AE79: 0.4065764248 | AF79: 0.4425548017 | AG79: 0.4761292636 | AH79: 0.5049858689 | AI79: 0.5320321918 | AJ79: 0.5575802326 | AK79: 0.5808409452 | AL79: 0.6021057963 | AM79: 0.6208785176 | AN79: 0.6379705071 | AO79: 0.6523868442 | AP79: 0.665099144 | AQ79: 0.6747493744 | AR79: 0.6836296916 | AS79: 0.6896103621 | AT79: 0.6956592202 | AU79: 0.7007240057
A80: 0.345882386 | D80: -0.6198637486 | E80: -0.5832439661 | F80: -0.5432067513 | G80: -0.5012516975 | H80: -0.4576883614 | I80: -0.4130805135 | J80: -0.3678738177 | K80: -0.322203517 | L80: -0.2763717175 | M80: -0.2305033952 | N80: -0.1846612692 | O80: -0.1497722119 | P80: -0.1389228106 | Q80: -0.09329386801 | R80: -0.04799699411 | S80: -0.002858843887 | T80: 0.04669526592 | U80: 0.05101029202 | V80: 0.07994173467 | W80: 0.1269554198 | X80: 0.1638267934 | Y80: 0.2048971802 | Z80: 0.2384715676 | AA80: 0.2440034747 | AB80: 0.2842995226 | AC80: 0.3228775263 | AD80: 0.3601665199 | AE80: 0.3959936798 | AF80: 0.4300985038 | AG80: 0.4619576335 | AH80: 0.4892618656 | AI80: 0.5148824453 | AJ80: 0.5391263962 | AK80: 0.5612020493 | AL80: 0.5813938975 | AM80: 0.5991991758 | AN80: 0.6154235005 | AO80: 0.6290655732 | AP80: 0.6410917044 | AQ80: 0.6501348019 | AR80: 0.6584767699 | AS80: 0.6639680266 | AT80: 0.6695548296 | AU80: 0.6741637588
A81: 0.3729591072 | D81: -0.5596493483 | E81: -0.5266312361 | F81: -0.4902738631 | G81: -0.4520170093 | H81: -0.412152946 | I81: -0.3712202609 | J81: -0.3296445012 | K81: -0.2875517309 | L81: -0.2452299595 | M81: -0.2027964592 | N81: -0.1603087187 | O81: -0.1279166192 | P81: -0.1178384572 | Q81: -0.07538799196 | R81: -0.0331704393 | S81: 0.008985943161 | T81: 0.05606826395 | U81: 0.06011268497 | V81: 0.08612339199 | W81: 0.1286729723 | X81: 0.1652001143 | Y81: 0.2039132714 | Z81: 0.2355463654 | AA81: 0.2407337129 | AB81: 0.2788539827 | AC81: 0.3153941929 | AD81: 0.3507770896 | AE81: 0.384829551 | AF81: 0.4172898233 | AG81: 0.4476317763 | AH81: 0.4735404253 | AI81: 0.4978682697 | AJ81: 0.5209199786 | AK81: 0.541899085 | AL81: 0.5610859394 | AM81: 0.5779716372 | AN81: 0.5933607817 | AO81: 0.6062443256 | AP81: 0.6175881028 | AQ81: 0.626013577 | AR81: 0.6338028312 | AS81: 0.6387811303 | AT81: 0.643876791 | AU81: 0.6479972005
A82: 0.4000523984 | D82: -0.5106691122 | E82: -0.4813936055 | F82: -0.4487202168 | G82: -0.4140637815 | H82: -0.3777177632 | I82: -0.3402127922 | J82: -0.3019669354 | K82: -0.263107866 | L82: -0.2239207625 | M82: -0.1845229119 | N82: -0.1449698806 | O82: -0.114745155 | P82: -0.1053342 | Q82: -0.06561753899 | R82: -0.02603005618 | S82: 0.01359805372 | T82: 0.05791777745 | U82: 0.06174435467 | V82: 0.08567487448 | W82: 0.1250415742 | X82: 0.1609856188 | Y82: 0.1978823245 | Z82: 0.2278731763 | AA82: 0.2327651531 | AB82: 0.269071877 | AC82: 0.3039182425 | AD82: 0.3377223909 | AE82: 0.3703074455 | AF82: 0.4014071226 | AG82: 0.4304872453 | AH82: 0.455206722 | AI82: 0.4784258306 | AJ82: 0.5004501343 | AK82: 0.5204722881 | AL82: 0.538771987 | AM82: 0.554831326 | AN82: 0.5694614053 | AO82: 0.5816392303 | AP82: 0.5923385024 | AQ82: 0.600161314 | AR82: 0.6074090004 | AS82: 0.6118623614 | AT82: 0.616453588 | AU82: 0.6200641394
A83: 0.4272390008 | D83: -0.4674065113 | E83: -0.4417827725 | F83: -0.4126605392 | G83: -0.3814429343 | H83: -0.3484301567 | I83: -0.3141507208 | J83: -0.2790195942 | K83: -0.2431692332 | L83: -0.2068857551 | M83: -0.1702889949 | N83: -0.1334333867 | O83: -0.1051946133 | P83: -0.09639439732 | Q83: -0.0591738373 | R83: -0.02198151127 | S83: 0.01535064075 | T83: 0.05682137609 | U83: 0.06045591831 | V83: 0.08269926161 | W83: 0.1196094677 | X83: 0.153671056 | Y83: 0.1897996217 | Z83: 0.2183169276 | AA83: 0.2229399234 | AB83: 0.2576245964 | AC83: 0.2909498513 | AD83: 0.3233326674 | AE83: 0.3545921147 | AF83: 0.3844562769 | AG83: 0.4123808742 | AH83: 0.435987711 | AI83: 0.4581604898 | AJ83: 0.4792078137 | AK83: 0.4983085394 | AL83: 0.5157441497 | AM83: 0.5309867263 | AN83: 0.5448583961 | AO83: 0.5563192368 | AP83: 0.5663558245 | AQ83: 0.5735490918 | AR83: 0.5802267194 | AS83: 0.5841143131 | AT83: 0.5881612301 | AU83: 0.5912162662
A84: 0.4545832872 | D84: -0.4223992527 | E84: -0.3995668292 | F84: -0.3732479811 | G84: -0.3448212743 | H84: -0.3145837784 | I84: -0.2830542028 | J84: -0.2506389618 | K84: -0.2174668759 | L84: -0.1838168949 | M84: -0.1498046666 | N84: -0.1154816672 | O84: -0.08913384378 | P84: -0.08091947436 | Q84: -0.0461172834 | R84: -0.01127911452 | S84: 0.02376303263 | T84: 0.06369561702 | U84: 0.06712009013 | V84: 0.08682866395 | W84: 0.1215248629 | X84: 0.1556892395 | Y84: 0.1878146082 | Z84: 0.2148066312 | AA84: 0.2191509455 | AB84: 0.2521129251 | AC84: 0.2837969363 | AD84: 0.3146218657 | AE84: 0.3444066048 | AF84: 0.3728774786 | AG84: 0.3994849622 | AH84: 0.421828568 | AI84: 0.4428022802 | AJ84: 0.4627173245 | AK84: 0.4807448983 | AL84: 0.4971681237 | AM84: 0.5114539862 | AN84: 0.5244314075 | AO84: 0.5350521207 | AP84: 0.5443102717 | AQ84: 0.5507800579 | AR84: 0.5567933321 | AS84: 0.5600402951 | AT84: 0.5634663105 | AU84: 0.5658926964
A85: 0.4820444882 | D85: -0.3795704246 | E85: -0.3592909575 | F85: -0.3355611563 | G85: -0.3097291291 | H85: -0.2820833921 | I85: -0.2531301975 | J85: -0.2232653499 | K85: -0.1926124841 | L85: -0.1614428014 | M85: -0.1298673004 | N85: -0.09793379158 | O85: -0.07337100059 | P85: -0.06571000069 | Q85: -0.0331924744 | R85: -0.0005804296816 | S85: 0.03229529411 | T85: 0.07052139938 | U85: 0.07374913245 | V85: 0.09125141799 | W85: 0.123899512 | X85: 0.1612152606 | Y85: 0.1866435558 | Z85: 0.2121687979 | AA85: 0.2162430435 | AB85: 0.247544542 | AC85: 0.2776401341 | AD85: 0.3069512844 | AE85: 0.3352962136 | AF85: 0.362398982 | AG85: 0.3877040446 | AH85: 0.4087854028 | AI85: 0.428552866 | AJ85: 0.4473216534 | AK85: 0.4642548561 | AL85: 0.4796385765 | AM85: 0.4929351807 | AN85: 0.5049819946 | AO85: 0.5147225857 | AP85: 0.5231617689 | AQ85: 0.5288687944 | AR85: 0.5341730118 | AS85: 0.5367373228 | AT85: 0.5394980907 | AU85: 0.5412480831
A86: 0.5095341206 | D86: -0.3387369812 | E86: -0.3207496405 | F86: -0.2993684709 | G86: -0.275906682 | H86: -0.2506406307 | I86: -0.2240628451 | J86: -0.1965580732 | K86: -0.168243736 | L86: -0.1393830776 | M86: -0.1100820974 | N86: -0.080384776 | O86: -0.05749597028 | P86: -0.05035472289 | Q86: -0.01998618245 | R86: 0.01052697841 | S86: 0.04135574028 | T86: 0.07804472744 | U86: 0.08108521998 | V86: 0.0964346081 | W86: 0.1271568686 | X86: 0.1612330973 | Y86: 0.1864695996 | Z86: 0.2105842084 | AA86: 0.2143959701 | AB86: 0.2440893203 | AC86: 0.2726381421 | AD86: 0.3004680574 | AE86: 0.3273966908 | AF86: 0.3531459272 | AG86: 0.3771538138 | AH86: 0.3969662488 | AI86: 0.4155140221 | AJ86: 0.4331172407 | AK86: 0.4489308894 | AL86: 0.4632452726 | AM86: 0.4755186737 | AN86: 0.486597836 | AO86: 0.4954187572 | AP86: 0.5030014515 | AQ86: 0.5079057813 | AR86: 0.5124601126 | AS86: 0.5143030882 | AT86: 0.5163570642 | AU86: 0.517385602
A87: 0.5370122194 | D87: -0.3001654446 | E87: -0.2842821479 | F87: -0.265070647 | G87: -0.243806541 | H87: -0.220751524 | I87: -0.1963844299 | J87: -0.1710792929 | K87: -0.1449471116 | L87: -0.1182438657 | M87: -0.09107074142 | N87: -0.06346789747 | O87: -0.04214873537 | P87: -0.03549550474 | Q87: -0.007145371754 | R87: 0.02139452472 | S87: 0.0502955243 | T87: 0.08553502709 | U87: 0.08839913458 | V87: 0.101697363 | W87: 0.1306008548 | X87: 0.1612793952 | Y87: 0.1866618395 | Z87: 0.2094350755 | AA87: 0.2129930705 | AB87: 0.2411430329 | AC87: 0.2682005763 | AD87: 0.2945971787 | AE87: 0.3201496303 | AF87: 0.3445770741 | AG87: 0.3673103452 | AH87: 0.3858618736 | AI87: 0.4031910598 | AJ87: 0.4196242988 | AK87: 0.434307307 | AL87: 0.4475359023 | AM87: 0.458764255 | AN87: 0.4688501358 | AO87: 0.4767225683 | AP87: 0.4834215343 | AQ87: 0.4874878228 | AR87: 0.4912601411 | AS87: 0.4923473001 | AT87: 0.4936571717 | AU87: 0.4939227104
A88: 0.564448595 | D88: -0.2637574077 | E88: -0.249814868 | F88: -0.2326168567 | G88: -0.2133983374 | H88: -0.192404449 | I88: -0.1701005399 | J88: -0.1468505412 | K88: -0.1227592453 | L88: -0.09807600081 | M88: -0.07289747149 | N88: -0.04726019502 | O88: -0.02741596103 | P88: -0.02122198232 | Q88: 0.005229780916 | R88: 0.03191082925 | S88: 0.05899267644 | T88: 0.09288804978 | U88: 0.09558567405 | V88: 0.1068989187 | W88: 0.1340792775 | X88: 0.1622751504 | Y88: 0.1870245785 | Z88: 0.2085359693 | AA88: 0.2118483335 | AB88: 0.2385177016 | AC88: 0.2641379535 | AD88: 0.2891484201 | AE88: 0.3133645058 | AF88: 0.3365021944 | AG88: 0.3579835892 | AH88: 0.3752816319 | AI88: 0.3913928866 | AJ88: 0.4066515565 | AK88: 0.4201926291 | AL88: 0.4323189855 | AM88: 0.4424802065 | AN88: 0.4515470862 | AO88: 0.4584437013 | AP88: 0.4642302394 | AQ88: 0.4674234092 | AR88: 0.4703824818 | AS88: 0.4706785083 | AT88: 0.4712065756 | AU88: 0.4706667066
A89: 0.5918434262 | D89: -0.2293499261 | E89: -0.2172094584 | F89: -0.2018929869 | G89: -0.1845912784 | H89: -0.1655306667 | I89: -0.1451633871 | J89: -0.1238439679 | K89: -0.1016710848 | L89: -0.07888831943 | M89: -0.05558804795 | N89: -0.03180393949 | O89: -0.01335171238 | P89: -0.007591214962 | Q89: 0.01706812531 | R89: 0.04199023545 | S89: 0.06734916568 | T89: 0.09999957681 | U89: 0.1025396287 | V89: 0.1119148284 | W89: 0.1374563575 | X89: 0.1636870354 | Y89: 0.1873709559 | Z89: 0.2077269703 | AA89: 0.2108007818 | AB89: 0.2360473722 | AC89: 0.2602796555 | AD89: 0.283946991 | AE89: 0.3068630099 | AF89: 0.3287396431 | AG89: 0.3489887714 | AH89: 0.3650362492 | AI89: 0.3799261153 | AJ89: 0.3940019011 | AK89: 0.4063861966 | AL89: 0.4173904061 | AM89: 0.4264588356 | AN89: 0.4344783127 | AO89: 0.4403712749 | AP89: 0.4452100396 | AQ89: 0.4474956095 | AR89: 0.4496079087 | AS89: 0.4490748644 | AT89: 0.4487810433 | AU89: 0.4473903477
A90: 0.6192011237 | D90: -0.1967557967 | E90: -0.1862982661 | F90: -0.1727525145 | G90: -0.1572600007 | H90: -0.1400255114 | I90: -0.1214882657 | J90: -0.1019940078 | K90: -0.08163549751 | L90: -0.06065127254 | M90: -0.03912976757 | N90: -0.01710338891 | O90: 2.930582195e-05 | P90: 0.005378809758 | Q90: 0.02833586 | R90: 0.05158520862 | S90: 0.07530472428 | T90: 0.1067995355 | U90: 0.1091899052 | V90: 0.1166574433 | W90: 0.1406330913 | X90: 0.1651471406 | Y90: 0.1874729842 | Z90: 0.2068839818 | AA90: 0.2097250223 | AB90: 0.2335999161 | AC90: 0.2564869225 | AD90: 0.2788479626 | AE90: 0.300494343 | AF90: 0.3211330175 | AG90: 0.3401638567 | AH90: 0.3549567461 | AI90: 0.3686149418 | AJ90: 0.3814932704 | AK90: 0.3926996291 | AL90: 0.4025558233 | AM90: 0.4104999304 | AN90: 0.4174394011 | AO90: 0.4222956002 | AP90: 0.4261458814 | AQ90: 0.4274865687 | AR90: 0.4287144244 | AS90: 0.4273102582 | AT90: 0.426150322 | AU90: 0.4238586426
A91: 0.6465278864 | D91: -0.1657647192 | E91: -0.1568827182 | F91: -0.1450121701 | G91: -0.1312379241 | H91: -0.1157394797 | I91: -0.0989427343 | J91: -0.08118505031 | K91: -0.06255325675 | L91: -0.04328155145 | M91: -0.02345553041 | N91: -0.003105573123 | O91: 0.01276928466 | P91: 0.01772590354 | Q91: 0.03905617818 | R91: 0.06070589647 | S91: 0.08285653591 | T91: 0.1132830754 | U91: 0.1155305356 | V91: 0.1210981831 | W91: 0.1435693204 | X91: 0.1665012091 | Y91: 0.1867571324 | Z91: 0.2059356272 | AA91: 0.2085482776 | AB91: 0.2310945392 | AC91: 0.2526706159 | AD91: 0.2737542689 | AE91: 0.2941537201 | AF91: 0.3135699928 | AG91: 0.3313886225 | AH91: 0.3449133635 | AI91: 0.3573203683 | AJ91: 0.3689778447 | AK91: 0.3789764941 | AL91: 0.3876502514 | AM91: 0.3944304585 | AN91: 0.4002523422 | AO91: 0.4040269554 | AP91: 0.4068452418 | AQ91: 0.4071974456 | AR91: 0.4074977934 | AS91: 0.4051748514 | AT91: 0.4030989707 | AU91: 0.3998497725
A92: 0.6738296151 | D92: -0.1361690313 | E92: -0.1287619621 | F92: -0.1184832975 | G92: -0.1063510776 | H92: -0.09251425415 | I92: -0.07738440484 | J92: -0.06129058823 | K92: -0.04431343079 | L92: -0.026683487 | M92: -0.008486132137 | N92: 0.0102567561 | O92: 0.0249227751 | P92: 0.02950103767 | Q92: 0.04926702008 | R92: 0.06937717646 | S92: 0.09001677483 | T92: 0.1194584146 | U92: 0.1215686798 | V92: 0.1252227873 | W92: 0.1462390572 | X92: 0.1676711738 | Y92: 0.1869202554 | Z92: 0.2048259377 | AA92: 0.2072131932 | AB92: 0.2284654379 | AC92: 0.2487559021 | AD92: 0.2685821652 | AE92: 0.2877486646 | AF92: 0.3059493005 | AG92: 0.322552681 | AH92: 0.3347841501 | AI92: 0.3459090889 | AJ92: 0.3563114703 | AK92: 0.3650616705 | AL92: 0.3725081086 | AM92: 0.378075242 | AN92: 0.3827355504 | AO92: 0.3853699863 | AP92: 0.3871076405 | AQ92: 0.3864195049 | AR92: 0.3857423365 | AS92: 0.3824458718 | AT92: 0.3793970942 | AU92: 0.3751256168
A93: 0.7011119723 | D93: -0.1077607721 | E93: -0.1017278805 | F93: -0.0929653123 | G93: -0.08241032064 | H93: -0.07017401606 | I93: -0.05665159971 | J93: -0.04216336831 | K93: -0.02678302489 | L93: -0.01073954813 | M93: 0.005883733742 | N93: 0.02307327464 | O93: 0.0365688242 | P93: 0.0407804735 | Q93: 0.05903179571 | R93: 0.07764945924 | S93: 0.0968233794 | T93: 0.1253646612 | U93: 0.1273424029 | V93: 0.129042685 | W93: 0.1486418694 | X93: 0.1686281413 | Y93: 0.1942901164 | Z93: 0.2035213709 | AA93: 0.2056850493 | AB93: 0.2256689519 | AC93: 0.2446891069 | AD93: 0.2632680535 | AE93: 0.2812055647 | AF93: 0.2981870472 | AG93: 0.3135611117 | AH93: 0.324460119 | AI93: 0.3342580795 | AJ93: 0.3433576822 | AK93: 0.3508051336 | AL93: 0.3569663465 | AM93: 0.3612609208 | AN93: 0.3647004962 | AO93: 0.3661274314 | AP93: 0.366725564 | AQ93: 0.3649355769 | AR93: 0.3632223308 | AS93: 0.3588888347 | AT93: 0.3548010588 | AU93: 0.3494322002
A94: 0.7283806205 | D94: -0.08034259826 | E94: -0.07557730377 | F94: -0.06825958937 | G94: -0.05922726169 | H94: -0.04854342714 | I94: -0.03658338636 | J94: -0.02365729213 | K94: -0.009831323288 | L94: 0.004663809203 | M94: 0.01975696906 | N94: 0.03542918339 | O94: 0.04778278619 | P94: 0.05163631961 | Q94: 0.0684088245 | R94: 0.08556761593 | S94: 0.1033083722 | T94: 0.1310278773 | U94: 0.1328767687 | V94: 0.1325591356 | W94: 0.1507662982 | X94: 0.1693398356 | Y94: 0.1924343556 | Z94: 0.2019780576 | AA94: 0.2039192468 | AB94: 0.2226510048 | AC94: 0.2404049635 | AD94: 0.2577354908 | AE94: 0.2744365931 | AF94: 0.2901835442 | AG94: 0.3043012619 | AH94: 0.3138111234 | AI94: 0.3222198486 | AJ94: 0.32995224 | AK94: 0.3360258937 | AL94: 0.3408281505 | AM94: 0.3437797725 | AN94: 0.3459150195 | AO94: 0.3460595906 | AP94: 0.3454457819 | AQ94: 0.3424802721 | AR94: 0.3396615982 | AS94: 0.3342162967 | AT94: 0.3290117383 | AU94: 0.3224571347
A95: 0.755640626 | D95: -0.0537006259 | E95: -0.05007566512 | F95: -0.04412506148 | G95: -0.03656300157 | H95: -0.02739068307 | I95: -0.01695778221 | J95: -0.005561430007 | K95: 0.006737313699 | L95: 0.01971369796 | M95: 0.03330310062 | N95: 0.04748174921 | O95: 0.05871191621 | P95: 0.06221245974 | Q95: 0.07752835006 | R95: 0.09324840456 | S95: 0.1095753536 | T95: 0.1365675628 | U95: 0.1382901073 | V95: 0.135845542 | W95: 0.1526724994 | X95: 0.169849813 | Y95: 0.1898430735 | Z95: 0.2002095133 | AA95: 0.2019299865 | AB95: 0.2194155753 | AC95: 0.2358943373 | AD95: 0.2519618571 | AE95: 0.2674051523 | AF95: 0.2818873823 | AG95: 0.2947050333 | AH95: 0.302746594 | AI95: 0.3096815944 | AJ95: 0.3159609437 | AK95: 0.3205684423 | AL95: 0.3239185512 | AM95: 0.325437963 | AN95: 0.3261653185 | AO95: 0.3249359727 | AP95: 0.3230217099 | AQ95: 0.3187924623 | AR95: 0.3147856295 | AS95: 0.308140099 | AT95: 0.3017267883 | AU95: 0.2938817441
A96: 0.7828965187 | D96: -0.02764122188 | E96: -0.02499916777 | F96: -0.02032556757 | G96: -0.01418093685 | H96: -0.006485743448 | I96: 0.002444992308 | J96: 0.01232886594 | K96: 0.02311258391 | L96: 0.03458857536 | M96: 0.04668067396 | N96: 0.05937517434 | O96: 0.06948839873 | P96: 0.0726371929 | Q96: 0.08650320023 | R96: 0.1007893905 | S96: 0.1157071292 | T96: 0.1420696527 | U96: 0.1436672807 | V96: 0.1389447749 | W96: 0.1543878466 | X96: 0.1701671183 | Y96: 0.1877092272 | Z96: 0.1981941164 | AA96: 0.1996994764 | AB96: 0.2159339041 | AC96: 0.2311129123 | AD96: 0.2458868027 | AE96: 0.2600340843 | AF96: 0.2732032239 | AG96: 0.2846564949 | AH96: 0.2911213338 | AI96: 0.2964691818 | AJ96: 0.3011822999 | AK96: 0.3042043149 | AL96: 0.3059877157 | AM96: 0.3059480488 | AN96: 0.305150032 | AO96: 0.3024307191 | AP96: 0.2991071641 | AQ96: 0.2935069501 | AR96: 0.2882120311 | AS96: 0.280259937 | AT96: 0.2725270092 | AU96: 0.2632651031
A97: 0.810151875 | D97: -0.001962492941 | E97: -9.386082093e-05 | F97: 0.003422788577 | G97: 0.008216098882 | H97: 0.01447123475 | I97: 0.02191889286 | J97: 0.03029102273 | K97: 0.03957084939 | L97: 0.04954176396 | M97: 0.06013077497 | N97: 0.07133410871 | O97: 0.08032413572 | P97: 0.08311825246 | Q97: 0.09552425146 | R97: 0.1083644554 | S97: 0.1218609363 | T97: 0.1477179378 | U97: 0.1491907239 | V97: 0.1419680119 | W97: 0.1560056061 | X97: 0.1703654826 | Y97: 0.1859420091 | Z97: 0.195946008 | AA97: 0.1972570717 | AB97: 0.2122236192 | AC97: 0.2260585874 | AD97: 0.2394876182 | AE97: 0.2522787154 | AF97: 0.2640624642 | AG97: 0.2740592659 | AH97: 0.2787987888 | AI97: 0.2824071348 | AJ97: 0.2854043841 | AK97: 0.2866853178 | AL97: 0.2867652178 | AM97: 0.2849905789 | AN97: 0.2825232744 | AO97: 0.2781674862 | AP97: 0.2732996047 | AQ97: 0.2661969662 | AR97: 0.2594918609 | AS97: 0.2501038909 | AT97: 0.2409161925 | AU97: 0.2300827801
A98: 0.8374077082 | D98: 0.02352485806 | E98: 0.02490598895 | F98: 0.02743723802 | G98: 0.03097474203 | H98: 0.03584034741 | I98: 0.04181790352 | J98: 0.04868645966 | K98: 0.05645414442 | L98: 0.06489802152 | M98: 0.07396196574 | N98: 0.08364773542 | O98: 0.09149336815 | P98: 0.09392488003 | Q98: 0.1048405543 | R98: 0.1162020043 | S98: 0.1282448322 | T98: 0.1537599862 | U98: 0.1551065147 | V98: 0.1450617909 | W98: 0.1576496065 | X98: 0.1705444157 | Y98: 0.1843568087 | Z98: 0.1934641302 | AA98: 0.1946432739 | AB98: 0.2083135396 | AC98: 0.2207341194 | AD98: 0.2327395231 | AE98: 0.244084686 | AF98: 0.2543779612 | AG98: 0.2627878487 | AH98: 0.265596658 | AI98: 0.2672589719 | AJ98: 0.2683410943 | AK98: 0.2676806748 | AL98: 0.2658554018 | AM98: 0.2621413469 | AN98: 0.2578143477 | AO98: 0.2516354918 | AP98: 0.2450533658 | AQ98: 0.2362843454 | AR98: 0.2280172706 | AS98: 0.2170333117 | AT98: 0.2062228322 | AU98: 0.1936248541
A99: 0.8646550775 | D99: 0.04898723215 | E99: 0.05027595162 | F99: 0.05207855999 | G99: 0.05451593548 | H99: 0.0580682531 | I99: 0.06261125207 | J99: 0.06798931956 | K99: 0.07421962917 | L99: 0.08110575378 | M99: 0.08860343695 | N99: 0.09672326595 | O99: 0.1033855677 | P99: 0.1054404154 | Q99: 0.114810586 | R99: 0.1246344894 | S99: 0.1351653934 | T99: 0.1605771333 | U99: 0.1617940366 | V99: 0.1484477073 | W99: 0.1595112532 | X99: 0.1708632261 | Y99: 0.182948783 | Z99: 0.1905674785 | AA99: 0.1919252872 | AB99: 0.2042642981 | AC99: 0.2151634693 | AD99: 0.2256275117 | AE99: 0.2353947163 | AF99: 0.2440453917 | AG99: 0.250682056 | AH99: 0.251270026 | AI99: 0.2507013381 | AJ99: 0.2495954633 | AK99: 0.246751368 | AL99: 0.2427110672 | AM99: 0.2368050069 | AN99: 0.2303658575 | AO99: 0.2221217304 | AP99: 0.2136068791 | AQ99: 0.2029627115 | AR99: 0.1929410398 | AS99: 0.1801582575 | AT99: 0.1675110012 | AU99: 0.1529012471
A100: 0.8918520212 | D100: 0.07453463227 | E100: 0.0762751475 | F100: 0.07774248719 | G100: 0.07934035361 | H100: 0.08172243834 | I100: 0.08492963761 | J100: 0.08883331716 | K100: 0.09351637959 | L100: 0.09880759567 | M100: 0.1046810672 | N100: 0.1111633778 | O100: 0.1165830046 | P100: 0.1182396933 | Q100: 0.1259784251 | R100: 0.1341725141 | S100: 0.1430992335 | T100: 0.1687940508 | U100: 0.1698755026 | V100: 0.1524796188 | W100: 0.16190207 | X100: 0.1715886891 | Y100: 0.1818783432 | Z100: 0.1862563044 | AA100: 0.1892110556 | AB100: 0.2001974881 | AC100: 0.2094143629 | AD100: 0.2181617171 | AE100: 0.2261561006 | AF100: 0.2329415232 | AG100: 0.2375342846 | AH100: 0.2354800701 | AI100: 0.2322750539 | AJ100: 0.2286050171 | AK100: 0.223199293 | AL100: 0.2165779471 | AM100: 0.2081224024 | AN100: 0.1992321461 | AO100: 0.1886013001 | AP100: 0.1778669953 | AQ100: 0.1650764793 | AR100: 0.1530507207 | AS100: 0.1382066756 | AT100: 0.1234437302 | AU100: 0.1064973101
A101: 0.9188423753 | D101: 0.1001280397 | E101: 0.1030480787 | F101: 0.1047786027 | G101: 0.1059383526 | H101: 0.1074948162 | I101: 0.109548457 | J101: 0.1120755896 | K101: 0.115246959 | L101: 0.1189253628 | M101: 0.1231169179 | N101: 0.1278753132 | O101: 0.1319746971 | P101: 0.133203879 | Q101: 0.1391915679 | R101: 0.1456229389 | S101: 0.1528099626 | T101: 0.179507494 | U101: 0.1804443002 | V101: 0.1577374786 | W101: 0.1653399915 | X101: 0.1731720567 | Y101: 0.1814967692 | Z101: 0.1922365725 | AA101: 0.1865769029 | AB101: 0.1963407993 | AC101: 0.2036295086 | AD101: 0.21039325 | AE101: 0.216319263 | AF101: 0.2209026664 | AG101: 0.2230422497 | AH101: 0.2176963389 | AI101: 0.2112494409 | AJ101: 0.2045450211 | AK101: 0.1959462911 | AL101: 0.1862498969 | AM101: 0.1747398525 | AN101: 0.1629263461 | AO101: 0.1494658887 | AP101: 0.1361216754 | AQ101: 0.1208189502 | AR101: 0.106452994 | AS101: 0.08919370174 | AT101: 0.0719351992 | AU101: 0.05220577121
A102: 0.9451127052 | D102: 0.1253213882 | E102: 0.130349353 | F102: 0.1331415325 | G102: 0.1346397996 | H102: 0.1359311044 | I102: 0.1372592598 | J102: 0.1387137324 | K102: 0.1405624449 | L102: 0.1427208483 | M102: 0.1452454478 | N102: 0.1482332647 | O102: 0.150948301 | P102: 0.1517204791 | Q102: 0.155830875 | R102: 0.1603421718 | S102: 0.1656198204 | T102: 0.1948345155 | U102: 0.1956141442 | V102: 0.1653279066 | W102: 0.1708596796 | X102: 0.176573962 | Y102: 0.1826770902 | Z102: 0.1921909302 | AA102: 0.1837910116 | AB102: 0.1933202446 | AC102: 0.1983246356 | AD102: 0.2027169317 | AE102: 0.2061439008 | AF102: 0.2080328465 | AG102: 0.2071146816 | AH102: 0.1975096613 | AI102: 0.186998263 | AJ102: 0.1764259785 | AK102: 0.1639243215 | AL102: 0.150453791 | AM102: 0.1352175921 | AN102: 0.1198593229 | AO102: 0.1029985175 | AP102: 0.08655438572 | AQ102: 0.06829171628 | AR102: 0.05117817596 | AS102: 0.03107420169 | AT102: 0.01084862929 | AU102: -0.01223192085
A103: 0.9693269134 | D103: 0.1488121301 | E103: 0.1567581892 | F103: 0.1616614312 | G103: 0.1644923389 | H103: 0.1664366126 | I103: 0.1678573191 | J103: 0.1689121872 | K103: 0.1699666679 | L103: 0.1709932387 | M103: 0.172109738 | N103: 0.1734696478 | O103: 0.174847275 | P103: 0.1751602888 | Q103: 0.1773602813 | R103: 0.1798450351 | S103: 0.1830640137 | T103: 0.219339028 | U103: 0.2199423164 | V103: 0.1765330583 | W103: 0.1796369404 | X103: 0.1828328222 | Y103: 0.1862578541 | Z103: 0.192033723 | AA103: 0.1867560297 | AB103: 0.1916640103 | AC103: 0.1937962919 | AD103: 0.1951625943 | AE103: 0.1953511834 | AF103: 0.1936872751 | AG103: 0.188650161 | AH103: 0.1728530675 | AI103: 0.1569571793 | AJ103: 0.141211167 | AK103: 0.1236461252 | AL103: 0.1052794605 | AM103: 0.08523992449 | AN103: 0.06533583254 | AO103: 0.04415518045 | AP103: 0.02381928824 | AQ103: 0.00186437869 | AR103: -0.01867520437 | AS103: -0.0423485525 | AT103: -0.06633953005 | AU103: -0.09372808784
A104: 0.9894369841 | D104: 0.1684344709 | E104: 0.1799105555 | F104: 0.187780261 | G104: 0.1930196285 | H104: 0.1968514174 | I104: 0.1996441483 | J104: 0.2015598416 | K104: 0.2030128241 | L104: 0.2039980292 | M104: 0.2046727538 | N104: 0.2052299231 | O104: 0.20581007 | P104: 0.2058107853 | Q104: 0.206655547 | R104: 0.2075382322 | S104: 0.2090203911 | T104: 0.2613297999 | U104: 0.2617502213 | V104: 0.1967690587 | W104: 0.1975498199 | X104: 0.1985233873 | Y104: 0.1999270767 | Z104: 0.2033035159 | AA104: 0.2048678249 | AB104: 0.1968608797 | AC104: 0.196090728 | AD104: 0.1942377985 | AE104: 0.1908530742 | AF104: 0.1851531267 | AG104: 0.1752669066 | AH104: 0.151987806 | AI104: 0.1297776103 | AJ104: 0.1084579602 | AK104: 0.08539521694 | AL104: 0.06179869175 | AM104: 0.03670750931 | AN104: 0.01209411118 | AO104: -0.01342291292 | AP104: -0.03750498965 | AQ104: -0.06286532432 | AR104: -0.08650033176 | AS104: -0.1133818999 | AT104: -0.1408767402 | AU104: -0.1724405885
A105: 1 | D105: 0.1782885343 | E105: 0.1917744875 | F105: 0.20143722 | G105: 0.2082351893 | H105: 0.213374719 | I105: 0.2171937525 | J105: 0.2198173106 | K105: 0.2216575742 | L105: 0.2226848602 | M105: 0.2230498791 | N105: 0.2229466289 | O105: 0.2228215784 | P105: 0.2225328237 | Q105: 0.2220846564 | R105: 0.2213481963 | S105: 0.2209916413 | T105: 0.409496516 | U105: 0.4096308947 | V105: 0.2007949501 | W105: 0.1981646866 | X105: 0.1950673908 | Y105: 0.1912878603 | Z105: 0.1878322065 | AA105: 0.1884008646 | AB105: 0.1819288731 | AC105: 0.1752192378 | AD105: 0.1667837948 | AE105: 0.1560081095 | AF105: 0.1417857111 | AG105: 0.1220343783 | AH105: 0.07952911407 | AI105: 0.04309779406 | AJ105: 0.009230912663 | AK105: -0.02644352987 | AL105: -0.0621737875 | AM105: -0.09914030135 | AN105: -0.1349436045 | AO105: -0.1708884388 | AP105: -0.2040601373 | AQ105: -0.237893343 | AR105: -0.269382596 | AS105: -0.3045979738 | AT105: -0.3411574066 | AU105: -0.3834248185

Sheet BEM
C1: alpha | D1: =TRANSPOSE(plot!R15:R19) -> -4.239305149 | E1: -0.1071974791 | F1: 4.818772965 | G1: 18 | H1: 22
C2: cl | D2: -0.01108149927 | E2: 0.4846413209 | F2: 1.072460105 | G2: 2.591813833 | H2: 3.027293478
C3: cd | D3: 0 | E3: 0 | F3: 0 | G3: 0 | H3: 0
C4: cm | D4: -0.1009127328 | E4: -0.1077930494 | F4: -0.1166339548 | G4: -0.1417353612 | H4: -0.1491820062
A5: x | B5: y | C5: z | D5: Cp | E5: Cp | F5: Cp | G5: Cp | H5: Cp
A6: =IMREAL(C6) -> 0.9949286 | B6: =IMAGINARY(C6) -> 0.00263935 | C6: 0.9949286+0.00263935i | D6: 0.1507846572 | E6: 0.1488518334 | F6: 0.1580827401 | G6: 0.2412463255 | H6: 0.281406294
A7: =IMREAL(C7) -> 0.9803187 | B7: =IMAGINARY(C7) -> 0.00656095 | C7: 0.9803187+0.00656095i | D7: 0.1379990385 | E7: 0.1266727899 | F7: 0.1249925555 | G7: 0.1828117961 | H7: 0.2169854309
A8: 0.95941085 | B8: 0.0120418 | C8: 0.95941085+0.0120418i | D8: 0.06822126628 | E8: 0.04754084008 | F8: 0.03566097177 | G8: 0.07337009834 | H8: 0.1039842485
A9: 0.9357262 | B9: 0.0180529 | C9: 0.9357262+0.0180529i | D9: 0.01203408943 | E9: -0.01788495567 | F9: -0.04009946319 | G9: -0.02426208134 | H9: 0.001895150791
A10: 0.91072645 | B10: 0.02417185 | C10: 0.91072645+0.02417185i | D10: -0.03469545191 | E10: -0.07367623694 | F10: -0.1062182541 | G10: -0.1133027353 | H10: -0.09220502845
A11: 0.88521985 | B11: 0.03017785 | C11: 0.88521985+0.03017785i | D11: -0.074294662 | E11: -0.1221548589 | F11: -0.1649697476 | G11: -0.1956943808 | H11: -0.1801068087
A12: 0.8595144 | B12: 0.03599105 | C12: 0.8595144+0.03599105i | D12: -0.1086386436 | E12: -0.1652614034 | F12: -0.2183421324 | G12: -0.273382767 | H12: -0.2636950496
A13: 0.83371195 | B13: 0.0415867 | C13: 0.83371195+0.0415867i | D13: -0.1390280356 | E13: -0.2043741716 | F13: -0.267787196 | G13: -0.3479004228 | H13: -0.3444914511
A14: 0.8078473 | B14: 0.0469569 | C14: 0.8078473+0.0469569i | D14: -0.1663462787 | E14: -0.2404453128 | F14: -0.3143278964 | G14: -0.4203863718 | H14: -0.4236463598
A15: 0.78193475 | B15: 0.05209825 | C15: 0.78193475+0.05209825i | D15: -0.1911988937 | E15: -0.2741384333 | F15: -0.3586913935 | G15: -0.4916943277 | H15: -0.5020363787
A16: 0.75598245 | B16: 0.05700825 | C16: 0.75598245+0.05700825i | D16: -0.2140206577 | E16: -0.3059393661 | F16: -0.4014223476 | G16: -0.5625030267 | H16: -0.5803710587
A17: 0.72999675 | B17: 0.0616842 | C17: 0.72999675+0.0616842i | D17: -0.2351323672 | E17: -0.3362159331 | F17: -0.4429453977 | G17: -0.633380877 | H17: -0.6592566873
A18: 0.7039835 | B18: 0.06612285 | C18: 0.7039835+0.06612285i | D18: -0.2547760444 | E18: -0.3652555108 | F18: -0.4836050928 | G18: -0.7048293816 | H18: -0.7392398686
A19: 0.67794855 | B19: 0.07032025 | C19: 0.67794855+0.07032025i | D19: -0.2731375272 | E19: -0.3932894838 | F19: -0.5236923814 | G19: -0.7773136515 | H19: -0.8208387538
A20: 0.65189795 | B20: 0.07427165 | C20: 0.65189795+0.07427165i | D20: -0.2903551277 | E20: -0.4205028097 | F20: -0.5634553043 | G20: -0.8512761301 | H20: -0.9045576172
A21: 0.62583785 | B21: 0.07797155 | C21: 0.62583785+0.07797155i | D21: -0.3065409003 | E21: -0.4470578258 | F21: -0.6031258544 | G21: -0.9271711037 | H21: -0.9909233608
A22: 0.59977475 | B22: 0.0814136 | C22: 0.59977475+0.0814136i | D22: -0.3217808413 | E22: -0.473095221 | F22: -0.6429222047 | G22: -1.005471778 | H22: -1.080494377
A23: 0.5737156 | B23: 0.0845906 | C23: 0.5737156+0.0845906i | D23: -0.3361479518 | E23: -0.4987496707 | F23: -0.683067765 | G23: -1.086699619 | H23: -1.173893095
A24: 0.5476675 | B24: 0.08749455 | C24: 0.5476675+0.08749455i | D24: -0.3497223283 | E24: -0.5241743514 | F24: -0.7238215112 | G24: -1.171471825 | H24: -1.271858712
A25: 0.5216395 | B25: 0.0901163 | C25: 0.5216395+0.0901163i | D25: -0.3625874004 | E25: -0.5495389518 | F25: -0.7654790111 | G25: -1.260514485 | H25: -1.375264921
A26: 0.4956392 | B26: 0.0924458 | C26: 0.4956392+0.0924458i | D26: -0.3748313111 | E26: -0.5750361608 | F26: -0.8083864495 | G26: -1.354702745 | H26: -1.485169123
A27: 0.4696857 | B27: 0.09447175 | C27: 0.4696857+0.09447175i | D27: -0.3867895077 | E27: -0.6011612392 | F27: -0.8532646398 | G27: -1.455496023 | H27: -1.603276557
A28: 0.44379625 | B28: 0.09618055 | C28: 0.44379625+0.09618055i | D28: -0.3985445707 | E28: -0.6281513588 | F28: -0.9005814486 | G28: -1.564173012 | H28: -1.731148838
A29: 0.41803575 | B29: 0.0975622 | C29: 0.41803575+0.0975622i | D29: -0.4131833622 | E29: -0.6597922318 | F29: -0.9550150608 | G29: -1.687919006 | H29: -1.876707726
A30: 0.3926061 | B30: 0.0985648 | C30: 0.3926061+0.0985648i | D30: -0.4301398802 | E30: -0.6956238274 | F30: -1.016304144 | G30: -1.827340837 | H30: -2.040900279
A31: 0.36755595 | B31: 0.0990971 | C31: 0.36755595+0.0990971i | D31: -0.4410492627 | E31: -0.7259293823 | F31: -1.073177398 | G31: -1.967641291 | H31: -2.208124703
A32: 0.34272505 | B32: 0.09910615 | C32: 0.34272505+0.09910615i | D32: -0.4426452507 | E32: -0.7469156531 | F32: -1.121274926 | G32: -2.103388826 | H32: -2.372777632
A33: 0.3180389 | B33: 0.09857615 | C33: 0.3180389+0.09857615i | D33: -0.4369849105 | E33: -0.7611219538 | F33: -1.163807989 | G33: -2.239956713 | H33: -2.54094285
A34: 0.2935019 | B34: 0.09749425 | C34: 0.2935019+0.09749425i | D34: -0.4249287007 | E34: -0.7697159284 | F34: -1.202433995 | G34: -2.380855 | H34: -2.716805674
A35: 0.26913435 | B35: 0.09584435 | C35: 0.26913435+0.09584435i | D35: -0.4062825087 | E35: -0.7726435728 | F35: -1.237421039 | G35: -2.527957013 | H35: -2.902903477
A36: 0.24496765 | B36: 0.09361005 | C36: 0.24496765+0.09361005i | D36: -0.3807356791 | E36: -0.7697609195 | F36: -1.269029478 | G36: -2.683595517 | H36: -3.102435223
A37: 0.2210433 | B37: 0.0907745 | C37: 0.2210433+0.0907745i | D37: -0.3477523143 | E37: -0.760709563 | F37: -1.297388003 | G37: -2.850541551 | H37: -3.319298312
A38: 0.19741545 | B38: 0.08732115 | C38: 0.19741545+0.08732115i | D38: -0.3066214639 | E38: -0.7449911595 | F38: -1.322629725 | G38: -3.032462922 | H38: -3.558682845
A39: 0.17415795 | B39: 0.08323535 | C39: 0.17415795+0.08323535i | D39: -0.2564363669 | E39: -0.7219551201 | F39: -1.344938971 | G39: -3.234373372 | H39: -3.827703948
A40: 0.1513774 | B40: 0.0785083 | C40: 0.1513774+0.0785083i | D40: -0.1961007962 | E40: -0.6908151337 | F40: -1.364656442 | G40: -3.463356737 | H40: -4.136409462
A41: 0.12923855 | B41: 0.0731462 | C41: 0.12923855+0.0731462i | D41: -0.1243222861 | E41: -0.6506028494 | F41: -1.382291984 | G41: -3.729281826 | H41: -4.498848419
A42: 0.1080064 | B42: 0.0671907 | C42: 0.1080064+0.0671907i | D42: -0.03981372779 | E42: -0.600274637 | F42: -1.398649347 | G42: -4.045658228 | H42: -4.934328635
A43: 0.08809745 | B43: 0.06075575 | C43: 0.08809745+0.06075575i | D43: 0.0581463886 | E43: -0.5390332676 | F43: -1.414949169 | G43: -4.429719522 | H43: -5.467630713
A44: 0.0700814 | B44: 0.0540672 | C44: 0.0700814+0.0540672i | D44: 0.1687634738 | E44: -0.4668339622 | F44: -1.432675335 | G44: -4.899965874 | H44: -6.125750069
A45: 0.05452905 | B45: 0.0474507 | C45: 0.05452905+0.0474507i | D45: 0.2889709829 | E45: -0.3847071828 | F45: -1.452931703 | G45: -5.470786489 | H45: -6.930573353
A46: 0.04173385 | B46: 0.0412243 | C46: 0.04173385+0.0412243i | D46: 0.4140450732 | E46: -0.2941165585 | F46: -1.475308563 | G46: -6.147712486 | H46: -7.89245609
A47: 0.0315663 | B47: 0.03557165 | C47: 0.0315663+0.03557165i | D47: 0.5392548031 | E47: -0.1957731617 | F47: -1.497404372 | G47: -6.929485104 | H47: -9.013192589
A48: 0.02360505 | B48: 0.03051345 | C48: 0.02360505+0.03051345i | D48: 0.6607685832 | E48: -0.0890496387 | F48: -1.515464356 | G48: -7.816121398 | H48: -10.2973593
A49: 0.0173709 | B49: 0.02597255 | C49: 0.0173709+0.02597255i | D49: 0.7749155754 | E49: 0.02774681324 | F49: -1.524911012 | G49: -8.814336883 | H49: -11.76032029
A50: 0.01246305 | B50: 0.02184145 | C50: 0.01246305+0.02184145i | D50: 0.8765466183 | E50: 0.1572519754 | F50: -1.518732601 | G50: -9.932055139 | H50: -13.42187017
A51: 0.0085893 | B51: 0.01801745 | C51: 0.0085893+0.01801745i | D51: 0.9565077424 | E51: 0.3021723642 | F51: -1.485829039 | G51: -11.16763251 | H51: -15.29222301
A52: 0.005558 | B52: 0.0144232 | C52: 0.005558+0.0144232i | D52: 0.9983372768 | E52: 0.462583041 | F52: -1.412197989 | G52: -12.50312134 | H52: -17.36194117
A53: 0.00324595 | B53: 0.01099445 | C53: 0.00324595+0.01099445i | D53: 0.9751940565 | E53: 0.6347361576 | F53: -1.274591801 | G53: -13.85164957 | H53: -19.5288189
A54: 0.00158015 | B54: 0.007681 | C54: 0.00158015+0.007681i | D54: 0.8480772002 | E54: 0.8044788665 | F54: -1.046610258 | G54: -15.02974607 | H54: -21.55138517
A55: 0.0005356 | B55: 0.004498 | C55: 0.0005356+0.004498i | D55: 0.5776588053 | E55: 0.9396845169 | F55: -0.7188325072 | G55: -15.75301525 | H55: -23.02097154
A56: 8.405e-05 | B56: 0.0014735 | C56: 0.00008405+0.0014735i | D56: 0.1504114556 | E56: 0.9995358405 | F56: -0.312137463 | G56: -15.71829875 | H56: -23.46556501
A57: 0.00020195 | B57: -0.0014762 | C57: 0.00020195-0.0014762i | D57: -0.4167586315 | E57: 0.9500697354 | F57: 0.1346929291 | G57: -14.68369099 | H57: -22.47993898
A58: 0.0009519 | B58: -0.00445135 | C58: 0.0009519-0.00445135i | D58: -1.05272744 | E58: 0.7728528279 | F58: 0.5563791895 | G58: -12.51574435 | H58: -19.78147833
A59: 0.0024251 | B59: -0.0074 | C59: 0.0024251-0.0074i | D59: -1.602996734 | E59: 0.5014304703 | F59: 0.8556760074 | G59: -9.563308001 | H59: -15.76111081
A60: 0.0046419 | B60: -0.0101979 | C60: 0.0046419-0.0101979i | D60: -1.929971272 | E60: 0.2228063635 | F60: 0.9870825695 | G60: -6.576256739 | H60: -11.4669139
A61: 0.0075918 | B61: -0.0127955 | C61: 0.0075918-0.0127955i | D61: -2.031521024 | E61: 0.002144001132 | F61: 0.988405888 | G61: -4.121251571 | H61: -7.78813
A62: 0.0112936 | B62: -0.0152031 | C62: 0.0112936-0.0152031i | D62: -1.987395507 | E62: -0.14831097 | F62: 0.9207026889 | G62: -2.336059928 | H62: -5.013266404
A63: 0.01582075 | B63: -0.0174448 | C63: 0.01582075-0.0174448i | D63: -1.865732854 | E63: -0.2402475566 | F63: 0.8270301791 | G63: -1.108673075 | H63: -3.033378233
A64: 0.02133485 | B64: -0.0195527 | C64: 0.02133485-0.0195527i | D64: -1.710716705 | E64: -0.2908418108 | F64: 0.729234588 | G64: -0.2854541543 | H64: -1.65002126
A65: 0.0281072 | B65: -0.0215494 | C65: 0.0281072-0.0215494i | D65: -1.542983398 | E65: -0.3125235657 | F65: 0.6366511971 | G65: 0.2592796089 | H65: -0.6881619795
A66: 0.0365444 | B66: -0.0234384 | C66: 0.0365444-0.0234384i | D66: -1.372198936 | E66: -0.3135072851 | F66: 0.5529153572 | G66: 0.6113524604 | H66: -0.02439247227
A67: 0.04721215 | B67: -0.02519375 | C67: 0.04721215-0.02519375i | D67: -1.203631631 | E67: -0.2993830875 | F67: 0.4793538296 | G67: 0.8273695115 | H67: 0.4239833368
A68: 0.0607526 | B68: -0.02674035 | C68: 0.0607526-0.02674035i | D68: -1.041373419 | E68: -0.2741218453 | F68: 0.4169102918 | G68: 0.9453657809 | H68: 0.7122962219
A69: 0.07761385 | B69: -0.02795235 | C69: 0.07761385-0.02795235i | D69: -0.8903671161 | E69: -0.2413438814 | F69: 0.3666106798 | G69: 0.9938866597 | H69: 0.881151858
A70: 0.0977115 | B70: -0.02870075 | C70: 0.0977115-0.02870075i | D70: -0.755544701 | E70: -0.204780947 | F70: 0.3288331148 | G70: 0.9974627672 | H70: 0.9656408268
A71: =IMREAL(C71) -> 0.12039495 | B71: =IMAGINARY(C71) -> -0.02892565 | C71: 0.12039495-0.02892565i | D71: -0.6393302349 | E71: -0.1676119149 | F71: 0.3025728849 | G71: 0.976548492 | H71: 0.996740581
A72: 0.1448316 | B72: -0.02866175 | C72: 0.1448316-0.02866175i | D72: -0.5410721404 | E72: -0.1319852493 | F72: 0.285541747 | G72: 0.9452719562 | H72: 0.9980215948
A73: 0.17037235 | B73: -0.0280002 | C73: 0.17037235-0.0280002i | D73: -0.4583638724 | E73: -0.0990290575 | F73: 0.2750960993 | G73: 0.9114007014 | H73: 0.984341365
A74: 0.1966219 | B74: -0.02704245 | C74: 0.1966219-0.02704245i | D74: -0.3884280824 | E74: -0.06912824654 | F74: 0.269027063 | G74: 0.8784348731 | H74: 0.9638545218
A75: 0.22335535 | B75: -0.0258794 | C75: 0.22335535-0.0258794i | D75: -0.3288794002 | E75: -0.04231385217 | F75: 0.2657200599 | G75: 0.8476609204 | H75: 0.94071972
A76: 0.2504317 | B76: -0.0245882 | C76: 0.2504317-0.0245882i | D76: -0.2779358401 | E76: -0.01853368807 | F76: 0.2640115022 | G76: 0.8193590502 | H76: 0.9169768255
A77: 0.27771715 | B77: -0.02323535 | C77: 0.27771715-0.02323535i | D77: -0.2343499592 | E77: 0.00225120811 | F77: 0.2630542218 | G77: 0.7934076691 | H77: 0.8936009994
A78: 0.3050439 | B78: -0.0218799 | C78: 0.3050439-0.0218799i | D78: -0.1973371718 | E78: 0.01999048955 | F78: 0.2621729038 | G78: 0.7695346004 | H78: 0.8710318347
A79: 0.33228845 | B79: -0.02057 | C79: 0.33228845-0.02057i | D79: -0.1663703386 | E79: 0.03457881591 | F79: 0.260774127 | G79: 0.7473389605 | H79: 0.8493547771
A80: 0.35942075 | B80: -0.01934225 | C80: 0.35942075-0.01934225i | D80: -0.1414471809 | E80: 0.04556606872 | F80: 0.2580656226 | G80: 0.7262198093 | H80: 0.8283418545
A81: 0.38650575 | B81: -0.01822025 | C81: 0.38650575-0.01822025i | D81: -0.1240099447 | E81: 0.05133825882 | F81: 0.2523734644 | G81: 0.7051145757 | H81: 0.8073243931
A82: 0.4136457 | B82: -0.01717755 | C82: 0.4136457-0.01717755i | D82: -0.112577037 | E82: 0.05279076808 | F82: 0.2440287333 | G82: 0.6836708392 | H82: 0.785997032
A83: 0.44091115 | B83: -0.0161307 | C83: 0.44091115-0.0161307i | D83: -0.09979259571 | E83: 0.05598601733 | F83: 0.2376629129 | G83: 0.6635807985 | H83: 0.7654855168
A84: 0.4683139 | B84: -0.01504405 | C84: 0.4683139-0.01504405i | D84: -0.08388745527 | E84: 0.06241319237 | F84: 0.23446256 | G84: 0.6454495486 | H84: 0.746297983
A85: 0.4957893 | B85: -0.01394015 | C85: 0.4957893-0.01394015i | D85: -0.06785445954 | E85: 0.0694846356 | F85: 0.2323315508 | G85: 0.6284350027 | H85: 0.7279258779
A86: 0.52327315 | B86: -0.0128357 | C86: 0.52327315-0.0128357i | D86: -0.05206512174 | E86: 0.07683107873 | F86: 0.2309260363 | G86: 0.6123750438 | H86: 0.710290792
A87: 0.5507304 | B87: -0.01174565 | C87: 0.5507304-0.01174565i | D87: -0.03684116985 | E87: 0.08411669378 | F87: 0.2299156797 | G87: 0.5970697116 | H87: 0.6932626576
A88: 0.578146 | B88: -0.01068195 | C88: 0.578146-0.01068195i | D88: -0.02227347168 | E88: 0.09120471257 | F88: 0.2291294898 | G88: 0.5823712135 | H88: 0.6767332972
A89: 0.60552225 | B89: -0.0096543 | C89: 0.60552225-0.0096543i | D89: -0.008396854093 | E89: 0.09800873737 | F89: 0.2284376538 | G89: 0.5681375722 | H89: 0.6605873375
A90: 0.6328645 | B90: -0.00867075 | C90: 0.6328645-0.00867075i | D90: 0.004798365211 | E90: 0.1044861796 | F90: 0.2277505488 | G90: 0.554243501 | H90: 0.6447155289
A91: 0.66017875 | B91: -0.00773785 | C91: 0.66017875-0.00773785i | D91: 0.01735858646 | E91: 0.110631637 | F91: 0.227013787 | G91: 0.5405809937 | H91: 0.6290171999
A92: 0.6874708 | B92: -0.0068609 | C92: 0.6874708-0.0068609i | D92: 0.0293490011 | E92: 0.1164604092 | F92: 0.2261938345 | G92: 0.5270521365 | H92: 0.6133955346
A93: 0.7147463 | B93: -0.0060441 | C93: 0.7147463-0.0060441i | D93: 0.04084463972 | E93: 0.1219993941 | F93: 0.2252691114 | G93: 0.5135627125 | H93: 0.5977524443
A94: 0.7420106 | B94: -0.00529045 | C94: 0.7420106-0.00529045i | D94: 0.05195372663 | E94: 0.1273074152 | F94: 0.2242468143 | G94: 0.5000309589 | H94: 0.5819954454
A95: 0.76926855 | B95: -0.0046019 | C95: 0.76926855-0.0046019i | D95: 0.06281120592 | E95: 0.1324683544 | F95: 0.2231557991 | G95: 0.4863809698 | H95: 0.5660315496
A96: 0.7965242 | B96: -0.00397945 | C96: 0.7965242-0.00397945i | D96: 0.07358321267 | E96: 0.1375937641 | F96: 0.2220471024 | G96: 0.4725387379 | H96: 0.5497623742
A97: 0.8237798 | B97: -0.00342305 | C97: 0.8237798-0.00342305i | D97: 0.08450399496 | E97: 0.1428550508 | F97: 0.2210202772 | G97: 0.4584430546 | H97: 0.5330907791
A98: 0.8510314 | B98: -0.0029318 | C98: 0.8510314-0.0029318i | D98: 0.09589278049 | E98: 0.1484966129 | F98: 0.2202319306 | G98: 0.4440419181 | H98: 0.515913931
A99: 0.87825355 | B99: -0.0025041 | C99: 0.87825355-0.0025041i | D99: 0.1082155253 | E99: 0.154890148 | F99: 0.2199404136 | G99: 0.4293096453 | H99: 0.4981321596
A100: 0.9053472 | B100: -0.00213805 | C100: 0.9053472-0.00213805i | D100: 0.1221858986 | E100: 0.1626278896 | F100: 0.2205880957 | G100: 0.4142931311 | H100: 0.479683202
A101: 0.93197755 | B101: -0.0018324 | C101: 0.93197755-0.0018324i | D101: 0.138905619 | E101: 0.1726659823 | F101: 0.2229446758 | G101: 0.3992356808 | H101: 0.4606550101
A102: 0.9572198 | B102: -0.0015879 | C102: 0.9572198-0.0015879i | D102: 0.1599186043 | E102: 0.1864139936 | F102: 0.2282340267 | G102: 0.384770436 | H102: 0.4414882092
A103: 0.97938195 | B103: -0.00140585 | C103: 0.97938195-0.00140585i | D103: 0.18546541 | E103: 0.2039907383 | F103: 0.2364148163 | G103: 0.3703833087 | H103: 0.4215235506
A104: 0.9947185 | B104: -0.00129525 | C104: 0.9947185-0.00129525i | D104: 0.155542594 | E104: 0.1653547275 | F104: 0.1881916978 | G104: 0.3027627906 | H104: 0.3502758639

Sheet BEM_gamma
C1: alpha
C2: cl | D2: -0.01108149927 | E2: 0.4846413209 | F2: 1.072460105 | G2: 2.591813833 | H2: 3.027293478
C3: cd | D3: -0.1009127328 | E3: -0.1077930494 | F3: -0.1166339548 | G3: -0.1417353612 | H3: -0.1491820062
C4: cm | D4: -0.0489595056 | E4: -0.05054211107 | F4: -0.05210902029 | G4: -0.05365832422 | H4: -0.05518813528
A5: x | B5: y | C5: z | D5: gamma | E5: gamma | F5: gamma | G5: gamma | H5: gamma
A6: =IMREAL(C6) -> 1 | B6: =IMAGINARY(C6) -> 0.00126 | C6: 1+0.00126i | D6: -1.013579181 | E6: -1.012373431 | F6: -1.00406129 | G6: -0.9456859651 | H6: -0.9179031452
A7: =IMREAL(C7) -> 0.9898572 | B7: =IMAGINARY(C7) -> 0.0040187 | C7: 0.9898572+0.0040187i | D7: -0.9148144888 | E7: -0.918908608 | F7: -0.9175469833 | G7: -0.880757312 | H7: -0.8602591447
A8: 0.9707802 | B8: 0.0091032 | C8: 0.9707802+0.0091032i | D8: -0.9544454654 | E8: -0.96309008 | F8: -0.9668511665 | G8: -0.9418827475 | H8: -0.9243592403
A9: 0.9480415 | B9: 0.0149804 | C9: 0.9480415+0.0149804i | D9: -0.984973163 | E9: -0.997971285 | F9: -1.006683495 | G9: -0.9934231158 | H9: -0.9789402359
A10: 0.9234109 | B10: 0.0211254 | C10: 0.9234109+0.0211254i | D10: -1.009871339 | E10: -1.026997574 | F10: -1.040432073 | G10: -1.038491994 | H10: -1.026999051
A11: 0.898042 | B11: 0.0272183 | C11: 0.898042+0.0272183i | D11: -1.030387999 | E11: -1.051433208 | F11: -1.069371939 | G11: -1.078346955 | H11: -1.069774716
A12: 0.8723977 | B12: 0.0331374 | C12: 0.8723977+0.0331374i | D12: -1.04775465 | E12: -1.072561685 | F12: -1.094839842 | G12: -1.114417818 | H12: -1.108710515
A13: 0.8466311 | B13: 0.0388447 | C13: 0.8466311+0.0388447i | D13: -1.062800676 | E13: -1.091266552 | F13: -1.117777865 | G13: -1.147768061 | H13: -1.144895899
A14: 0.8207928 | B14: 0.0443287 | C14: 0.8207928+0.0443287i | D14: -1.076095683 | E14: -1.108161892 | F14: -1.13884893 | G14: -1.17916633 | H14: -1.17912379
A15: 0.7949018 | B15: 0.0495851 | C15: 0.7949018+0.0495851i | D15: -1.088010268 | E15: -1.123652835 | F15: -1.158496562 | G15: -1.209142083 | H15: -1.211944374
A16: 0.7689677 | B16: 0.0546114 | C16: 0.7689677+0.0546114i | D16: -1.098813855 | E16: -1.138037008 | F16: -1.177049982 | G16: -1.238096527 | H16: -1.243776671
A17: 0.7429972 | B17: 0.0594051 | C17: 0.7429972+0.0594051i | D17: -1.108695075 | E17: -1.151526778 | F17: -1.194748394 | G17: -1.266331498 | H17: -1.274938507
A18: 0.7169963 | B18: 0.0639633 | C18: 0.7169963+0.0639633i | D18: -1.117802239 | E18: -1.164291989 | F18: -1.211786155 | G18: -1.294099417 | H18: -1.305697415
A19: 0.6909707 | B19: 0.0682824 | C19: 0.6909707+0.0682824i | D19: -1.126240794 | E19: -1.176458029 | F19: -1.228311561 | G19: -1.321604051 | H19: -1.336271994
A20: 0.6649264 | B20: 0.0723581 | C20: 0.6649264+0.0723581i | D20: -1.13410042 | E20: -1.188134489 | F20: -1.244457188 | G20: -1.349034224 | H20: -1.366866293
A21: 0.6388695 | B21: 0.0761852 | C21: 0.6388695+0.0761852i | D21: -1.141436883 | E21: -1.199396672 | F21: -1.260321109 | G21: -1.376544931 | H21: -1.397651093
A22: 0.6128062 | B22: 0.0797579 | C22: 0.6128062+0.0797579i | D22: -1.148313439 | E22: -1.210329435 | F22: -1.276013348 | G22: -1.404309051 | H22: -1.428816684
A23: 0.5867433 | B23: 0.0830693 | C23: 0.5867433+0.0830693i | D23: -1.154758354 | E23: -1.220983019 | F23: -1.291609989 | G23: -1.432468548 | H23: -1.460523695
A24: 0.5606879 | B24: 0.0861119 | C24: 0.5606879+0.0861119i | D24: -1.16082089 | E24: -1.231432655 | F24: -1.307216701 | G24: -1.461206097 | H24: -1.492976441
A25: 0.5346471 | B25: 0.0888772 | C25: 0.5346471+0.0888772i | D25: -1.166535315 | E25: -1.241741572 | F25: -1.322930795 | G25: -1.490706002 | H25: -1.526383903
A26: 0.5086319 | B26: 0.0913554 | C26: 0.5086319+0.0913554i | D26: -1.171950161 | E26: -1.251992393 | F26: -1.338874961 | G26: -1.521192916 | H26: -1.560999567
A27: 0.4826465 | B27: 0.0935362 | C27: 0.4826465+0.0935362i | D27: -1.177094129 | E27: -1.26225393 | F27: -1.355165341 | G27: -1.552904473 | H27: -1.597095736
A28: 0.4567249 | B28: 0.0954073 | C28: 0.4567249+0.0954073i | D28: -1.182259999 | E28: -1.272882121 | F28: -1.372230722 | G28: -1.586447413 | H28: -1.635327224
A29: 0.4308676 | B29: 0.0969538 | C29: 0.4308676+0.0969538i | D29: -1.187105306 | E29: -1.283565196 | F29: -1.389798027 | G29: -1.62166129 | H29: -1.675569719
A30: 0.4052039 | B30: 0.0981706 | C30: 0.4052039+0.0981706i | D30: -1.195100241 | E30: -1.29811971 | F30: -1.412070649 | G30: -1.663624807 | H30: -1.723116386
A31: 0.3800083 | B31: 0.098959 | C31: 0.3800083+0.098959i | D31: -1.202370245 | E31: -1.312388241 | F31: -1.434582321 | G31: -1.707212999 | H31: -1.772694548
A32: 0.3551036 | B32: 0.0992352 | C32: 0.3551036+0.0992352i | D32: -1.204905533 | E32: -1.322081051 | F32: -1.452738819 | G32: -1.747189162 | H32: -1.818925924
A33: 0.3303465 | B33: 0.0989771 | C33: 0.3303465+0.0989771i | D33: -1.203924747 | E33: -1.328596483 | F33: -1.468143136 | G33: -1.785641798 | H33: -1.864025617
A34: 0.3057313 | B34: 0.0981752 | C34: 0.3057313+0.0981752i | D34: -1.200371278 | E34: -1.333050665 | F34: -1.482109668 | G34: -1.824364304 | H34: -1.90991473
A35: 0.2812725 | B35: 0.0968133 | C35: 0.2812725+0.0968133i | D35: -1.194074625 | E35: -1.33536473 | F35: -1.494669283 | G35: -1.863677841 | H35: -1.956999857
A36: 0.2569962 | B36: 0.0948754 | C36: 0.2569962+0.0948754i | D36: -1.184938828 | E36: -1.335572853 | F36: -1.506011004 | G36: -1.904175808 | H36: -2.00599187
A37: 0.2329391 | B37: 0.0923447 | C37: 0.2329391+0.0923447i | D37: -1.172695655 | E37: -1.333559513 | F37: -1.516202077 | G37: -1.946408381 | H37: -2.0575829
A38: 0.2091475 | B38: 0.0892043 | C38: 0.2091475+0.0892043i | D38: -1.156988487 | E38: -1.329168102 | F38: -1.52532531 | G38: -1.991091159 | H38: -2.112674615
A39: 0.1856834 | B39: 0.085438 | C39: 0.1856834+0.085438i | D39: -1.137314024 | E39: -1.322155948 | F39: -1.533450263 | G39: -2.039120352 | H39: -2.172406694
A40: 0.1626325 | B40: 0.0810327 | C40: 0.1626325+0.0810327i | D40: -1.113016962 | E40: -1.312219462 | F40: -1.540694546 | G40: -2.091727849 | H40: -2.238338961
A41: 0.1401223 | B41: 0.0759839 | C41: 0.1401223+0.0759839i | D41: -1.083234958 | E41: -1.298971122 | F41: -1.5472391 | G41: -2.15059766 | H41: -2.312597552
A42: 0.1183548 | B42: 0.0703085 | C42: 0.1183548+0.0703085i | D42: -1.046824139 | E42: -1.281888207 | F42: -1.553304978 | G42: -2.217917999 | H42: -2.397949482
A43: 0.097658 | B43: 0.0640729 | C43: 0.097658+0.0640729i | D43: -1.002435228 | E43: -1.260390665 | F43: -1.559232736 | G43: -2.296461875 | H43: -2.49788276
A44: 0.0785369 | B44: 0.0574386 | C44: 0.0785369+0.0574386i | D44: -0.9487263186 | E44: -1.233920932 | F44: -1.565403289 | G44: -2.389088651 | H44: -2.615984912
A45: 0.0616259 | B45: 0.0506958 | C45: 0.0616259+0.0506958i | D45: -0.8849279719 | E45: -1.202198444 | F45: -1.572120563 | G45: -2.497643427 | H45: -2.754553129
A46: 0.0474322 | B46: 0.0442056 | C46: 0.0474322+0.0442056i | D46: -0.8113047584 | E46: -1.165397184 | F46: -1.579449407 | G46: -2.621898896 | H46: -2.913273115
A47: 0.0360355 | B47: 0.038243 | C47: 0.0360355+0.038243i | D47: -0.7286112597 | E47: -1.123766519 | F47: -1.587035438 | G47: -2.75991017 | H47: -3.089733851
A48: 0.0270971 | B48: 0.0329003 | C48: 0.0270971+0.0329003i | D48: -0.6368944167 | E48: -1.076954022 | F48: -1.594052701 | G48: -2.909623663 | H48: -3.281527763
A49: 0.020113 | B49: 0.0281266 | C49: 0.020113+0.0281266i | D49: -0.5348035757 | E49: -1.023719678 | F49: -1.599401451 | G49: -3.070351885 | H49: -3.488100687
A50: 0.0146288 | B50: 0.0238185 | C50: 0.0146288+0.0238185i | D50: -0.4196146404 | E50: -0.9619005156 | F50: -1.601602086 | G50: -3.242483487 | H50: -3.710408708
A51: 0.0102973 | B51: 0.0198644 | C51: 0.0102973+0.0198644i | D51: -0.2870392958 | E51: -0.8879124771 | F51: -1.597934145 | G51: -3.425689721 | H51: -3.948858167
A52: 0.0068813 | B52: 0.0161705 | C52: 0.0068813+0.0161705i | D52: -0.1316552131 | E52: -0.7967801667 | F52: -1.583988623 | G52: -3.617225097 | H52: -4.201241272
A53: 0.0042347 | B53: 0.0126759 | C53: 0.0042347+0.0126759i | D53: 0.05207597607 | E53: -0.6831747057 | F53: -1.554722478 | G53: -3.812987965 | H53: -4.463787398
A54: 0.0022572 | B54: 0.009313 | C54: 0.0022572+0.009313i | D54: 0.2702839308 | E54: -0.5384427801 | F54: -1.49853376 | G54: -3.993965464 | H54: -4.715416187
A55: 0.0009031 | B55: 0.006049 | C55: 0.0009031+0.006049i | D55: 0.5245528259 | E55: -0.3562912756 | F55: -1.403560518 | G55: -4.133935952 | H55: -4.925788479
A56: 0.0001681 | B56: 0.002947 | C56: 0.0001681+0.002947i | D56: 0.799113041 | E56: -0.1404670856 | F56: -1.259196895 | G56: -4.184561954 | H56: -5.035531768
A57: 0 | B57: 0 | C57: 0 | D57: 1.077400153 | E57: 0.09848462794 | F57: -1.068743372 | G57: -4.129785704 | H57: -5.022835006
A58: 0.0004039 | B58: -0.0029524 | C58: 0.0004039-0.0029524i | D58: 1.349694936 | E58: 0.3580938158 | F58: -0.8260144883 | G58: -3.940659859 | H58: -4.852091654
A59: 0.0014999 | B59: -0.0059503 | C59: 0.0014999-0.0059503i | D59: 1.575876381 | E59: 0.6143284486 | F59: -0.5357060657 | G59: -3.570361367 | H59: -4.46121012
A60: 0.0033503 | B60: -0.0088497 | C60: 0.0033503-0.0088497i | D60: 1.71532109 | E60: 0.8239459288 | F60: -0.2438882931 | G60: -3.070803689 | H60: -3.903346508
A61: 0.0059335 | B61: -0.0115461 | C61: 0.0059335-0.0115461i | D61: 1.767216005 | E61: 0.9672198259 | F61: 0.007307580836 | G61: -2.542092907 | H61: -3.295291125
A62: 0.0092501 | B62: -0.0140449 | C62: 0.0092501-0.0140449i | D62: 1.765260749 | E62: 1.057341775 | F62: 0.206544534 | G62: -2.060294284 | H62: -2.732111698
A63: 0.0133371 | B63: -0.0163613 | C63: 0.0133371-0.0163613i | D63: 1.732592412 | E63: 1.109583653 | F63: 0.3596178748 | G63: -1.644987953 | H63: -2.240945374
A64: 0.0183044 | B64: -0.0185283 | C64: 0.0183044-0.0185283i | D64: 1.686339573 | E64: 1.138288905 | F64: 0.4774546328 | G64: -1.294714555 | H64: -1.823244336
A65: 0.0243653 | B65: -0.0205771 | C65: 0.0243653-0.0205771i | D65: 1.634018175 | E65: 1.151962988 | F65: 0.569681691 | G65: -0.9972172152 | H65: -1.466075817
A66: 0.0318491 | B66: -0.0225217 | C66: 0.0318491-0.0225217i | D66: 1.578634025 | E66: 1.155266696 | F66: 0.6429004158 | G66: -0.7409798671 | H66: -1.156541178
A67: 0.0412397 | B67: -0.0243551 | C67: 0.0412397-0.0243551i | D67: 1.521957221 | E67: 1.151271518 | F67: 0.7017122861 | G67: -0.5175043695 | H67: -0.8850394545
A68: 0.0531846 | B68: -0.0260324 | C68: 0.0531846-0.0260324i | D68: 1.464843063 | E68: 1.141719279 | F68: 0.7489037542 | G68: -0.3213309066 | H68: -0.6453503346
A69: 0.0683206 | B69: -0.0274483 | C69: 0.0683206-0.0274483i | D69: 1.408422937 | E69: 1.12780925 | F69: 0.785746845 | G69: -0.151040238 | H69: -0.436024439
A70: 0.0869071 | B70: -0.0284564 | C70: 0.0869071-0.0284564i | D70: 1.354693373 | E70: 1.11095889 | F70: 0.8129593233 | G70: -0.007798656305 | H70: -0.2587921655
A71: =IMREAL(C71) -> 0.1085159 | B71: =IMAGINARY(C71) -> -0.0289451 | C71: 0.1085159-0.0289451i | D71: 1.305820068 | E71: 1.092858719 | F71: 0.8316539634 | G71: 0.1079321277 | H71: -0.1145920244
A72: 0.132274 | B72: -0.0289062 | C72: 0.132274-0.0289062i | D72: 1.262895295 | E72: 1.074928923 | F72: 0.8436320772 | G72: 0.1989004132 | H72: -0.0004148713558
A73: 0.1573892 | B73: -0.0284173 | C73: 0.1573892-0.0284173i | D73: 1.225805698 | E73: 1.058027776 | F73: 0.8509039878 | G73: 0.2701032112 | H73: 0.08959750635
A74: 0.1833555 | B74: -0.0275831 | C74: 0.1833555-0.0275831i | D74: 1.193796559 | E74: 1.042485419 | F74: 0.8550904037 | G74: 0.3265298609 | H74: 0.1614125691
A75: 0.2098883 | B75: -0.0265018 | C75: 0.2098883-0.0265018i | D75: 1.166036256 | E75: 1.028368923 | F75: 0.8573288995 | G75: 0.3721196256 | H75: 0.2197852911
A76: 0.2368224 | B76: -0.025257 | C76: 0.2368224-0.025257i | D76: 1.14184311 | E76: 1.01566319 | F76: 0.8583988353 | G76: 0.4097334486 | H76: 0.2681833591
A77: 0.264041 | B77: -0.0239194 | C77: 0.264041-0.0239194i | D77: 1.120748915 | E77: 1.004374065 | F77: 0.8588709333 | G77: 0.4414215007 | H77: 0.3090879996
A78: 0.2913933 | B78: -0.0225513 | C78: 0.2913933-0.0225513i | D78: 1.102429918 | E78: 0.9945072659 | F78: 0.8591435017 | G78: 0.4686102481 | H78: 0.3442252277
A79: 0.3186945 | B79: -0.0212085 | C79: 0.3186945-0.0212085i | D79: 1.086769393 | E79: 0.9861727273 | F79: 0.8595958344 | G79: 0.4923805813 | H79: 0.3748792125
A80: 0.3458824 | B80: -0.0199315 | C80: 0.3458824-0.0199315i | D80: 1.073611327 | E80: 0.9794183692 | F80: 0.8605185505 | G80: 0.5136571218 | H80: 0.4021588168
A81: 0.3729591 | B81: -0.018753 | C81: 0.3729591-0.018753i | D81: 1.063294932 | E81: 0.9747124537 | F81: 0.8625305193 | G81: 0.5334363151 | H81: 0.4271655311
A82: 0.4000524 | B82: -0.0176875 | C82: 0.4000524-0.0176875i | D82: 1.057398714 | E82: 0.9736616856 | F82: 0.8672611394 | G82: 0.5533489145 | H82: 0.4515134077
A83: 0.427239 | B83: -0.0166676 | C83: 0.427239-0.0166676i | D83: 1.05324742 | E83: 0.9739261269 | F83: 0.8727859513 | G83: 0.5726433815 | H83: 0.4748175998
A84: 0.4545833 | B84: -0.0155938 | C84: 0.4545833-0.0155938i | D84: 1.045558883 | E84: 0.9706663416 | F84: 0.874825981 | G84: 0.5886838058 | H84: 0.4949724868
A85: 0.4820445 | B85: -0.0144943 | C85: 0.4820445-0.0144943i | D85: 1.037821095 | E85: 0.967114434 | F85: 0.8762864477 | G85: 0.6034022961 | H85: 0.5135922178
A86: 0.5095341 | B86: -0.013386 | C86: 0.5095341-0.013386i | D86: 1.030007944 | E86: 0.9632664694 | F86: 0.877189869 | G86: 0.6168908017 | H86: 0.5307890167
A87: 0.5370122 | B87: -0.0122854 | C87: 0.5370122-0.0122854i | D87: 1.02239857 | E87: 0.9594075429 | F87: 0.877826503 | G87: 0.6294427975 | H87: 0.5468542624
A88: 0.5644486 | B88: -0.0112059 | C88: 0.5644486-0.0112059i | D88: 1.01505421 | E88: 0.9556198872 | F88: 0.8783030414 | G88: 0.6412260709 | H88: 0.5619726707
A89: 0.5918434 | B89: -0.010158 | C89: 0.5918434-0.010158i | D89: 1.008005108 | E89: 0.9519577705 | F89: 0.8787020153 | G89: 0.6523952242 | H89: 0.5763192685
A90: 0.6192011 | B90: -0.0091506 | C90: 0.6192011-0.0091506i | D90: 1.001268246 | E90: 0.9484611452 | F90: 0.8790904788 | G90: 0.6630868574 | H90: 0.5900504966
A91: 0.6465279 | B91: -0.0081909 | C91: 0.6465279-0.0081909i | D91: 0.9948298668 | E91: 0.9451391495 | F91: 0.8795047918 | G91: 0.6734083067 | H91: 0.6032942767
A92: 0.6738296 | B92: -0.0072848 | C92: 0.6738296-0.0072848i | D92: 0.9886685178 | E92: 0.941992026 | F92: 0.8799710493 | G92: 0.6834533761 | H92: 0.616164141
A93: 0.701112 | B93: -0.006437 | C93: 0.701112-0.006437i | D93: 0.9827512971 | E93: 0.9390081333 | F93: 0.8805030245 | G93: 0.6933028322 | H93: 0.6287605023
A94: 0.7283806 | B94: -0.0056512 | C94: 0.7283806-0.0056512i | D94: 0.9770484754 | E94: 0.9361784962 | F94: 0.8811165358 | G94: 0.7030377631 | H94: 0.6411835639
A95: 0.7556406 | B95: -0.0049297 | C95: 0.7556406-0.0049297i | D95: 0.9714901761 | E95: 0.9334560322 | F95: 0.8817919837 | G95: 0.7127122614 | H95: 0.6535093936
A96: 0.7828965 | B96: -0.0042741 | C96: 0.7828965-0.0042741i | D96: 0.9660192022 | E96: 0.9308069439 | F96: 0.8825236854 | G96: 0.722395511 | H96: 0.6658293513
A97: 0.8101519 | B97: -0.0036848 | C97: 0.8101519-0.0036848i | D97: 0.9605360498 | E97: 0.9281593045 | F97: 0.8832730656 | G97: 0.7321388993 | H97: 0.6782218055
A98: 0.8374077 | B98: -0.0031613 | C98: 0.8374077-0.0031613i | D98: 0.9549122303 | E98: 0.9254175947 | F98: 0.883984543 | G98: 0.7419949131 | H98: 0.6907717506
A99: 0.8646551 | B99: -0.0027023 | C99: 0.8646551-0.0027023i | D99: 0.9489664134 | E99: 0.9224425464 | F99: 0.88456992 | G99: 0.7520141668 | H99: 0.7035717336
A100: 0.891852 | B100: -0.0023059 | C100: 0.891852-0.0023059i | D100: 0.9424290083 | E100: 0.9190210261 | F100: 0.88488479 | G100: 0.7622399845 | H100: 0.7167220519
A101: 0.9188424 | B101: -0.0019702 | C101: 0.9188424-0.0019702i | D101: 0.9348883377 | E101: 0.9148182047 | F101: 0.8846881764 | G101: 0.7726893373 | H101: 0.7303184061
A102: 0.9451127 | B102: -0.0016946 | C102: 0.9451127-0.0016946i | D102: 0.9257491785 | E102: 0.9093351791 | F102: 0.8835993478 | G102: 0.7833090741 | H102: 0.7444084123
A103: 0.9693269 | B103: -0.0014812 | C103: 0.9693269-0.0014812i | D103: 0.9143498782 | E103: 0.9020145384 | F103: 0.8811889016 | G103: 0.7940252554 | H103: 0.7590276456
A104: 0.989437 | B104: -0.0013305 | C104: 0.989437-0.0013305i | D104: 0.903030658 | E104: 0.8953999164 | F104: 0.8802256013 | G104: 0.8081043938 | H104: 0.7775605994
C105: 1-0.00126i | D105: 1.013579181 | E105: 1.012373431 | F105: 1.00406129 | G105: 0.9456859651 | H105: 0.9179031452

Sheet Streamline
C1: alpha | D1: 18
A5: x | B5: y | C5: z | D5: x | E5: y
A6: =IMREAL(C6) -> 0.9636817486 | B6: =IMAGINARY(C6) -> -0.2305644146 | C6: 0.963681748634278-0.230564414570678i
A7: =IMREAL(C7) -> 0.9548878578 | B7: =IMAGINARY(C7) -> -0.2248064374 | C7: 0.954887857783182-0.224806437388629i
A8: 0.9383157495 | B8: -0.2140756733 | C8: 0.938315749529718-0.214075673329835i
A9: 0.9185061154 | B9: -0.2014594792 | C9: 0.918506115401978-0.201459479242272i
A10: 0.8969799322 | B10: -0.188003963 | C10: 0.896979932202153-0.188003962967986i | D10: 0.09622458754 | E10: 0.0195596975
A11: 0.8747354842 | B11: -0.1743698495 | C11: 0.87473548419094-0.174369849491253i | D11: 0.09617662964 | E11: 0.01957527048
A12: 0.8521754081 | B12: -0.1608159264 | C12: 0.852175408061517-0.160815926356801i | D12: 0.09612891454 | E12: 0.01959074199
A13: 0.8294335679 | B13: -0.1474256442 | C13: 0.829433567920742-0.147425644214088i | D13: 0.09608143134 | E13: 0.0196061155
A14: 0.8065545335 | B14: -0.1342255765 | C14: 0.806554533532905-0.134225576472967i | D14: 0.09603416919 | E14: 0.01962139448
A15: 0.7835550462 | B15: -0.121225684 | C15: 0.78355504619874-0.121225683999352i | D15: 0.09598711725 | E15: 0.01963658234
A16: 0.7604434635 | B16: -0.108431311 | C16: 0.760443463518317-0.108431310997678i | D16: 0.09594026472 | E16: 0.01965168249
A17: 0.737225385 | B17: -0.09584690552 | C17: 0.737225385027808-0.0958469055230994i | D17: 0.09589360082 | E17: 0.01966669829
A18: 0.7139056209 | B18: -0.08347707974 | C18: 0.71390562091703-0.0834770797414792i | D18: 0.09584711477 | E18: 0.01968163308
A19: 0.6904884797 | B19: -0.07132701885 | C19: 0.690488479746943-0.0713270188531442i | D19: 0.09580079578 | E19: 0.01969649021
A20: 0.6669783391 | B20: -0.0594026665 | C20: 0.666978339083571-0.0594026665030806i | D20: 0.09575463306 | E20: 0.01971127297
A21: 0.6433793935 | B21: -0.04771085319 | C21: 0.643379393483293-0.0477108531888389i | D21: 0.09570861579 | E21: 0.01972598466
A22: 0.6196957472 | B22: -0.03625901094 | C22: 0.61969574719794-0.0362590109435786i | D22: 0.0956627331 | E22: 0.01974062856
A23: 0.5959317352 | B23: -0.02505580337 | C23: 0.595931735194565-0.0250558033728241i | D23: 0.09561697412 | E23: 0.01975520793
A24: 0.5720917923 | B24: -0.01411055742 | C24: 0.572091792346973-0.0141105574211074i | D24: 0.09557132789 | E24: 0.01976972605
A25: 0.5481800445 | B25: -0.003433551089 | C25: 0.548180044511979-0.00343355108947731i | D25: 0.09552578339 | E25: 0.01978418616
A26: 0.5242039249 | B26: 0.006962496081 | C26: 0.524203924944718+0.00696249608126845i | D26: 0.09548032953 | E26: 0.01979859151
A27: 0.5001642452 | B27: 0.01706649034 | C27: 0.500164245207514+0.0170664903376357i | D27: 0.09543495514 | E27: 0.01981294536
A28: 0.4760895403 | B28: 0.02685622711 | C28: 0.476089540312893+0.0268562271066652i | D28: 0.09538964891 | E28: 0.01982725095
A29: 0.4519756814 | B29: 0.03631738114 | C29: 0.451975681435895+0.0363173811377669i | D29: 0.09534439947 | E29: 0.01984151154
A30: 0.4279440642 | B30: 0.04540514615 | C30: 0.427944064197407+0.0454051461453352i | D30: 0.09529919526 | E30: 0.01985573041
A31: 0.4042252536 | B31: 0.05394082769 | C31: 0.404225253633806+0.0539408276862557i | D31: 0.09525402464 | E31: 0.01986991082
A32: 0.3806248269 | B32: 0.06189948504 | C32: 0.380624826906276+0.0618994850358662i | D32: 0.09520887575 | E32: 0.01988405606
A33: 0.3569996683 | B33: 0.06930438198 | C33: 0.356999668340457+0.0693043819804504i | D33: 0.09516373661 | E33: 0.01989816944
A34: 0.3333414213 | B34: 0.07614824488 | C34: 0.333341421252759+0.0761482448799715i | D34: 0.09511859501 | E34: 0.01991225427
A35: 0.3096588699 | B35: 0.08241118587 | C35: 0.30965886988736+0.0824111858724471i | D35: 0.09507343854 | E35: 0.01992631392
A36: 0.2859718925 | B36: 0.08806992271 | C36: 0.285971892547425+0.0880699227100632i | D36: 0.09502825459 | E36: 0.01994035175
A37: 0.2623102015 | B37: 0.09309713672 | C37: 0.262310201521596+0.0930971367196526i | D37: 0.09498303025 | E37: 0.01995437117
A38: 0.2387126083 | B38: 0.09746244756 | C38: 0.238712608339373+0.0974624475592503i | D38: 0.0949377524 | E38: 0.01996837561
A39: 0.2152330724 | B39: 0.1011312891 | C39: 0.215233072429458+0.101131289059641i | D39: 0.09489240759 | E39: 0.01998236855
A40: 0.1919490512 | B40: 0.1040647196 | C40: 0.19194905121267+0.104064719624043i | D40: 0.09484698207 | E40: 0.0199963535
A41: 0.1689804138 | B41: 0.1062190598 | C41: 0.168980413818362+0.106219059831351i | D41: 0.09480146176 | E41: 0.02001033402
A42: 0.1465244961 | B42: 0.1075479611 | C42: 0.146524496050032+0.107547961103827i | D42: 0.0947558322 | E42: 0.02002431373
A43: 0.1249137632 | B43: 0.108013216 | C43: 0.12491376317345+0.108013216019996i | D43: 0.09471007855 | E43: 0.02003829628
A44: 0.104678405 | B44: 0.1076123666 | C44: 0.104678404973937+0.107612366625082i | D44: 0.09466418555 | E44: 0.0200522854
A45: 0.08651144844 | B45: 0.1064253691 | C45: 0.086511448437198+0.106425369138882i | D45: 0.09461813745 | E45: 0.02006628488
A46: 0.07100685546 | B46: 0.1046389166 | C46: 0.071006855464968+0.104638916649882i | D46: 0.09457191807 | E46: 0.02008029856
A47: 0.05832540494 | B47: 0.102489921 | C47: 0.058325404935047+0.102489921045614i | D47: 0.09452551064 | E47: 0.02009433038
A48: 0.04817349627 | B48: 0.1001708289 | C48: 0.048173496273947+0.100170828898525i | D48: 0.09447889787 | E48: 0.02010838435
A49: 0.04005606803 | B49: 0.097788976 | C49: 0.040056068032442+0.0977889759971007i | D49: 0.09443206183 | E49: 0.02012246455
A50: 0.03350900777 | B50: 0.09538644042 | C50: 0.03350900777231+0.0953864404198006i | D50: 0.09438498395 | E50: 0.02013657517
A51: 0.02816762237 | B51: 0.09296437496 | C51: 0.028167622374519+0.0929643749598531i | D51: 0.09433764495 | E51: 0.02015072049
A52: 0.02377733544 | B52: 0.09050686935 | C52: 0.023777335439333+0.0905068693470952i | D52: 0.09429002477 | E52: 0.0201649049
A53: 0.02018037847 | B53: 0.08800115162 | C53: 0.020180378474764+0.0880011516225629i | D53: 0.09424210256 | E53: 0.0201791329
A54: 0.01726047096 | B54: 0.08541392477 | C54: 0.017260470963407+0.0854139247702904i | D54: 0.09419385655 | E54: 0.0201934091
A55: 0.01496401387 | B55: 0.08272811621 | C55: 0.014964013865052+0.0827281162131861i | D55: 0.09414526405 | E55: 0.02020773825
A56: 0.01330641661 | B56: 0.08000506639 | C56: 0.013306416609024+0.0800050663905041i | D56: 0.09409630131 | E56: 0.02022212523
A57: 0.01223587093 | B57: 0.07725424859 | C57: 0.012235870926212+0.0772542485937368i | D57: 0.09404694348 | E57: 0.02023657506
A58: 0.01170766088 | B58: 0.07432153737 | C58: 0.011707660878951+0.0743215373709989i | D58: 0.09399716451 | E58: 0.02025109292
A59: 0.01182361677 | B59: 0.07113168241 | C59: 0.011823616773373+0.0711316824149627i | D59: 0.09394693704 | E59: 0.02026568415
A60: 0.01268748788 | B60: 0.06780238411 | C60: 0.012687487877635+0.0678023841052251i | D60: 0.09389623229 | E60: 0.02028035427
A61: 0.01431102365 | B61: 0.06443970261 | C61: 0.014311023646896+0.0644397026148175i | D61: 0.09384501997 | E61: 0.02029510896
A62: 0.01669312602 | B62: 0.06103831683 | C62: 0.016693126023297+0.0610383168283552i | D62: 0.09379326809 | E62: 0.02030995413
A63: 0.01986428704 | B63: 0.05757233706 | C63: 0.019864287039625+0.0575723370579987i | D63: 0.0937409429 | E63: 0.02032489586
A64: 0.02391883025 | B64: 0.05397641747 | C64: 0.023918830246207+0.0539764174710285i | D64: 0.09368800862 | E64: 0.02033994047
A65: 0.02904997467 | B65: 0.05015497178 | C65: 0.029049974667745+0.0501549717792358i | D65: 0.09363442737 | E65: 0.02035509451
A66: 0.03556657698 | B66: 0.0459929259 | C66: 0.035566576977133+0.0459929258951451i | D66: 0.09358015889 | E66: 0.02037036475
A67: 0.04393101654 | B67: 0.04134740389 | C67: 0.043931016541568+0.0413474038907922i | D67: 0.09352516036 | E67: 0.02038575824
A68: 0.05477297732 | B68: 0.0360610197 | C68: 0.054772977318396+0.036061019699901i | D68: 0.09346938615 | E68: 0.02040128227
A69: 0.06873063159 | B69: 0.03003713755 | C69: 0.068730631586704+0.0300371375516195i | D69: 0.09341278753 | E69: 0.02041694444
A70: 0.08609592349 | B70: 0.02333483311 | C70: 0.086095923494795+0.0233348331115924i | D70: 0.09335531234 | E70: 0.02043275262
A71: =IMREAL(C71) -> 0.1064960969 | B71: =IMAGINARY(C71) -> 0.01619256536 | C71: 0.106496096938963+0.0161925653640296i | D71: 0.09329690471 | E71: 0.02044871497
A72: 0.1291034135 | B72: 0.008887904808 | C72: 0.129103413519836+0.00888790480845403i | D72: 0.09323750457 | E72: 0.02046483999
A73: 0.1531404665 | B73: 0.001591852722 | C73: 0.153140466546442+0.00159185272214506i | D73: 0.09317704729 | E73: 0.02048113646
A74: 0.1780936673 | B74: -0.005638803913 | C74: 0.178093667342224-0.0056388039129997i | D74: 0.0931154631 | E74: 0.02049761352
A75: 0.2036619998 | B75: -0.01280951261 | C75: 0.203661999753798-0.0128095126102814i | D75: 0.09305267655 | E75: 0.0205142806
A76: 0.2296625154 | B76: -0.01994873209 | C76: 0.229662515423941-0.0199487320869914i | D76: 0.09298860585 | E76: 0.02053114745
A77: 0.2559622835 | B77: -0.02708760885 | C77: 0.255962283450048-0.0270876088538889i | D77: 0.09292316207 | E77: 0.02054822413
A78: 0.2823986328 | B78: -0.03423879397 | C78: 0.282398632750713-0.0342387939691874i | D78: 0.09285624829 | E78: 0.02056552097
A79: 0.3087785649 | B79: -0.04139825005 | C79: 0.308778564933436-0.0413982500459356i | D79: 0.09278775856 | E79: 0.02058304852
A80: 0.3350304091 | B80: -0.04858527402 | C80: 0.335030409094634-0.0485852740159933i | D80: 0.09271757673 | E80: 0.0206008175
A81: 0.3611460576 | B81: -0.05583161436 | C81: 0.361146057597274-0.0558316143631316i | D81: 0.09264557507 | E81: 0.02061883874
A82: 0.3872425747 | B82: -0.06319055378 | C82: 0.38724257471772-0.0631905537787178i | D82: 0.0925716126 | E82: 0.020637123
A83: 0.4134137342 | B83: -0.07062169266 | C83: 0.413413734236193-0.0706216926570223i | D83: 0.09249553321 | E83: 0.02065568083
A84: 0.4397515314 | B84: -0.07805030157 | C84: 0.439751531383282-0.0780503015691115i | D84: 0.09241716335 | E84: 0.02067452231
A85: 0.4662084488 | B85: -0.08549059242 | C85: 0.466208448773882-0.0854905924153742i | D85: 0.09233630934 | E85: 0.02069365673
A86: 0.4926950955 | B86: -0.09293129005 | C86: 0.492695095519095-0.0929312900469339i | D86: 0.09225275402 | E86: 0.02071309212
A87: 0.5191684257 | B87: -0.1003757571 | C87: 0.519168425683514-0.100375757118234i | D87: 0.09216625286 | E87: 0.02073283461
A88: 0.5455955765 | B88: -0.1078274055 | C88: 0.545595576532622-0.107827405473362i | D88: 0.09207652907 | E88: 0.02075288753
A89: 0.5719733985 | B89: -0.1152962521 | C89: 0.57197339849363-0.115296252107439i | D89: 0.09198326769 | E89: 0.02077325021
A90: 0.5983034211 | B90: -0.122792152 | C90: 0.598303421069611-0.122792151999935i | D90: 0.09188610822 | E90: 0.02079391621
A91: 0.6245893159 | B91: -0.1303238687 | C91: 0.624589315888607-0.130323868663132i | D91: 0.09178463543 | E91: 0.02081487093
A92: 0.6508347759 | B92: -0.1378988056 | C92: 0.650834775878146-0.137898805629043i | D92: 0.09167836779 | E92: 0.02083608813
A93: 0.6770438648 | B93: -0.1455232252 | C93: 0.677043864786148-0.145523225161863i | D93: 0.09156674271 | E93: 0.02085752494
A94: 0.7032206701 | B94: -0.1532023458 | C94: 0.703220670060574-0.153202345764171i | D94: 0.09144909755 | E94: 0.02087911456
A95: 0.7293694265 | B95: -0.1609399618 | C95: 0.729369426456221-0.160939961754325i | D95: 0.09132464496 | E95: 0.02090075548
A96: 0.7554939193 | B96: -0.1687389854 | C96: 0.755493919300223-0.168738985399226i | D96: 0.0911924405 | E96: 0.0209222952
A97: 0.7815974488 | B97: -0.1766009096 | C97: 0.781597448789239-0.17660090958266i | D97: 0.09105133953 | E97: 0.02094350522
A98: 0.8076810254 | B98: -0.1845255369 | C98: 0.807681025382631-0.184525536891664i | D98: 0.09089993968 | E98: 0.02096404179
A99: 0.8337366815 | B99: -0.1925089116 | C99: 0.83373668150515-0.192508911603217i | D99: 0.09073650324 | E99: 0.02098338273
A100: 0.8597249648 | B100: -0.2005362171 | C100: 0.859724964809748-0.200536217094473i | D100: 0.09055885321 | E100: 0.02100072321
A101: 0.8854980976 | B101: -0.2085574397 | C101: 0.885498097612172-0.208557439706931i | D101: 0.09036423651 | E101: 0.02101479874
A102: 0.9105678027 | B102: -0.2164132977 | C102: 0.910567802695851-0.216413297678368i | D102: 0.0901491558 | E102: 0.02102357647
A103: 0.9336628196 | B103: -0.2236929415 | C103: 0.933662819619325-0.223692941522984i | D103: 0.0899092016 | E103: 0.02102370447
A104: 0.9528352301 | B104: -0.22976398 | C104: 0.952835230128724-0.229763979964558i | D104: 0.0896390242 | E104: 0.02100952372
A105: 0.9629030258 | B105: -0.232961077 | C105: 0.962903025808453-0.232961076991742i | D105: 0.08933291534 | E105: 0.02097137019
D106: 0.08898734103 | E106: 0.02089319433
D107: 0.08860804202 | E107: 0.02075182064
D108: 0.0882208866 | E108: 0.02052671116
D109: 0.08786661573 | E109: 0.02022481685
D110: 0.08756698597 | E110: 0.01988254362
D111: 0.08731552177 | E111: 0.01953120297
D112: 0.08709834487 | E112: 0.01918430708
D113: 0.08690462405 | E113: 0.01884550697
D114: 0.0867271839 | E114: 0.0185148466
D115: 0.08656131828 | E115: 0.01819127377
D116: 0.08640384977 | E116: 0.01787350578
D117: 0.08625255246 | E117: 0.01756030962
D118: 0.08610580985 | E118: 0.01725058008
D119: 0.08596240888 | E119: 0.016943349
D120: 0.08582141202 | E120: 0.01663777245
D121: 0.08568207537 | E121: 0.01633311265
D122: 0.08554379447 | E122: 0.01602872039
D123: 0.08540606744 | E123: 0.0157240197
D124: 0.0852684693 | E124: 0.01541849497
D125: 0.08513063356 | E125: 0.0151116805
D126: 0.08499223886 | E126: 0.01480315183
D127: 0.08485299898 | E127: 0.01449251874
D128: 0.08471265533 | E128: 0.01417941953
D129: 0.08457097115 | E129: 0.01386351628
D130: 0.08442772699 | E130: 0.01354449095
D131: 0.08428271714 | E131: 0.01322204215
D132: 0.08413574676 | E132: 0.0128958824
D133: 0.08398662957 | E133: 0.01256573585
D134: 0.08383518594 | E134: 0.01223133634
D135: 0.08368124128 | E135: 0.01189242577
D136: 0.08352462475 | E136: 0.01154875266
D137: 0.08336516805 | E137: 0.01120007091
D138: 0.08320270455 | E138: 0.01084613876
D139: 0.08303706832 | E139: 0.01048671786
D140: 0.08286809346 | E140: 0.01012157245
D141: 0.08269561343 | E141: 0.009750468623
D142: 0.0825194604 | E142: 0.009373173691
D143: 0.08233946473 | E143: 0.008989455616
D144: 0.08215545446 | E144: 0.008599082482
D145: 0.08196725485 | E145: 0.008201822032
D146: 0.0817746879 | E146: 0.00779744124
D147: 0.08157757196 | E147: 0.007385705917
D148: 0.08137572129 | E148: 0.006966380353
D149: 0.0811689457 | E149: 0.006539226982
D150: 0.08095705013 | E150: 0.006104006072
D151: 0.08073983427 | E151: 0.005660475431
D152: 0.08051709221 | E152: 0.005208390135
D153: 0.08028861202 | E153: 0.004747502265
D154: 0.08005417538 | E154: 0.004277560658
D155: 0.07981355722 | E155: 0.003798310673
D156: 0.07956652528 | E156: 0.00330949396
D157: 0.07931283976 | E157: 0.002810848234
D158: 0.07905225287 | E158: 0.002302107069
D159: 0.07878450844 | E159: 0.001782999679
D160: 0.07850934146 | E160: 0.001253250718
D161: 0.07822647765 | E161: 0.0007125800711
D162: 0.07793563302 | E162: 0.0001607026594
D163: 0.07763651334 | E163: -0.0004026717632
D164: 0.07732881369 | E164: -0.0009778388074
D165: 0.07701221794 | E165: -0.001565099647
D166: 0.07668639817 | E166: -0.002164761219
D167: 0.07635101418 | E167: -0.002777136422
D168: 0.07600571286 | E168: -0.00340254432
D169: 0.0756501276 | E169: -0.004041310349
D170: 0.07528387762 | E170: -0.004693766519
D171: 0.07490656738 | E171: -0.005360251631
D172: 0.0745177858 | E172: -0.00604111149
D173: 0.07411710559 | E173: -0.006736699123
D174: 0.07370408244 | E174: -0.00744737501
D175: 0.07327825426 | E175: -0.00817350731
D176: 0.07283914031 | E176: -0.008915472104
D177: 0.07238624031 | E177: -0.009673653637
D178: 0.07191903353 | E178: -0.01044844458
D179: 0.07143697781 | E179: -0.01124024627
D180: 0.07093950849 | E180: -0.01204946901
D181: 0.07042603737 | E181: -0.01287653236
D182: 0.06989595153 | E182: -0.01372186537
D183: 0.06934861216 | E183: -0.01458590698
D184: 0.06878335325 | E184: -0.01546910625
D185: 0.06819948024 | E185: -0.01637192276
D186: 0.06759626863 | E186: -0.01729482694
D187: 0.06697296245 | E187: -0.01823830043
D188: 0.06632877267 | E188: -0.0192028365
D189: 0.06566287551 | E189: -0.0201889404
D190: 0.06497441067 | E190: -0.02119712987
D191: 0.06426247941 | E191: -0.02222793552
D192: 0.06352614253 | E192: -0.02328190139
D193: 0.06276441827 | E193: -0.02435958537
D194: 0.06197628 | E194: -0.02546155982
D195: 0.0611606538 | E195: -0.0265884121
D196: 0.0603164159 | E196: -0.0277407452
D197: 0.05944238995 | E197: -0.02891917838
D198: 0.05853734401 | E198: -0.03012434788
D199: 0.05759998754 | E199: -0.03135690762
D200: 0.05662896794 | E200: -0.03261753004
D201: 0.05562286705 | E201: -0.03390690689
D202: 0.05458019729 | E202: -0.03522575018
D203: 0.05349939755 | E203: -0.03657479312
... 8713 more rows

Sheet グラフ管理
D2: plot | E2: plot | F2: plot | G2: plot | H2: Streamline
D3: 1 | E3: 2 | F3: 3 | G3: 4 | H3: 1
D4: グラフ 8 | E4: グラフ 4 | F4: グラフ 5 | G4: Chart 6 | H4: Chart 3
D5: 24.83970905 | E5: 4.575733299 | F5: 7.84411961 | G5: 12.41985237 | H5: 113.5947803
D6: 24.83970474 | E6: 16.34191164 | F6: 16.34191164 | G6: 15.2835783 | H6: 101.0006137
D7: 10 | E7: 10 | F7: 10 | G7: 10 | H7: 10
D8: FALSE | E8: FALSE | F8: FALSE | G8: FALSE | H8: FALSE
D13: 23.91784722 | E13: 3.655908333 | F13: 6.703233333 | G13: 11.10734167 | H13: 109.3789972
D14: 24.4805 | E14: 15.99166667 | F14: 15.23729444 | G14: 13.43466667 | H14: 99.54004167
D15: 0.3198222222 | E15: 0.3188 | F15: 0.3275944444 | G15: 0.2469444444 | H15: 1.966788889
D16: 0.006427777778 | E16: -0.1411111111 | F16: 0.49775 | G16: 0.7833444444 | H16: 0.4587972222
D17: FALSE | E17: FALSE | F17: Cp | G17: cl | H17: FALSE
D18: 2 | E18: 0.1 | F18: 2 | G18: 2 | H18: 2
D19: -2 | E19: -0.1 | F19: -8 | G19: -1.5 | H19: -2
D20: 0.2 | E20: 0.1 | F20: 1 | G20: 0.5 | H20: 0.2
D21: FALSE | E21: 0.02 | F21: FALSE | G21: FALSE | H21: FALSE
D22: 0.0_ | E22: 0.0_ | F22: 0_ | G22: #,##0.0_ | H22: 0.0_
D23: FALSE | E23: FALSE | F23: x | G23: α [deg] | H23: FALSE
D24: 2 | E24: 1 | F24: 1 | G24: 30 | H24: 2
D25: -2 | E25: 0 | F25: 0 | G25: -20 | H25: -2
D26: 0.2 | E26: 0.1 | F26: 0.1 | G26: 5 | H26: 0.2
D27: FALSE | E27: 0.02 | F27: FALSE | G27: FALSE | H27: FALSE
D28: 0.0_ | E28: 0.0_ | F28: 0_ | G28: #,##0.0_ | H28: 0.0_
D29: FALSE | E29: FALSE | F29: TRUE | G29: FALSE | H29: FALSE
F30: 1.340555556
F31: 2.043644444
F32: 1.104241667
F33: 12.97711389
F34: -1
F35: -1
D36: 5 | E36: 1 | F36: 2 | G36: 6 | H36: 2
E37: dat!$A$1 | F37: "Upper" | G37: polar!$C$10
D38: plot!$G$3:$G$300 | E38: dat!$A$2:$A$101 | F38: dat!$A$2:$A$52 | G38: polar!$B$12:$B$60 | H38: Streamline!$A$5:$A$217
D39: plot!$H$3:$H$300 | E39: dat!$B$2:$B$101 | F39: plot!$E$3:$E$53 | G39: polar!$C$12:$C$60 | H39: Streamline!$B$5:$B$104
A40: 0 | F40: "Lower" | G40: polar!$D$10
A41: =ADDRESS(5,4+2*A40)&":"&ADDRESS(999,4+2*A40) -> $D$5:$D$999 | D41: plot!$B$3:$B$101 | F41: dat!$A$52:$A$101 | G41: polar!$B$12:$B$60 | H41: Streamline!$D$5:$D$999
A42: =ADDRESS(5,5+2*A40)&":"&ADDRESS(999,5+2*A40) -> $E$5:$E$999 | D42: plot!$C$3:$C$101 | F42: plot!$E$53:$E$102 | G42: polar!$D$12:$D$60 | H42: Streamline!$E$5:$E$999
A43: =A40+1 -> 1 | G43: polar!$F$10
A44: =ADDRESS(5,4+2*A43)&":"&ADDRESS(999,4+2*A43) -> $F$5:$F$999 | D44: plot!$I$3:$I$300 | G44: polar!$B$12:$B$60
A45: =ADDRESS(5,5+2*A43)&":"&ADDRESS(999,5+2*A43) -> $G$5:$G$999 | D45: plot!$J$3:$J$300 | G45: polar!$F$12:$F$60
D46: plot!$L$1 | G46: plot!$Q$11
D47: plot!$L$3:$L$300 | G47: plot!$R$2
D48: plot!$M$3:$M$300 | G48: plot!$R$11
D49: plot!$N$1 | G49: plot!$Q$12
D50: plot!$N$3:$N$300 | G50: plot!$R$2
D51: plot!$O$3:$O$300 | G51: plot!$R$12
G52: plot!$Q$13
G53: plot!$R$2
G54: plot!$R$13
